Workbook

Sheet formulas (hidden)
D2: Nigel The Calculator
D3: No: Values | S3: No: Values | T3: =COUNT(D10:Q16)
F4: Mean | G4: Median | H4: Mode 1 | I4: Mode 2 | J4: Mode 3 | L4: Min | M4: Max | O4: Numerator | P4: Denominator | S4: Mean | T4: =AVERAGE(D10:Q16))
D5: =COUNT(D10:Q16) -> 13 | F5: =+IF(D5=0,"",AVERAGE(D10:Q16)) -> 83.23076923 | G5: =IF(D5=0,0,MEDIAN(D10:Q16)) -> 81 | H5: =+L57 -> 78 | I5: =+IF(L58=H5,"",L58) ->  | J5: =+IF(H5=L59,"",L59) ->  | L5: =MIN(D10:Q16) -> 77 | M5: =MAX($D$10:$Q$16) -> 93 | Q5: =IFERROR(O5/P5,0) -> 0 | S5: Median | T5: =MEDIAN(D10:Q16)
S9: Mode | T9: =MODE(D10:Q16)
D10: 89 | E10: 78 | F10: 77 | G10: 78 | H10: 79 | I10: 77 | J10: 78 | K10: 93 | L10: 93 | M10: 89 | N10: 81 | O10: 88 | P10: 82 | S10: Min | T10: =Min(D10:Q16) | AJ10: =+D38 -> 79.47154812
S11: Max | T11: =Max(D10:Q16) | AJ11: =+F5 -> 83.23076923
S12: % | T12: =O5/P5 | AJ12: =+F38 -> 86.98999034
B18: Values
A19: Deduct Mean from original | C19: a | D19: =+IF(D10=0,"",(D10-#REF!)) ->  | E19: =+IF(E10=0,"",(E10-#REF!)) ->  | F19: =+IF(F10=0,"",(F10-#REF!)) ->  | G19: =+IF(G10=0,"",(G10-#REF!)) ->  | H19: =+IF(H10=0,"",(H10-#REF!)) ->  | I19: =+IF(I10=0,"",(I10-#REF!)) ->  | J19: =+IF(P10=0,"",(P10-#REF!)) ->  | K19: =+IF(Q10=0,"",(Q10-#REF!)) -> 
B21: Square number from | C21: b | D21: =IF(D19="","",(D19*D19)) ->  | E21: =IF(E19="","",(E19*E19)) -> 
C23: Variance | D23: =+IF(D5=0,"",_xlfn.VAR.S(D10:Q16)) -> 38.69230769 | F23: =VAR.S(D10:Q16) | O23: Sum of values | P23: =SUM(D10:Q16) -> 1082 | R23: =sum(D10:Q16)
B25: Standard Deviation | D25: =+IF(D5=0,0,_xlfn.STDEV.S(D10:Q16)) -> 6.220314115 | F25: =STDEV.S(D10:Q16) | P25: Lower Quartile | Q25: =+IF(D5=0,0,_xlfn.QUARTILE.INC($D$10:$Q$16,1)) -> 78 | R25: =QUARTILE.INC($D$10:$Q$16,1)
B27: Square Root of no: values | D27: =SQRT(D5) -> 3.605551275 | F27: =SQRT(D5) | P27: Middle Quartile | Q27: =IF(D5=0,0,_xlfn.QUARTILE.EXC($D$10:$Q$16,2)) -> 81 | R27: =QUARTILE.INC($D$10:$Q$16,2)
B29: Standard Error (SE) | D29: =+IF(D27=0,0,(D25/D27)) -> 1.72520473 | F29: =(D25/D27) | P29: Upper Quartile | Q29: =IF(D5=0,0,_xlfn.QUARTILE.EXC($D$10:$Q$16,3)) -> 89 | R29: =QUARTILE.INC($D$10:$Q$16,3)
B31: T-distribution probability figure | D31: 0.95 | E31: =VLOOKUP(D5-1,Sheet2!C2:D60,2,FALSE) -> 2.179 | G31: =VLOOKUP(D5-1,Sheet2!C2:D60,2,FALSE) | P31: Interquartile Range | Q31: =+Q29-Q25 -> 11 | R31: =Q29-Q25
B33: SE x T-distribution figure | D33: =IF(E31="",0,D29*E31) -> 3.759221107 | F33: =D29*E31
B36: Mean | C36: =+F5 -> 83.23076923 | O36: Percentage calculator
B37: Standard Error Range | C37: =+C36-D29 -> 81.5055645 | E37: to | F37: =+C36+D29 -> 84.95597396
B38: Confidence Interval | D38: =+IF(D33=0,"",(C36-D33)) -> 79.47154812 | E38: to | F38: =+IF(D33=0,"",(C36+D33)) -> 86.98999034 | O38: Percentile % | P38: 0.9 | Q38: =IF(P38="","",_xlfn.PERCENTILE.INC(D10:Q16,P38)) -> 92.2 | R38: =PERCENTILE.INC(D10:Q16,P38)
D41: =F5-D33 | F41: =F5+D33
K57: Mode #1 | L57: =_xlfn.MODE.MULT(D10:Q16) -> 78
K58: Mode #2 | L58: 78
K59: Mode #3 | L59: 78
K60: Mode #4 | L60: 78

Sheet Sheet2 (hidden)
C2: Numbers | D2: 0.95 | H2: Numbers | I2: 0.95
C3: 1 | D3: 12.71 | H3: 1 | I3: 12.71
C4: 2 | D4: 4.303 | H4: 2 | I4: 4.303
C5: 3 | D5: 3.182 | H5: 3 | I5: 3.182
C6: 4 | D6: 2.776 | H6: 4 | I6: 2.776
C7: 5 | D7: 2.571 | H7: 5 | I7: 2.571
C8: 6 | D8: 2.447 | H8: 6 | I8: 2.447
C9: 7 | D9: 2.365 | H9: 7 | I9: 2.365 | N9: Max | X9: Numerator | Y9: Denominator
C10: 8 | D10: 2.306 | H10: 8 | I10: 2.306 | N10: 0 | Z10: 0
C11: 9 | D11: 2.262 | H11: 9 | I11: 2.262
C12: 10 | D12: 2.228 | H12: 10 | I12: 2.228
C13: 11 | D13: 2.201 | H13: 11 | I13: 2.201 | N13: Mode 2,3
C14: 12 | D14: 2.179 | H14: 12 | I14: 2.179
C15: 13 | D15: 2.16 | H15: 13 | I15: 2.16
C16: 14 | D16: 2.145 | H16: 14 | I16: 2.145
C17: 15 | D17: 2.131 | H17: 15 | I17: 2.131
C18: 16 | D18: 2.12 | H18: 16 | I18: 2.12
C19: 17 | D19: 2.11 | H19: 17 | I19: 2.11
C20: 18 | D20: 2.101 | H20: 18 | I20: 2.101
C21: 19 | D21: 2.093 | H21: 19 | I21: 2.093
C22: 20 | D22: 2.086 | H22: 20 | I22: 2.086
C23: 21 | D23: 2.08 | H23: 21 | I23: 2.08
C24: 22 | D24: 2.074 | H24: 22 | I24: 2.074
C25: 23 | D25: 2.069 | H25: 23 | I25: 2.069
C26: 24 | D26: 2.064 | H26: 24 | I26: 2.064
C27: 25 | D27: 2.06 | H27: 25 | I27: 2.06
C28: 26 | D28: 2.056 | H28: 26 | I28: 2.056
C29: 27 | D29: 2.052 | H29: 27 | I29: 2.052
C30: 28 | D30: 2.048 | H30: 28 | I30: 2.048
C31: 29 | D31: 2.045 | H31: 29 | I31: 2.045
C32: 30 | D32: 2.042 | H32: 30 | I32: 2.042
C33: 31 | D33: 2.04 | H33: 40 | I33: 2.021
C34: 32 | D34: 2.037 | H34: 50 | I34: 2.009
C35: 33 | D35: 2.035
C36: 34 | D36: 2.032
C37: 35 | D37: 2.03
C38: 36 | D38: 2.028
C39: 37 | D39: 2.026
C40: 38 | D40: 2.024
C41: 39 | D41: 2.023
C42: 40 | D42: 2.021
C43: 41 | D43: 2.02
C44: 42 | D44: 2.018
C45: 43 | D45: 2.017
C46: 44 | D46: 2.015
C47: 45 | D47: 2.014
C48: 46 | D48: 2.013
C49: 47 | D49: 2.012
C50: 48 | D50: 2.011
C51: 49 | D51: 2.01
C52: 50 | D52: 2.009
C53: 51 | D53: 2.008
C54: 52 | D54: 2.007
C55: 53 | D55: 2.006
C56: 54 | D56: 2.005
C57: 55 | D57: 2.004
C58: 56 | D58: 2.003
C59: 57 | D59: 2.002
C60: 58 | D60: 2.002
C61: 59 | D61: 2.002
C62: 60 | D62: 2
C63: 80 | D63: 1.99
C64: 100 | D64: 1.984
C65: 1000 | D65: 1.962

Sheet TEC1
W2: =+IF([1]Sheet1!$G$6>1,"AKA Nigel","") ->  | Y2: =+IF([1]Sheet1!$G$6>1,"AKA Nigel","") -> 
B5: Centre for Education Statistics and Evaluation | P5: Class Name:
U6: To convert to %
U7: Maximum value
G9: Basics | U9: =+IF($X$7=0,B9,((B9/$X$7)*100)) -> 0 | V9: =+IF($X$7=0,C9,((C9/$X$7)*100)) -> 0 | W9: =+IF($X$7=0,D9,((D9/$X$7)*100)) -> 0 | X9: =+IF($X$7=0,E9,((E9/$X$7)*100)) -> 0
H10: Count | J10: Sum | L10: Min | N10: Max | U10: 0 | V10: 0 | W10: 0 | X10: 0
H11: =COUNTIF(U9:X100,">1") -> 0 | J11: =SUM($U$9:$X$100) -> 0 | L11: =+MIN(IF($U$9:$X$100>1,$U$9:$X$100)) -> 0 | N11: =MAX($U$9:$X$100) -> 0 | U11: 0 | V11: 0 | W11: 0 | X11: 0
U12: 0 | V12: 0 | W12: 0 | X12: 0
G13: Measures of Central Tendency | U13: 0 | V13: 0 | W13: 0 | X13: 0 | AA13: Standard Deviation | AB13: =STDEV(IF(U9:X100<>0,U9:X100)) -> 
H14: Mean | J14: Median | L14: Mode 1 | N14: Mode 2,3 | U14: 0 | V14: 0 | W14: 0 | X14: 0 | Z14: Square Root of no: values | AB14: =SQRT(H11) -> 0
H15: =+AVERAGEIF($U$9:$X$100,">1",$U$9:$X$100) ->  | J15: =+MEDIAN(IF($U$9:$X$100<>0,$U$9:$X$100)) ->  | L15: =+AB19 ->  | N15: =+IF(AB20=L15,"",AB20) ->  | U15: 0 | V15: 0 | W15: 0 | X15: 0 | AA15: Standard Error (SE) | AB15: =+IF(AB14=0,0,(AB13/AB14)) -> 0
N16: =+IF(AB21=L15,"",AB21) ->  | U16: 0 | V16: 0 | W16: 0 | X16: 0 | AA16: T-distribution probability figure | AB16: 0.95 | AC16: =+IF(H11=0,0,VLOOKUP(H11,Sheet2!C2:D65,2,TRUE)) -> 0
U17: 0 | V17: 0 | W17: 0 | X17: 0 | AA17: SE x T-distribution figure | AB17: =IF(AC16="",0,AB15*AC16) -> 0
G18: Quartiles - Interquartile area/range | U18: =+IF($X$7=0,B18,((B18/$X$7)*100)) -> 0 | V18: =+IF($X$7=0,C18,((C18/$X$7)*100)) -> 0 | W18: =+IF($X$7=0,D18,((D18/$X$7)*100)) -> 0 | X18: =+IF($X$7=0,E18,((E18/$X$7)*100)) -> 0 | AA18: Variance | AB18: =+IF(H11=0,"",_xlfn.VAR.S($B$9:$E$100)) -> 
H19: Lower Quartile | J19: Middle Quartile | L19: Upper Quartile | U19: 0 | V19: 0 | W19: 0 | X19: 0 | AA19: Mode #1 | AB19: =+IF($X$7=0,AC19,((AC19/$X$7)*100)) ->  | AC19: =_xlfn.MODE.MULT($B$9:$E$100,$B$9:$E$100) -> 
H20: =IF(H11=0,0,QUARTILE(IF($U$9:$X$100>1,$U$9:$X$100),1)) -> 0 | J20: =IF(H11=0,0,QUARTILE(IF($U$9:$X$100>1,$U$9:$X$100),2)) -> 0 | L20: =IF(H11=0,0,QUARTILE(IF($U$9:$X$100>1,$U$9:$X$100),3)) -> 0 | U20: 0 | V20: 0 | W20: 0 | X20: 0 | AA20: Mode #2 | AB20: =+IF($X$7=0,AC20,((AC20/$X$7)*100)) -> 
U21: 0 | V21: 0 | W21: 0 | X21: 0 | AA21: Mode #3 | AB21: =+IF($X$7=0,AC21,((AC21/$X$7)*100)) -> 
H22: Interquartile Area | J22: =+H20 -> 0 | K22: to | L22: =+L20 -> 0 | U22: 0 | V22: 0 | W22: 0 | X22: 0 | AA22: Mode #4
U23: 0 | V23: 0 | W23: 0 | X23: 0
G24: Confidence Interval | U24: 0 | V24: 0 | W24: 0 | X24: 0 | AA24: q1-min | AB24: =+H20-L11 -> 0
G25: CI commences with sample size >5. The bigger the sample, the more accurate the CI. | U25: 0 | V25: 0 | W25: 0 | X25: 0 | AA25: q1 | AB25: =+H20 -> 0
G26: Confidence Interval | J26: =+IF(H11<=5,"",(H15-AB17)) ->  | K26: to | L26: =+IF(H11<=5,"",(H15+AB17)) ->  | U26: 0 | V26: 0 | W26: 0 | X26: 0 | AA26: median-q1 | AB26: =+J15-H20 -> 
U27: 0 | V27: 0 | W27: 0 | X27: 0 | AA27: median
U28: 0 | V28: 0 | W28: 0 | X28: 0 | AA28: Q3-median | AB28: =+L20-J15 -> 
U29: 0 | V29: 0 | W29: 0 | X29: 0 | AA29: Max-q3 | AB29: =+N11-L20 -> 0
U30: 0 | V30: 0 | W30: 0 | X30: 0 | AA30: Mean | AB30: =+H15 -> 
U31: 0 | V31: 0 | W31: 0 | X31: 0
I32: Percentile % | J32: 0.8 | L32: =IF(H11=0,"",PERCENTILE($B$9:$E$100,J32)) ->  | U32: 0 | V32: 0 | W32: 0 | X32: 0 | AA32: =+J26 ->  | AB32: =+AC32-AA32 ->  | AC32: =+L26 -> 
U33: 0 | V33: 0 | W33: 0 | X33: 0
H34: Standard Deviation | J34: =+AB13 ->  | U34: 0 | V34: 0 | W34: 0 | X34: 0
U35: 0 | V35: 0 | W35: 0 | X35: 0
U36: 0 | V36: 0 | W36: 0 | X36: 0
U37: 0 | V37: 0 | W37: 0 | X37: 0
U38: 0 | V38: 0 | W38: 0 | X38: 0
U39: 0 | V39: 0 | W39: 0 | X39: 0
U40: 0 | V40: 0 | W40: 0 | X40: 0
U41: 0 | V41: 0 | W41: 0 | X41: 0
U42: 0 | V42: =+IF($X$7=0,C42,((C42/$X$7)*100)) -> 0 | W42: =+IF($X$7=0,D42,((D42/$X$7)*100)) -> 0 | X42: =+IF($X$7=0,E42,((E42/$X$7)*100)) -> 0
U43: 0 | V43: 0 | W43: 0 | X43: 0
U44: 0 | V44: 0 | W44: 0 | X44: 0
U45: 0 | V45: 0 | W45: 0 | X45: 0
U46: 0 | V46: 0 | W46: 0 | X46: 0
U47: 0 | V47: 0 | W47: 0 | X47: 0
U48: 0 | V48: 0 | W48: 0 | X48: 0
U49: 0 | V49: 0 | W49: 0 | X49: 0
U50: =+IF($X$7=0,B50,((B50/$X$7)*100)) -> 0 | V50: 0 | W50: 0 | X50: 0
U51: 0 | V51: 0 | W51: 0 | X51: 0
U52: 0 | V52: 0 | W52: 0 | X52: 0
U53: 0 | V53: 0 | W53: 0 | X53: 0
U54: 0 | V54: 0 | W54: 0 | X54: 0
U55: 0 | V55: 0 | W55: 0 | X55: 0
U56: 0 | V56: 0 | W56: 0 | X56: 0
U57: 0 | V57: 0 | W57: 0 | X57: 0
U58: 0 | V58: 0 | W58: 0 | X58: 0
U59: 0 | V59: 0 | W59: 0 | X59: 0
U60: 0 | V60: 0 | W60: 0 | X60: 0
U61: 0 | V61: 0 | W61: 0 | X61: 0
U62: 0 | V62: 0 | W62: 0 | X62: 0
U63: 0 | V63: 0 | W63: 0 | X63: 0
U64: 0 | V64: 0 | W64: 0 | X64: 0
U65: 0 | V65: 0 | W65: 0 | X65: 0
U66: 0 | V66: 0 | W66: 0 | X66: 0
U67: 0 | V67: 0 | W67: 0 | X67: 0
U68: 0 | V68: 0 | W68: 0 | X68: 0
U69: 0 | V69: 0 | W69: 0 | X69: 0
U70: 0 | V70: 0 | W70: 0 | X70: 0
U71: 0 | V71: 0 | W71: 0 | X71: 0
U72: 0 | V72: 0 | W72: 0 | X72: 0
U73: 0 | V73: 0 | W73: 0 | X73: 0
U74: 0 | V74: =+IF($X$7=0,C74,((C74/$X$7)*100)) -> 0 | W74: =+IF($X$7=0,D74,((D74/$X$7)*100)) -> 0 | X74: =+IF($X$7=0,E74,((E74/$X$7)*100)) -> 0
U75: 0 | V75: 0 | W75: 0 | X75: 0
U76: 0 | V76: 0 | W76: 0 | X76: 0
U77: 0 | V77: 0 | W77: 0 | X77: 0
U78: 0 | V78: 0 | W78: 0 | X78: 0
U79: 0 | V79: 0 | W79: 0 | X79: 0
U80: 0 | V80: 0 | W80: 0 | X80: 0
U81: 0 | V81: 0 | W81: 0 | X81: 0
U82: =+IF($X$7=0,B82,((B82/$X$7)*100)) -> 0 | V82: 0 | W82: 0 | X82: 0
U83: 0 | V83: 0 | W83: 0 | X83: 0
U84: 0 | V84: 0 | W84: 0 | X84: 0
U85: 0 | V85: 0 | W85: 0 | X85: 0
U86: 0 | V86: 0 | W86: 0 | X86: 0
U87: 0 | V87: 0 | W87: 0 | X87: 0
U88: 0 | V88: 0 | W88: 0 | X88: 0
U89: 0 | V89: 0 | W89: 0 | X89: 0
U90: 0 | V90: 0 | W90: 0 | X90: 0
U91: 0 | V91: 0 | W91: 0 | X91: 0
U92: 0 | V92: 0 | W92: 0 | X92: 0
U93: 0 | V93: 0 | W93: 0 | X93: 0
U94: 0 | V94: 0 | W94: 0 | X94: 0
U95: 0 | V95: 0 | W95: 0 | X95: 0
U96: 0 | V96: 0 | W96: 0 | X96: 0
U97: 0 | V97: 0 | W97: 0 | X97: 0
U98: 0 | V98: 0 | W98: 0 | X98: 0
U99: 0 | V99: 0 | W99: 0 | X99: 0
U100: 0 | V100: 0 | W100: 0 | X100: 0

Sheet TEC6 (2) (hidden)
B1: Centre for Education Statistics and Evaluation | AF1: Class Name:
B5: =+IF(#REF!>=1,#REF!,0) ->  | C5: =+IF(#REF!>=1,#REF!,0) ->  | D5: =+IF(#REF!>=1,#REF!,0) ->  | E5: =+IF(#REF!>=1,#REF!,0) ->  | F5: =+#REF! ->  | G5: =+#REF! ->  | H5: =+#REF! ->  | I5: =+#REF! ->  | J5: =+#REF! ->  | K5: =+#REF! ->  | L5: =+#REF! ->  | M5: =+#REF! ->  | N5: =+#REF! ->  | O5: =+#REF! ->  | P5: =+#REF! ->  | Q5: =+#REF! ->  | R5: =+#REF! ->  | S5: =+#REF! ->  | T5: =+#REF! ->  | U5: =+#REF! ->  | V5: =+[1]Sheet1!G6 -> 0 | W5: =+'TEC1'!C9 -> 0 | X5: =+'TEC1'!D9 -> 0 | Y5: =+'TEC1'!E9 -> 0 | AA5: Basics
B6: =+IF(#REF!>=1,#REF!,0) ->  | C6: =+IF(#REF!>=1,#REF!,0) ->  | D6: =+IF(#REF!>=1,#REF!,0) ->  | E6: =+IF(#REF!>=1,#REF!,0) ->  | F6: =+#REF! ->  | G6: =+#REF! ->  | H6: =+#REF! ->  | I6: =+#REF! ->  | J6: =+#REF! ->  | K6: =+#REF! ->  | L6: =+#REF! ->  | M6: =+#REF! ->  | N6: =+#REF! ->  | O6: =+#REF! ->  | P6: =+#REF! ->  | Q6: =+#REF! ->  | R6: =+#REF! ->  | S6: =+#REF! ->  | T6: =+#REF! ->  | U6: =+#REF! ->  | V6: =+[1]Sheet1!G7 -> 0 | W6: =+'TEC1'!C10 -> 0 | X6: =+'TEC1'!D10 -> 0 | Y6: =+'TEC1'!E10 -> 0 | AB6: Count | AD6: Sum | AF6: Min | AH6: Max
B7: =+IF(#REF!>=1,#REF!,0) ->  | C7: =+IF(#REF!>=1,#REF!,0) ->  | D7: =+IF(#REF!>=1,#REF!,0) ->  | E7: =+IF(#REF!>=1,#REF!,0) ->  | F7: =+#REF! ->  | G7: =+#REF! ->  | H7: =+#REF! ->  | I7: =+#REF! ->  | J7: =+#REF! ->  | K7: =+#REF! ->  | L7: =+#REF! ->  | M7: =+#REF! ->  | N7: =+#REF! ->  | O7: =+#REF! ->  | P7: =+#REF! ->  | Q7: =+#REF! ->  | R7: =+#REF! ->  | S7: =+#REF! ->  | T7: =+#REF! ->  | U7: =+#REF! ->  | V7: =+[1]Sheet1!G8 -> 0 | W7: =+'TEC1'!C11 -> 0 | X7: =+'TEC1'!D11 -> 0 | Y7: =+'TEC1'!E11 -> 0 | AB7: =COUNTIF($B$5:$Y$86,">=1") -> 0 | AD7: =SUM($B$5:$Y$86) ->  | AF7: =MIN(IF($B$5:$Y$86>0,$B$5:$Y$86)) ->  | AH7: =MAX(IF($B$5:$Y$86>0,$B$5:$Y$86)) ->  | AT7: =IFERROR(AR7/AS7,0) -> 0
B8: =+IF(#REF!>=1,#REF!,0) ->  | C8: =+IF(#REF!>=1,#REF!,0) ->  | D8: =+IF(#REF!>=1,#REF!,0) ->  | E8: =+IF(#REF!>=1,#REF!,0) ->  | F8: =+#REF! ->  | G8: =+#REF! ->  | H8: =+#REF! ->  | I8: =+#REF! ->  | J8: =+#REF! ->  | K8: =+#REF! ->  | L8: =+#REF! ->  | M8: =+#REF! ->  | N8: =+#REF! ->  | O8: =+#REF! ->  | P8: =+#REF! ->  | Q8: =+#REF! ->  | R8: =+#REF! ->  | S8: =+#REF! ->  | T8: =+#REF! ->  | U8: =+#REF! ->  | V8: =+[1]Sheet1!G9 -> 0 | W8: =+'TEC1'!C12 -> 0 | X8: =+'TEC1'!D12 -> 0 | Y8: =+'TEC1'!E12 -> 0
B9: =+IF(#REF!>=1,#REF!,0) ->  | C9: =+IF(#REF!>=1,#REF!,0) ->  | D9: =+IF(#REF!>=1,#REF!,0) ->  | E9: =+IF(#REF!>=1,#REF!,0) ->  | F9: =+#REF! ->  | G9: =+#REF! ->  | H9: =+#REF! ->  | I9: =+#REF! ->  | J9: =+#REF! ->  | K9: =+#REF! ->  | L9: =+#REF! ->  | M9: =+#REF! ->  | N9: =+#REF! ->  | O9: =+#REF! ->  | P9: =+#REF! ->  | Q9: =+#REF! ->  | R9: =+#REF! ->  | S9: =+#REF! ->  | T9: =+#REF! ->  | U9: =+#REF! ->  | V9: =+[1]Sheet1!G10 -> 0 | W9: =+'TEC1'!C13 -> 0 | X9: =+'TEC1'!D13 -> 0 | Y9: =+'TEC1'!E13 -> 0 | AA9: Measures of Central Tendency
B10: =+IF(#REF!>=1,#REF!,0) ->  | C10: =+IF(#REF!>=1,#REF!,0) ->  | D10: =+IF(#REF!>=1,#REF!,0) ->  | E10: =+IF(#REF!>=1,#REF!,0) ->  | F10: =+#REF! ->  | G10: =+#REF! ->  | H10: =+#REF! ->  | I10: =+#REF! ->  | J10: =+#REF! ->  | K10: =+#REF! ->  | L10: =+#REF! ->  | M10: =+#REF! ->  | N10: =+#REF! ->  | O10: =+#REF! ->  | P10: =+#REF! ->  | Q10: =+#REF! ->  | R10: =+#REF! ->  | S10: =+#REF! ->  | T10: =+#REF! ->  | U10: =+#REF! ->  | V10: =+[1]Sheet1!G11 -> 0 | W10: =+'TEC1'!C14 -> 0 | X10: =+'TEC1'!D14 -> 0 | Y10: =+'TEC1'!E14 -> 0 | AB10: Mean | AD10: Median | AF10: Mode 1 | AS10: q1-min | BB10: =+AB16-AF7 -> 
B11: =+IF(#REF!>=1,#REF!,0) ->  | C11: =+IF(#REF!>=1,#REF!,0) ->  | D11: =+IF(#REF!>=1,#REF!,0) ->  | E11: =+IF(#REF!>=1,#REF!,0) ->  | F11: =+#REF! ->  | G11: =+#REF! ->  | H11: =+#REF! ->  | I11: =+#REF! ->  | J11: =+#REF! ->  | K11: =+#REF! ->  | L11: =+#REF! ->  | M11: =+#REF! ->  | N11: =+#REF! ->  | O11: =+#REF! ->  | P11: =+#REF! ->  | Q11: =+#REF! ->  | R11: =+#REF! ->  | S11: =+#REF! ->  | T11: =+#REF! ->  | U11: =+#REF! ->  | V11: =+[1]Sheet1!G12 -> 0 | W11: =+'TEC1'!C15 -> 0 | X11: =+'TEC1'!D15 -> 0 | Y11: =+'TEC1'!E15 -> 0 | AB11: =AVERAGEIF($B$5:$Y$86,">=1") ->  | AD11: =+AD16 ->  | AF11: =+BB22 ->  | AS11: q1 | BB11: =+AB16 -> 
B12: =+IF(#REF!>=1,#REF!,0) ->  | C12: =+IF(#REF!>=1,#REF!,0) ->  | D12: =+IF(#REF!>=1,#REF!,0) ->  | E12: =+IF(#REF!>=1,#REF!,0) ->  | F12: =+#REF! ->  | G12: =+#REF! ->  | H12: =+#REF! ->  | I12: =+#REF! ->  | J12: =+#REF! ->  | K12: =+#REF! ->  | L12: =+#REF! ->  | M12: =+#REF! ->  | N12: =+#REF! ->  | O12: =+#REF! ->  | P12: =+#REF! ->  | Q12: =+#REF! ->  | R12: =+#REF! ->  | S12: =+#REF! ->  | T12: =+#REF! ->  | U12: =+#REF! ->  | V12: =+[1]Sheet1!G13 -> 0 | W12: =+'TEC1'!C16 -> 0 | X12: =+'TEC1'!D16 -> 0 | Y12: =+'TEC1'!E16 -> 0 | AS12: median-q1 | BB12: =+AD11-AB16 -> 
B13: =+IF(#REF!>=1,#REF!,0) ->  | C13: =+IF(#REF!>=1,#REF!,0) ->  | D13: =+IF(#REF!>=1,#REF!,0) ->  | E13: =+IF(#REF!>=1,#REF!,0) ->  | F13: =+#REF! ->  | G13: =+#REF! ->  | H13: =+#REF! ->  | I13: =+#REF! ->  | J13: =+#REF! ->  | K13: =+#REF! ->  | L13: =+#REF! ->  | M13: =+#REF! ->  | N13: =+#REF! ->  | O13: =+#REF! ->  | P13: =+#REF! ->  | Q13: =+#REF! ->  | R13: =+#REF! ->  | S13: =+#REF! ->  | T13: =+#REF! ->  | U13: =+#REF! ->  | V13: =+[1]Sheet1!G14 -> 0 | W13: =+'TEC1'!C17 -> 0 | X13: =+'TEC1'!D17 -> 0 | Y13: =+'TEC1'!E17 -> 0 | AD13: =MEDIAN(B5:Y12) ->  | AS13: median | BB13: 0
B14: =+IF(#REF!>=1,#REF!,0) ->  | C14: =+IF(#REF!>=1,#REF!,0) ->  | D14: =+IF(#REF!>=1,#REF!,0) ->  | E14: =+IF(#REF!>=1,#REF!,0) ->  | F14: =+#REF! ->  | G14: =+#REF! ->  | H14: =+#REF! ->  | I14: =+#REF! ->  | J14: =+#REF! ->  | K14: =+#REF! ->  | L14: =+#REF! ->  | M14: =+#REF! ->  | N14: =+#REF! ->  | O14: =+#REF! ->  | P14: =+#REF! ->  | Q14: =+#REF! ->  | R14: =+#REF! ->  | S14: =+#REF! ->  | T14: =+#REF! ->  | U14: =+#REF! ->  | V14: =+'TEC1'!B18 -> 0 | W14: =+'TEC1'!C18 -> 0 | X14: =+'TEC1'!D18 -> 0 | Y14: =+'TEC1'!E18 -> 0 | AA14: Quartiles - Interquartile area/range | AS14: Q3-median | BB14: =+AF16-AD11 -> 
B15: =+IF(#REF!>=1,#REF!,0) ->  | C15: =+IF(#REF!>=1,#REF!,0) ->  | D15: =+IF(#REF!>=1,#REF!,0) ->  | E15: =+IF(#REF!>=1,#REF!,0) ->  | F15: =+#REF! ->  | G15: =+#REF! ->  | H15: =+#REF! ->  | I15: =+#REF! ->  | J15: =+#REF! ->  | K15: =+#REF! ->  | L15: =+#REF! ->  | M15: =+#REF! ->  | N15: =+#REF! ->  | O15: =+#REF! ->  | P15: =+#REF! ->  | Q15: =+#REF! ->  | R15: =+#REF! ->  | S15: =+#REF! ->  | T15: =+#REF! ->  | U15: =+#REF! ->  | V15: =+'TEC1'!B19 -> 0 | W15: =+'TEC1'!C19 -> 0 | X15: =+'TEC1'!D19 -> 0 | Y15: =+'TEC1'!E19 -> 0 | AB15: Lower Quartile | AD15: Middle Quartile | AF15: Upper Quartile | AS15: Max-q3 | BB15: =+AH7-AF16 -> 
B16: =+IF(#REF!>=1,#REF!,0) ->  | C16: =+IF(#REF!>=1,#REF!,0) ->  | D16: =+IF(#REF!>=1,#REF!,0) ->  | E16: =+IF(#REF!>=1,#REF!,0) ->  | F16: =+#REF! ->  | G16: =+#REF! ->  | H16: =+#REF! ->  | I16: =+#REF! ->  | J16: =+#REF! ->  | K16: =+#REF! ->  | L16: =+#REF! ->  | M16: =+#REF! ->  | N16: =+#REF! ->  | O16: =+#REF! ->  | P16: =+#REF! ->  | Q16: =+#REF! ->  | R16: =+#REF! ->  | S16: =+#REF! ->  | T16: =+#REF! ->  | U16: =+#REF! ->  | V16: =+'TEC1'!B20 -> 0 | W16: =+'TEC1'!C20 -> 0 | X16: =+'TEC1'!D20 -> 0 | Y16: =+'TEC1'!E20 -> 0 | AB16: =QUARTILE(IF($B$5:$Y$86,$B$5:$Y$86),1) ->  | AD16: =QUARTILE(IF($B$5:$Y$86,$B$5:$Y$86),2) ->  | AF16: =QUARTILE(IF($B$5:$Y$100,$B$5:$Y$100),3) ->  | AS16: Mean | BB16: =+AB11 -> 
B17: =+IF(#REF!>=1,#REF!,0) ->  | C17: =+IF(#REF!>=1,#REF!,0) ->  | D17: =+IF(#REF!>=1,#REF!,0) ->  | E17: =+IF(#REF!>=1,#REF!,0) ->  | F17: =+#REF! ->  | G17: =+#REF! ->  | H17: =+#REF! ->  | I17: =+#REF! ->  | J17: =+#REF! ->  | K17: =+#REF! ->  | L17: =+#REF! ->  | M17: =+#REF! ->  | N17: =+#REF! ->  | O17: =+#REF! ->  | P17: =+#REF! ->  | Q17: =+#REF! ->  | R17: =+#REF! ->  | S17: =+#REF! ->  | T17: =+#REF! ->  | U17: =+#REF! ->  | V17: =+'TEC1'!B21 -> 0 | W17: =+'TEC1'!C21 -> 0 | X17: =+'TEC1'!D21 -> 0 | Y17: =+'TEC1'!E21 -> 0
B18: =+IF(#REF!>=1,#REF!,0) ->  | C18: =+IF(#REF!>=1,#REF!,0) ->  | D18: =+IF(#REF!>=1,#REF!,0) ->  | E18: =+IF(#REF!>=1,#REF!,0) ->  | F18: =+#REF! ->  | G18: =+#REF! ->  | H18: =+#REF! ->  | I18: =+#REF! ->  | J18: =+#REF! ->  | K18: =+#REF! ->  | L18: =+#REF! ->  | M18: =+#REF! ->  | N18: =+#REF! ->  | O18: =+#REF! ->  | P18: =+#REF! ->  | Q18: =+#REF! ->  | R18: =+#REF! ->  | S18: =+#REF! ->  | T18: =+#REF! ->  | U18: =+#REF! ->  | V18: =+'TEC1'!B22 -> 0 | W18: =+'TEC1'!C22 -> 0 | X18: =+'TEC1'!D22 -> 0 | Y18: =+'TEC1'!E22 -> 0 | AB18: Interquartile Area | AD18: =+AB16 ->  | AE18: to | AF18: =+AF16 -> 
B19: =+IF(#REF!>=1,#REF!,0) ->  | C19: =+IF(#REF!>=1,#REF!,0) ->  | D19: =+IF(#REF!>=1,#REF!,0) ->  | E19: =+IF(#REF!>=1,#REF!,0) ->  | F19: =+#REF! ->  | G19: =+#REF! ->  | H19: =+#REF! ->  | I19: =+#REF! ->  | J19: =+#REF! ->  | K19: =+#REF! ->  | L19: =+#REF! ->  | M19: =+#REF! ->  | N19: =+#REF! ->  | O19: =+#REF! ->  | P19: =+#REF! ->  | Q19: =+#REF! ->  | R19: =+#REF! ->  | S19: =+#REF! ->  | T19: =+#REF! ->  | U19: =+#REF! ->  | V19: =+'TEC1'!B23 -> 0 | W19: =+'TEC1'!C23 -> 0 | X19: =+'TEC1'!D23 -> 0 | Y19: =+'TEC1'!E23 -> 0
B20: =+IF(#REF!>=1,#REF!,0) ->  | C20: =+IF(#REF!>=1,#REF!,0) ->  | D20: =+IF(#REF!>=1,#REF!,0) ->  | E20: =+IF(#REF!>=1,#REF!,0) ->  | F20: =+#REF! ->  | G20: =+#REF! ->  | H20: =+#REF! ->  | I20: =+#REF! ->  | J20: =+#REF! ->  | K20: =+#REF! ->  | L20: =+#REF! ->  | M20: =+#REF! ->  | N20: =+#REF! ->  | O20: =+#REF! ->  | P20: =+#REF! ->  | Q20: =+#REF! ->  | R20: =+#REF! ->  | S20: =+#REF! ->  | T20: =+#REF! ->  | U20: =+#REF! ->  | V20: =+'TEC1'!B34 -> 0 | W20: =+'TEC1'!C34 -> 0 | X20: =+'TEC1'!D34 -> 0 | Y20: =+'TEC1'!E34 -> 0
B21: =+IF(#REF!>=1,#REF!,0) ->  | C21: =+IF(#REF!>=1,#REF!,0) ->  | D21: =+IF(#REF!>=1,#REF!,0) ->  | E21: =+IF(#REF!>=1,#REF!,0) ->  | F21: =+#REF! ->  | G21: =+#REF! ->  | H21: =+#REF! ->  | I21: =+#REF! ->  | J21: =+#REF! ->  | K21: =+#REF! ->  | L21: =+#REF! ->  | M21: =+#REF! ->  | N21: =+#REF! ->  | O21: =+#REF! ->  | P21: =+#REF! ->  | Q21: =+#REF! ->  | R21: =+#REF! ->  | S21: =+#REF! ->  | T21: =+#REF! ->  | U21: =+#REF! ->  | V21: =+'TEC1'!B35 -> 0 | W21: =+'TEC1'!C35 -> 0 | X21: =+'TEC1'!D35 -> 0 | Y21: =+'TEC1'!E35 -> 0
B22: =+IF(#REF!>=1,#REF!,0) ->  | C22: =+IF(#REF!>=1,#REF!,0) ->  | D22: =+IF(#REF!>=1,#REF!,0) ->  | E22: =+IF(#REF!>=1,#REF!,0) ->  | F22: =+#REF! ->  | G22: =+#REF! ->  | H22: =+#REF! ->  | I22: =+#REF! ->  | J22: =+#REF! ->  | K22: =+#REF! ->  | L22: =+#REF! ->  | M22: =+#REF! ->  | N22: =+#REF! ->  | O22: =+#REF! ->  | P22: =+#REF! ->  | Q22: =+#REF! ->  | R22: =+#REF! ->  | S22: =+#REF! ->  | T22: =+#REF! ->  | U22: =+#REF! ->  | V22: =+'TEC1'!B36 -> 0 | W22: =+'TEC1'!C36 -> 0 | X22: =+'TEC1'!D36 -> 0 | Y22: =+'TEC1'!E36 -> 0 | AS22: Mode | BB22: =MODE(IF($B$5:$Y$100<>0,$B$5:$Y$100)) -> 
B23: =+IF(#REF!>=1,#REF!,0) ->  | C23: =+IF(#REF!>=1,#REF!,0) ->  | D23: =+IF(#REF!>=1,#REF!,0) ->  | E23: =+IF(#REF!>=1,#REF!,0) ->  | F23: =+#REF! ->  | G23: =+#REF! ->  | H23: =+#REF! ->  | I23: =+#REF! ->  | J23: =+#REF! ->  | K23: =+#REF! ->  | L23: =+#REF! ->  | M23: =+#REF! ->  | N23: =+#REF! ->  | O23: =+#REF! ->  | P23: =+#REF! ->  | Q23: =+#REF! ->  | R23: =+#REF! ->  | S23: =+#REF! ->  | T23: =+#REF! ->  | U23: =+#REF! ->  | V23: =+'TEC1'!B37 -> 0 | W23: =+'TEC1'!C37 -> 0 | X23: =+'TEC1'!D37 -> 0 | Y23: =+'TEC1'!E37 -> 0
B24: =+IF(#REF!>=1,#REF!,0) ->  | C24: =+IF(#REF!>=1,#REF!,0) ->  | D24: =+IF(#REF!>=1,#REF!,0) ->  | E24: =+IF(#REF!>=1,#REF!,0) ->  | F24: =+#REF! ->  | G24: =+#REF! ->  | H24: =+#REF! ->  | I24: =+#REF! ->  | J24: =+#REF! ->  | K24: =+#REF! ->  | L24: =+#REF! ->  | M24: =+#REF! ->  | N24: =+#REF! ->  | O24: =+#REF! ->  | P24: =+#REF! ->  | Q24: =+#REF! ->  | R24: =+#REF! ->  | S24: =+#REF! ->  | T24: =+#REF! ->  | U24: =+#REF! ->  | V24: =+'TEC1'!B38 -> 0 | W24: =+'TEC1'!C38 -> 0 | X24: =+'TEC1'!D38 -> 0 | Y24: =+'TEC1'!E38 -> 0
B25: =+IF(#REF!>=1,#REF!,0) ->  | C25: =+IF(#REF!>=1,#REF!,0) ->  | D25: =+IF(#REF!>=1,#REF!,0) ->  | E25: =+IF(#REF!>=1,#REF!,0) ->  | F25: =+#REF! ->  | G25: =+#REF! ->  | H25: =+#REF! ->  | I25: =+#REF! ->  | J25: =+#REF! ->  | K25: =+#REF! ->  | L25: =+#REF! ->  | M25: =+#REF! ->  | N25: =+#REF! ->  | O25: =+#REF! ->  | P25: =+#REF! ->  | Q25: =+#REF! ->  | R25: =+#REF! ->  | S25: =+#REF! ->  | T25: =+#REF! ->  | U25: =+#REF! ->  | V25: =+'TEC1'!B39 -> 0 | W25: =+'TEC1'!C39 -> 0 | X25: =+'TEC1'!D39 -> 0 | Y25: =+'TEC1'!E39 -> 0
B26: =+IF(#REF!>=1,#REF!,0) ->  | C26: =+IF(#REF!>=1,#REF!,0) ->  | D26: =+IF(#REF!>=1,#REF!,0) ->  | E26: =+IF(#REF!>=1,#REF!,0) ->  | F26: =+#REF! ->  | G26: =+#REF! ->  | H26: =+#REF! ->  | I26: =+#REF! ->  | J26: =+#REF! ->  | K26: =+#REF! ->  | L26: =+#REF! ->  | M26: =+#REF! ->  | N26: =+#REF! ->  | O26: =+#REF! ->  | P26: =+#REF! ->  | Q26: =+#REF! ->  | R26: =+#REF! ->  | S26: =+#REF! ->  | T26: =+#REF! ->  | U26: =+#REF! ->  | V26: =+'TEC1'!B40 -> 0 | W26: =+'TEC1'!C40 -> 0 | X26: =+'TEC1'!D40 -> 0 | Y26: =+'TEC1'!E40 -> 0
B27: =+IF(#REF!>=1,#REF!,0) ->  | C27: =+IF(#REF!>=1,#REF!,0) ->  | D27: =+IF(#REF!>=1,#REF!,0) ->  | E27: =+IF(#REF!>=1,#REF!,0) ->  | F27: =+#REF! ->  | G27: =+#REF! ->  | H27: =+#REF! ->  | I27: =+#REF! ->  | J27: =+#REF! ->  | K27: =+#REF! ->  | L27: =+#REF! ->  | M27: =+#REF! ->  | N27: =+#REF! ->  | O27: =+#REF! ->  | P27: =+#REF! ->  | Q27: =+#REF! ->  | R27: =+#REF! ->  | S27: =+#REF! ->  | T27: =+#REF! ->  | U27: =+#REF! ->  | V27: =+'TEC1'!B41 -> 0 | W27: =+'TEC1'!C41 -> 0 | X27: =+'TEC1'!D41 -> 0 | Y27: =+'TEC1'!E41 -> 0
B28: =+IF(#REF!>=1,#REF!,0) ->  | C28: =+IF(#REF!>=1,#REF!,0) ->  | D28: =+IF(#REF!>=1,#REF!,0) ->  | E28: =+IF(#REF!>=1,#REF!,0) ->  | F28: =+#REF! ->  | G28: =+#REF! ->  | H28: =+#REF! ->  | I28: =+#REF! ->  | J28: =+#REF! ->  | K28: =+#REF! ->  | L28: =+#REF! ->  | M28: =+#REF! ->  | N28: =+#REF! ->  | O28: =+#REF! ->  | P28: =+#REF! ->  | Q28: =+#REF! ->  | R28: =+#REF! ->  | S28: =+#REF! ->  | T28: =+#REF! ->  | U28: =+#REF! ->  | V28: =+'TEC1'!B42 -> 0 | W28: =+'TEC1'!C42 -> 0 | X28: =+'TEC1'!D42 -> 0 | Y28: =+'TEC1'!E42 -> 0
B29: =+IF(#REF!>=1,#REF!,0) ->  | C29: =+IF(#REF!>=1,#REF!,0) ->  | D29: =+IF(#REF!>=1,#REF!,0) ->  | E29: =+IF(#REF!>=1,#REF!,0) ->  | F29: =+#REF! ->  | G29: =+#REF! ->  | H29: =+#REF! ->  | I29: =+#REF! ->  | J29: =+#REF! ->  | K29: =+#REF! ->  | L29: =+#REF! ->  | M29: =+#REF! ->  | N29: =+#REF! ->  | O29: =+#REF! ->  | P29: =+#REF! ->  | Q29: =+#REF! ->  | R29: =+#REF! ->  | S29: =+#REF! ->  | T29: =+#REF! ->  | U29: =+#REF! ->  | V29: =+'TEC1'!B43 -> 0 | W29: =+'TEC1'!C43 -> 0 | X29: =+'TEC1'!D43 -> 0 | Y29: =+'TEC1'!E43 -> 0
B30: =+IF(#REF!>=1,#REF!,0) ->  | C30: =+IF(#REF!>=1,#REF!,0) ->  | D30: =+IF(#REF!>=1,#REF!,0) ->  | E30: =+IF(#REF!>=1,#REF!,0) ->  | F30: =+#REF! ->  | G30: =+#REF! ->  | H30: =+#REF! ->  | I30: =+#REF! ->  | J30: =+#REF! ->  | K30: =+#REF! ->  | L30: =+#REF! ->  | M30: =+#REF! ->  | N30: =+#REF! ->  | O30: =+#REF! ->  | P30: =+#REF! ->  | Q30: =+#REF! ->  | R30: =+#REF! ->  | S30: =+#REF! ->  | T30: =+#REF! ->  | U30: =+#REF! ->  | V30: =+'TEC1'!B44 -> 0 | W30: =+'TEC1'!C44 -> 0 | X30: =+'TEC1'!D44 -> 0 | Y30: =+'TEC1'!E44 -> 0
B31: =+IF(#REF!>=1,#REF!,0) ->  | C31: =+IF(#REF!>=1,#REF!,0) ->  | D31: =+IF(#REF!>=1,#REF!,0) ->  | E31: =+IF(#REF!>=1,#REF!,0) ->  | F31: =+#REF! ->  | G31: =+#REF! ->  | H31: =+#REF! ->  | I31: =+#REF! ->  | J31: =+#REF! ->  | K31: =+#REF! ->  | L31: =+#REF! ->  | M31: =+#REF! ->  | N31: =+#REF! ->  | O31: =+#REF! ->  | P31: =+#REF! ->  | Q31: =+#REF! ->  | R31: =+#REF! ->  | S31: =+#REF! ->  | T31: =+#REF! ->  | U31: =+#REF! ->  | V31: =+'TEC1'!B45 -> 0 | W31: =+'TEC1'!C45 -> 0 | X31: =+'TEC1'!D45 -> 0 | Y31: =+'TEC1'!E45 -> 0
B32: =+IF(#REF!>=1,#REF!,0) ->  | C32: =+IF(#REF!>=1,#REF!,0) ->  | D32: =+IF(#REF!>=1,#REF!,0) ->  | E32: =+IF(#REF!>=1,#REF!,0) ->  | F32: =+#REF! ->  | G32: =+#REF! ->  | H32: =+#REF! ->  | I32: =+#REF! ->  | J32: =+#REF! ->  | K32: =+#REF! ->  | L32: =+#REF! ->  | M32: =+#REF! ->  | N32: =+#REF! ->  | O32: =+#REF! ->  | P32: =+#REF! ->  | Q32: =+#REF! ->  | R32: =+#REF! ->  | S32: =+#REF! ->  | T32: =+#REF! ->  | U32: =+#REF! ->  | V32: =+'TEC1'!B46 -> 0 | W32: =+'TEC1'!C46 -> 0 | X32: =+'TEC1'!D46 -> 0 | Y32: =+'TEC1'!E46 -> 0
B33: =+IF(#REF!>=1,#REF!,0) ->  | C33: =+IF(#REF!>=1,#REF!,0) ->  | D33: =+IF(#REF!>=1,#REF!,0) ->  | E33: =+IF(#REF!>=1,#REF!,0) ->  | F33: =+#REF! ->  | G33: =+#REF! ->  | H33: =+#REF! ->  | I33: =+#REF! ->  | J33: =+#REF! ->  | K33: =+#REF! ->  | L33: =+#REF! ->  | M33: =+#REF! ->  | N33: =+#REF! ->  | O33: =+#REF! ->  | P33: =+#REF! ->  | Q33: =+#REF! ->  | R33: =+#REF! ->  | S33: =+#REF! ->  | T33: =+#REF! ->  | U33: =+#REF! ->  | V33: =+'TEC1'!B47 -> 0 | W33: =+'TEC1'!C47 -> 0 | X33: =+'TEC1'!D47 -> 0 | Y33: =+'TEC1'!E47 -> 0
B34: =+IF(#REF!>=1,#REF!,0) ->  | C34: =+IF(#REF!>=1,#REF!,0) ->  | D34: =+IF(#REF!>=1,#REF!,0) ->  | E34: =+IF(#REF!>=1,#REF!,0) ->  | F34: =+#REF! ->  | G34: =+#REF! ->  | H34: =+#REF! ->  | I34: =+#REF! ->  | J34: =+#REF! ->  | K34: =+#REF! ->  | L34: =+#REF! ->  | M34: =+#REF! ->  | N34: =+#REF! ->  | O34: =+#REF! ->  | P34: =+#REF! ->  | Q34: =+#REF! ->  | R34: =+#REF! ->  | S34: =+#REF! ->  | T34: =+#REF! ->  | U34: =+#REF! ->  | V34: =+'TEC1'!B48 -> 0 | W34: =+'TEC1'!C48 -> 0 | X34: =+'TEC1'!D48 -> 0 | Y34: =+'TEC1'!E48 -> 0
B35: =+IF(#REF!>=1,#REF!,0) ->  | C35: =+IF(#REF!>=1,#REF!,0) ->  | D35: =+IF(#REF!>=1,#REF!,0) ->  | E35: =+IF(#REF!>=1,#REF!,0) ->  | F35: =+#REF! ->  | G35: =+#REF! ->  | H35: =+#REF! ->  | I35: =+#REF! ->  | J35: =+#REF! ->  | K35: =+#REF! ->  | L35: =+#REF! ->  | M35: =+#REF! ->  | N35: =+#REF! ->  | O35: =+#REF! ->  | P35: =+#REF! ->  | Q35: =+#REF! ->  | R35: =+#REF! ->  | S35: =+#REF! ->  | T35: =+#REF! ->  | U35: =+#REF! ->  | V35: =+'TEC1'!B49 -> 0 | W35: =+'TEC1'!C49 -> 0 | X35: =+'TEC1'!D49 -> 0 | Y35: =+'TEC1'!E49 -> 0
B36: =+IF(#REF!>=1,#REF!,0) ->  | C36: =+IF(#REF!>=1,#REF!,0) ->  | D36: =+IF(#REF!>=1,#REF!,0) ->  | E36: =+IF(#REF!>=1,#REF!,0) ->  | F36: =+#REF! ->  | G36: =+#REF! ->  | H36: =+#REF! ->  | I36: =+#REF! ->  | J36: =+#REF! ->  | K36: =+#REF! ->  | L36: =+#REF! ->  | M36: =+#REF! ->  | N36: =+#REF! ->  | O36: =+#REF! ->  | P36: =+#REF! ->  | Q36: =+#REF! ->  | R36: =+#REF! ->  | S36: =+#REF! ->  | T36: =+#REF! ->  | U36: =+#REF! ->  | V36: =+'TEC1'!B50 -> 0 | W36: =+'TEC1'!C50 -> 0 | X36: =+'TEC1'!D50 -> 0 | Y36: =+'TEC1'!E50 -> 0
B37: =+IF(#REF!>=1,#REF!,0) ->  | C37: =+IF(#REF!>=1,#REF!,0) ->  | D37: =+IF(#REF!>=1,#REF!,0) ->  | E37: =+IF(#REF!>=1,#REF!,0) ->  | F37: =+#REF! ->  | G37: =+#REF! ->  | H37: =+#REF! ->  | I37: =+#REF! ->  | J37: =+#REF! ->  | K37: =+#REF! ->  | L37: =+#REF! ->  | M37: =+#REF! ->  | N37: =+#REF! ->  | O37: =+#REF! ->  | P37: =+#REF! ->  | Q37: =+#REF! ->  | R37: =+#REF! ->  | S37: =+#REF! ->  | T37: =+#REF! ->  | U37: =+#REF! ->  | V37: =+'TEC1'!B51 -> 0 | W37: =+'TEC1'!C51 -> 0 | X37: =+'TEC1'!D51 -> 0 | Y37: =+'TEC1'!E51 -> 0
B38: =+IF(#REF!>=1,#REF!,0) ->  | C38: =+IF(#REF!>=1,#REF!,0) ->  | D38: =+IF(#REF!>=1,#REF!,0) ->  | E38: =+IF(#REF!>=1,#REF!,0) ->  | F38: =+#REF! ->  | G38: =+#REF! ->  | H38: =+#REF! ->  | I38: =+#REF! ->  | J38: =+#REF! ->  | K38: =+#REF! ->  | L38: =+#REF! ->  | M38: =+#REF! ->  | N38: =+#REF! ->  | O38: =+#REF! ->  | P38: =+#REF! ->  | Q38: =+#REF! ->  | R38: =+#REF! ->  | S38: =+#REF! ->  | T38: =+#REF! ->  | U38: =+#REF! ->  | V38: =+'TEC1'!B52 -> 0 | W38: =+'TEC1'!C52 -> 0 | X38: =+'TEC1'!D52 -> 0 | Y38: =+'TEC1'!E52 -> 0
B39: =+IF(#REF!>=1,#REF!,0) ->  | C39: =+IF(#REF!>=1,#REF!,0) ->  | D39: =+IF(#REF!>=1,#REF!,0) ->  | E39: =+IF(#REF!>=1,#REF!,0) ->  | F39: =+#REF! ->  | G39: =+#REF! ->  | H39: =+#REF! ->  | I39: =+#REF! ->  | J39: =+#REF! ->  | K39: =+#REF! ->  | L39: =+#REF! ->  | M39: =+#REF! ->  | N39: =+#REF! ->  | O39: =+#REF! ->  | P39: =+#REF! ->  | Q39: =+#REF! ->  | R39: =+#REF! ->  | S39: =+#REF! ->  | T39: =+#REF! ->  | U39: =+#REF! ->  | V39: =+'TEC1'!B53 -> 0 | W39: =+'TEC1'!C53 -> 0 | X39: =+'TEC1'!D53 -> 0 | Y39: =+'TEC1'!E53 -> 0
B40: =+IF(#REF!>=1,#REF!,0) ->  | C40: =+IF(#REF!>=1,#REF!,0) ->  | D40: =+IF(#REF!>=1,#REF!,0) ->  | E40: =+IF(#REF!>=1,#REF!,0) ->  | F40: =+#REF! ->  | G40: =+#REF! ->  | H40: =+#REF! ->  | I40: =+#REF! ->  | J40: =+#REF! ->  | K40: =+#REF! ->  | L40: =+#REF! ->  | M40: =+#REF! ->  | N40: =+#REF! ->  | O40: =+#REF! ->  | P40: =+#REF! ->  | Q40: =+#REF! ->  | R40: =+#REF! ->  | S40: =+#REF! ->  | T40: =+#REF! ->  | U40: =+#REF! ->  | V40: =+'TEC1'!B54 -> 0 | W40: =+'TEC1'!C54 -> 0 | X40: =+'TEC1'!D54 -> 0 | Y40: =+'TEC1'!E54 -> 0
B41: =+IF(#REF!>=1,#REF!,0) ->  | C41: =+IF(#REF!>=1,#REF!,0) ->  | D41: =+IF(#REF!>=1,#REF!,0) ->  | E41: =+IF(#REF!>=1,#REF!,0) ->  | F41: =+#REF! ->  | G41: =+#REF! ->  | H41: =+#REF! ->  | I41: =+#REF! ->  | J41: =+#REF! ->  | K41: =+#REF! ->  | L41: =+#REF! ->  | M41: =+#REF! ->  | N41: =+#REF! ->  | O41: =+#REF! ->  | P41: =+#REF! ->  | Q41: =+#REF! ->  | R41: =+#REF! ->  | S41: =+#REF! ->  | T41: =+#REF! ->  | U41: =+#REF! ->  | V41: =+'TEC1'!B55 -> 0 | W41: =+'TEC1'!C55 -> 0 | X41: =+'TEC1'!D55 -> 0 | Y41: =+'TEC1'!E55 -> 0
B42: =+IF(#REF!>=1,#REF!,0) ->  | C42: =+IF(#REF!>=1,#REF!,0) ->  | D42: =+IF(#REF!>=1,#REF!,0) ->  | E42: =+IF(#REF!>=1,#REF!,0) ->  | F42: =+#REF! ->  | G42: =+#REF! ->  | H42: =+#REF! ->  | I42: =+#REF! ->  | J42: =+#REF! ->  | K42: =+#REF! ->  | L42: =+#REF! ->  | M42: =+#REF! ->  | N42: =+#REF! ->  | O42: =+#REF! ->  | P42: =+#REF! ->  | Q42: =+#REF! ->  | R42: =+#REF! ->  | S42: =+#REF! ->  | T42: =+#REF! ->  | U42: =+#REF! ->  | V42: =+'TEC1'!B56 -> 0 | W42: =+'TEC1'!C56 -> 0 | X42: =+'TEC1'!D56 -> 0 | Y42: =+'TEC1'!E56 -> 0
B43: =+IF(#REF!>=1,#REF!,0) ->  | C43: =+IF(#REF!>=1,#REF!,0) ->  | D43: =+IF(#REF!>=1,#REF!,0) ->  | E43: =+IF(#REF!>=1,#REF!,0) ->  | F43: =+#REF! ->  | G43: =+#REF! ->  | H43: =+#REF! ->  | I43: =+#REF! ->  | J43: =+#REF! ->  | K43: =+#REF! ->  | L43: =+#REF! ->  | M43: =+#REF! ->  | N43: =+#REF! ->  | O43: =+#REF! ->  | P43: =+#REF! ->  | Q43: =+#REF! ->  | R43: =+#REF! ->  | S43: =+#REF! ->  | T43: =+#REF! ->  | U43: =+#REF! ->  | V43: =+'TEC1'!B57 -> 0 | W43: =+'TEC1'!C57 -> 0 | X43: =+'TEC1'!D57 -> 0 | Y43: =+'TEC1'!E57 -> 0
B44: =+IF(#REF!>=1,#REF!,0) ->  | C44: =+IF(#REF!>=1,#REF!,0) ->  | D44: =+IF(#REF!>=1,#REF!,0) ->  | E44: =+IF(#REF!>=1,#REF!,0) ->  | F44: =+#REF! ->  | G44: =+#REF! ->  | H44: =+#REF! ->  | I44: =+#REF! ->  | J44: =+#REF! ->  | K44: =+#REF! ->  | L44: =+#REF! ->  | M44: =+#REF! ->  | N44: =+#REF! ->  | O44: =+#REF! ->  | P44: =+#REF! ->  | Q44: =+#REF! ->  | R44: =+#REF! ->  | S44: =+#REF! ->  | T44: =+#REF! ->  | U44: =+#REF! ->  | V44: =+'TEC1'!B58 -> 0 | W44: =+'TEC1'!C58 -> 0 | X44: =+'TEC1'!D58 -> 0 | Y44: =+'TEC1'!E58 -> 0
B45: =+IF(#REF!>=1,#REF!,0) ->  | C45: =+IF(#REF!>=1,#REF!,0) ->  | D45: =+IF(#REF!>=1,#REF!,0) ->  | E45: =+IF(#REF!>=1,#REF!,0) ->  | F45: =+#REF! ->  | G45: =+#REF! ->  | H45: =+#REF! ->  | I45: =+#REF! ->  | J45: =+#REF! ->  | K45: =+#REF! ->  | L45: =+#REF! ->  | M45: =+#REF! ->  | N45: =+#REF! ->  | O45: =+#REF! ->  | P45: =+#REF! ->  | Q45: =+#REF! ->  | R45: =+#REF! ->  | S45: =+#REF! ->  | T45: =+#REF! ->  | U45: =+#REF! ->  | V45: =+'TEC1'!B59 -> 0 | W45: =+'TEC1'!C59 -> 0 | X45: =+'TEC1'!D59 -> 0 | Y45: =+'TEC1'!E59 -> 0
B46: =+IF(#REF!>=1,#REF!,0) ->  | C46: =+IF(#REF!>=1,#REF!,0) ->  | D46: =+IF(#REF!>=1,#REF!,0) ->  | E46: =+IF(#REF!>=1,#REF!,0) ->  | F46: =+#REF! ->  | G46: =+#REF! ->  | H46: =+#REF! ->  | I46: =+#REF! ->  | J46: =+#REF! ->  | K46: =+#REF! ->  | L46: =+#REF! ->  | M46: =+#REF! ->  | N46: =+#REF! ->  | O46: =+#REF! ->  | P46: =+#REF! ->  | Q46: =+#REF! ->  | R46: =+#REF! ->  | S46: =+#REF! ->  | T46: =+#REF! ->  | U46: =+#REF! ->  | V46: =+'TEC1'!B60 -> 0 | W46: =+'TEC1'!C60 -> 0 | X46: =+'TEC1'!D60 -> 0 | Y46: =+'TEC1'!E60 -> 0
B47: =+IF(#REF!>=1,#REF!,0) ->  | C47: =+IF(#REF!>=1,#REF!,0) ->  | D47: =+IF(#REF!>=1,#REF!,0) ->  | E47: =+IF(#REF!>=1,#REF!,0) ->  | F47: =+#REF! ->  | G47: =+#REF! ->  | H47: =+#REF! ->  | I47: =+#REF! ->  | J47: =+#REF! ->  | K47: =+#REF! ->  | L47: =+#REF! ->  | M47: =+#REF! ->  | N47: =+#REF! ->  | O47: =+#REF! ->  | P47: =+#REF! ->  | Q47: =+#REF! ->  | R47: =+#REF! ->  | S47: =+#REF! ->  | T47: =+#REF! ->  | U47: =+#REF! ->  | V47: =+'TEC1'!B61 -> 0 | W47: =+'TEC1'!C61 -> 0 | X47: =+'TEC1'!D61 -> 0 | Y47: =+'TEC1'!E61 -> 0
B48: =+IF(#REF!>=1,#REF!,0) ->  | C48: =+IF(#REF!>=1,#REF!,0) ->  | D48: =+IF(#REF!>=1,#REF!,0) ->  | E48: =+IF(#REF!>=1,#REF!,0) ->  | F48: =+#REF! ->  | G48: =+#REF! ->  | H48: =+#REF! ->  | I48: =+#REF! ->  | J48: =+#REF! ->  | K48: =+#REF! ->  | L48: =+#REF! ->  | M48: =+#REF! ->  | N48: =+#REF! ->  | O48: =+#REF! ->  | P48: =+#REF! ->  | Q48: =+#REF! ->  | R48: =+#REF! ->  | S48: =+#REF! ->  | T48: =+#REF! ->  | U48: =+#REF! ->  | V48: =+'TEC1'!B62 -> 0 | W48: =+'TEC1'!C62 -> 0 | X48: =+'TEC1'!D62 -> 0 | Y48: =+'TEC1'!E62 -> 0
B49: =+IF(#REF!>=1,#REF!,0) ->  | C49: =+IF(#REF!>=1,#REF!,0) ->  | D49: =+IF(#REF!>=1,#REF!,0) ->  | E49: =+IF(#REF!>=1,#REF!,0) ->  | F49: =+#REF! ->  | G49: =+#REF! ->  | H49: =+#REF! ->  | I49: =+#REF! ->  | J49: =+#REF! ->  | K49: =+#REF! ->  | L49: =+#REF! ->  | M49: =+#REF! ->  | N49: =+#REF! ->  | O49: =+#REF! ->  | P49: =+#REF! ->  | Q49: =+#REF! ->  | R49: =+#REF! ->  | S49: =+#REF! ->  | T49: =+#REF! ->  | U49: =+#REF! ->  | V49: =+'TEC1'!B63 -> 0 | W49: =+'TEC1'!C63 -> 0 | X49: =+'TEC1'!D63 -> 0 | Y49: =+'TEC1'!E63 -> 0
B50: =+IF(#REF!>=1,#REF!,0) ->  | C50: =+IF(#REF!>=1,#REF!,0) ->  | D50: =+IF(#REF!>=1,#REF!,0) ->  | E50: =+IF(#REF!>=1,#REF!,0) ->  | F50: =+#REF! ->  | G50: =+#REF! ->  | H50: =+#REF! ->  | I50: =+#REF! ->  | J50: =+#REF! ->  | K50: =+#REF! ->  | L50: =+#REF! ->  | M50: =+#REF! ->  | N50: =+#REF! ->  | O50: =+#REF! ->  | P50: =+#REF! ->  | Q50: =+#REF! ->  | R50: =+#REF! ->  | S50: =+#REF! ->  | T50: =+#REF! ->  | U50: =+#REF! ->  | V50: =+'TEC1'!B64 -> 0 | W50: =+'TEC1'!C64 -> 0 | X50: =+'TEC1'!D64 -> 0 | Y50: =+'TEC1'!E64 -> 0
B51: =+IF(#REF!>=1,#REF!,0) ->  | C51: =+IF(#REF!>=1,#REF!,0) ->  | D51: =+IF(#REF!>=1,#REF!,0) ->  | E51: =+IF(#REF!>=1,#REF!,0) ->  | F51: =+#REF! ->  | G51: =+#REF! ->  | H51: =+#REF! ->  | I51: =+#REF! ->  | J51: =+#REF! ->  | K51: =+#REF! ->  | L51: =+#REF! ->  | M51: =+#REF! ->  | N51: =+#REF! ->  | O51: =+#REF! ->  | P51: =+#REF! ->  | Q51: =+#REF! ->  | R51: =+#REF! ->  | S51: =+#REF! ->  | T51: =+#REF! ->  | U51: =+#REF! ->  | V51: =+'TEC1'!B65 -> 0 | W51: =+'TEC1'!C65 -> 0 | X51: =+'TEC1'!D65 -> 0 | Y51: =+'TEC1'!E65 -> 0
B52: =+IF(#REF!>=1,#REF!,0) ->  | C52: =+IF(#REF!>=1,#REF!,0) ->  | D52: =+IF(#REF!>=1,#REF!,0) ->  | E52: =+IF(#REF!>=1,#REF!,0) ->  | F52: =+#REF! ->  | G52: =+#REF! ->  | H52: =+#REF! ->  | I52: =+#REF! ->  | J52: =+#REF! ->  | K52: =+#REF! ->  | L52: =+#REF! ->  | M52: =+#REF! ->  | N52: =+#REF! ->  | O52: =+#REF! ->  | P52: =+#REF! ->  | Q52: =+#REF! ->  | R52: =+#REF! ->  | S52: =+#REF! ->  | T52: =+#REF! ->  | U52: =+#REF! ->  | V52: =+'TEC1'!B66 -> 0 | W52: =+'TEC1'!C66 -> 0 | X52: =+'TEC1'!D66 -> 0 | Y52: =+'TEC1'!E66 -> 0
B53: =+IF(#REF!>=1,#REF!,0) ->  | C53: =+IF(#REF!>=1,#REF!,0) ->  | D53: =+IF(#REF!>=1,#REF!,0) ->  | E53: =+IF(#REF!>=1,#REF!,0) ->  | F53: =+#REF! ->  | G53: =+#REF! ->  | H53: =+#REF! ->  | I53: =+#REF! ->  | J53: =+#REF! ->  | K53: =+#REF! ->  | L53: =+#REF! ->  | M53: =+#REF! ->  | N53: =+#REF! ->  | O53: =+#REF! ->  | P53: =+#REF! ->  | Q53: =+#REF! ->  | R53: =+#REF! ->  | S53: =+#REF! ->  | T53: =+#REF! ->  | U53: =+#REF! ->  | V53: =+'TEC1'!B67 -> 0 | W53: =+'TEC1'!C67 -> 0 | X53: =+'TEC1'!D67 -> 0 | Y53: =+'TEC1'!E67 -> 0
B54: =+IF(#REF!>=1,#REF!,0) ->  | C54: =+IF(#REF!>=1,#REF!,0) ->  | D54: =+IF(#REF!>=1,#REF!,0) ->  | E54: =+IF(#REF!>=1,#REF!,0) ->  | F54: =+#REF! ->  | G54: =+#REF! ->  | H54: =+#REF! ->  | I54: =+#REF! ->  | J54: =+#REF! ->  | K54: =+#REF! ->  | L54: =+#REF! ->  | M54: =+#REF! ->  | N54: =+#REF! ->  | O54: =+#REF! ->  | P54: =+#REF! ->  | Q54: =+#REF! ->  | R54: =+#REF! ->  | S54: =+#REF! ->  | T54: =+#REF! ->  | U54: =+#REF! ->  | V54: =+'TEC1'!B68 -> 0 | W54: =+'TEC1'!C68 -> 0 | X54: =+'TEC1'!D68 -> 0 | Y54: =+'TEC1'!E68 -> 0
B55: =+IF(#REF!>=1,#REF!,0) ->  | C55: =+IF(#REF!>=1,#REF!,0) ->  | D55: =+IF(#REF!>=1,#REF!,0) ->  | E55: =+IF(#REF!>=1,#REF!,0) ->  | F55: =+#REF! ->  | G55: =+#REF! ->  | H55: =+#REF! ->  | I55: =+#REF! ->  | J55: =+#REF! ->  | K55: =+#REF! ->  | L55: =+#REF! ->  | M55: =+#REF! ->  | N55: =+#REF! ->  | O55: =+#REF! ->  | P55: =+#REF! ->  | Q55: =+#REF! ->  | R55: =+#REF! ->  | S55: =+#REF! ->  | T55: =+#REF! ->  | U55: =+#REF! ->  | V55: =+'TEC1'!B69 -> 0 | W55: =+'TEC1'!C69 -> 0 | X55: =+'TEC1'!D69 -> 0 | Y55: =+'TEC1'!E69 -> 0
B56: =+IF(#REF!>=1,#REF!,0) ->  | C56: =+IF(#REF!>=1,#REF!,0) ->  | D56: =+IF(#REF!>=1,#REF!,0) ->  | E56: =+IF(#REF!>=1,#REF!,0) ->  | F56: =+#REF! ->  | G56: =+#REF! ->  | H56: =+#REF! ->  | I56: =+#REF! ->  | J56: =+#REF! ->  | K56: =+#REF! ->  | L56: =+#REF! ->  | M56: =+#REF! ->  | N56: =+#REF! ->  | O56: =+#REF! ->  | P56: =+#REF! ->  | Q56: =+#REF! ->  | R56: =+#REF! ->  | S56: =+#REF! ->  | T56: =+#REF! ->  | U56: =+#REF! ->  | V56: =+'TEC1'!B70 -> 0 | W56: =+'TEC1'!C70 -> 0 | X56: =+'TEC1'!D70 -> 0 | Y56: =+'TEC1'!E70 -> 0
B57: =+IF(#REF!>=1,#REF!,0) ->  | C57: =+IF(#REF!>=1,#REF!,0) ->  | D57: =+IF(#REF!>=1,#REF!,0) ->  | E57: =+IF(#REF!>=1,#REF!,0) ->  | F57: =+#REF! ->  | G57: =+#REF! ->  | H57: =+#REF! ->  | I57: =+#REF! ->  | J57: =+#REF! ->  | K57: =+#REF! ->  | L57: =+#REF! ->  | M57: =+#REF! ->  | N57: =+#REF! ->  | O57: =+#REF! ->  | P57: =+#REF! ->  | Q57: =+#REF! ->  | R57: =+#REF! ->  | S57: =+#REF! ->  | T57: =+#REF! ->  | U57: =+#REF! ->  | V57: =+'TEC1'!B71 -> 0 | W57: =+'TEC1'!C71 -> 0 | X57: =+'TEC1'!D71 -> 0 | Y57: =+'TEC1'!E71 -> 0
B58: =+IF(#REF!>=1,#REF!,0) ->  | C58: =+IF(#REF!>=1,#REF!,0) ->  | D58: =+IF(#REF!>=1,#REF!,0) ->  | E58: =+IF(#REF!>=1,#REF!,0) ->  | F58: =+#REF! ->  | G58: =+#REF! ->  | H58: =+#REF! ->  | I58: =+#REF! ->  | J58: =+#REF! ->  | K58: =+#REF! ->  | L58: =+#REF! ->  | M58: =+#REF! ->  | N58: =+#REF! ->  | O58: =+#REF! ->  | P58: =+#REF! ->  | Q58: =+#REF! ->  | R58: =+#REF! ->  | S58: =+#REF! ->  | T58: =+#REF! ->  | U58: =+#REF! ->  | V58: =+'TEC1'!B72 -> 0 | W58: =+'TEC1'!C72 -> 0 | X58: =+'TEC1'!D72 -> 0 | Y58: =+'TEC1'!E72 -> 0
B59: =+IF(#REF!>=1,#REF!,0) ->  | C59: =+IF(#REF!>=1,#REF!,0) ->  | D59: =+IF(#REF!>=1,#REF!,0) ->  | E59: =+IF(#REF!>=1,#REF!,0) ->  | F59: =+#REF! ->  | G59: =+#REF! ->  | H59: =+#REF! ->  | I59: =+#REF! ->  | J59: =+#REF! ->  | K59: =+#REF! ->  | L59: =+#REF! ->  | M59: =+#REF! ->  | N59: =+#REF! ->  | O59: =+#REF! ->  | P59: =+#REF! ->  | Q59: =+#REF! ->  | R59: =+#REF! ->  | S59: =+#REF! ->  | T59: =+#REF! ->  | U59: =+#REF! ->  | V59: =+'TEC1'!B73 -> 0 | W59: =+'TEC1'!C73 -> 0 | X59: =+'TEC1'!D73 -> 0 | Y59: =+'TEC1'!E73 -> 0
B60: =+IF(#REF!>=1,#REF!,0) ->  | C60: =+IF(#REF!>=1,#REF!,0) ->  | D60: =+IF(#REF!>=1,#REF!,0) ->  | E60: =+IF(#REF!>=1,#REF!,0) ->  | F60: =+#REF! ->  | G60: =+#REF! ->  | H60: =+#REF! ->  | I60: =+#REF! ->  | J60: =+#REF! ->  | K60: =+#REF! ->  | L60: =+#REF! ->  | M60: =+#REF! ->  | N60: =+#REF! ->  | O60: =+#REF! ->  | P60: =+#REF! ->  | Q60: =+#REF! ->  | R60: =+#REF! ->  | S60: =+#REF! ->  | T60: =+#REF! ->  | U60: =+#REF! ->  | V60: =+'TEC1'!B74 -> 0 | W60: =+'TEC1'!C74 -> 0 | X60: =+'TEC1'!D74 -> 0 | Y60: =+'TEC1'!E74 -> 0
B61: =+IF(#REF!>=1,#REF!,0) ->  | C61: =+IF(#REF!>=1,#REF!,0) ->  | D61: =+IF(#REF!>=1,#REF!,0) ->  | E61: =+IF(#REF!>=1,#REF!,0) ->  | F61: =+#REF! ->  | G61: =+#REF! ->  | H61: =+#REF! ->  | I61: =+#REF! ->  | J61: =+#REF! ->  | K61: =+#REF! ->  | L61: =+#REF! ->  | M61: =+#REF! ->  | N61: =+#REF! ->  | O61: =+#REF! ->  | P61: =+#REF! ->  | Q61: =+#REF! ->  | R61: =+#REF! ->  | S61: =+#REF! ->  | T61: =+#REF! ->  | U61: =+#REF! ->  | V61: =+'TEC1'!B75 -> 0 | W61: =+'TEC1'!C75 -> 0 | X61: =+'TEC1'!D75 -> 0 | Y61: =+'TEC1'!E75 -> 0
B62: =+IF(#REF!>=1,#REF!,0) ->  | C62: =+IF(#REF!>=1,#REF!,0) ->  | D62: =+IF(#REF!>=1,#REF!,0) ->  | E62: =+IF(#REF!>=1,#REF!,0) ->  | F62: =+#REF! ->  | G62: =+#REF! ->  | H62: =+#REF! ->  | I62: =+#REF! ->  | J62: =+#REF! ->  | K62: =+#REF! ->  | L62: =+#REF! ->  | M62: =+#REF! ->  | N62: =+#REF! ->  | O62: =+#REF! ->  | P62: =+#REF! ->  | Q62: =+#REF! ->  | R62: =+#REF! ->  | S62: =+#REF! ->  | T62: =+#REF! ->  | U62: =+#REF! ->  | V62: =+'TEC1'!B76 -> 0 | W62: =+'TEC1'!C76 -> 0 | X62: =+'TEC1'!D76 -> 0 | Y62: =+'TEC1'!E76 -> 0
B63: =+IF(#REF!>=1,#REF!,0) ->  | C63: =+IF(#REF!>=1,#REF!,0) ->  | D63: =+IF(#REF!>=1,#REF!,0) ->  | E63: =+IF(#REF!>=1,#REF!,0) ->  | F63: =+#REF! ->  | G63: =+#REF! ->  | H63: =+#REF! ->  | I63: =+#REF! ->  | J63: =+#REF! ->  | K63: =+#REF! ->  | L63: =+#REF! ->  | M63: =+#REF! ->  | N63: =+#REF! ->  | O63: =+#REF! ->  | P63: =+#REF! ->  | Q63: =+#REF! ->  | R63: =+#REF! ->  | S63: =+#REF! ->  | T63: =+#REF! ->  | U63: =+#REF! ->  | V63: =+'TEC1'!B77 -> 0 | W63: =+'TEC1'!C77 -> 0 | X63: =+'TEC1'!D77 -> 0 | Y63: =+'TEC1'!E77 -> 0
B64: =+IF(#REF!>=1,#REF!,0) ->  | C64: =+IF(#REF!>=1,#REF!,0) ->  | D64: =+IF(#REF!>=1,#REF!,0) ->  | E64: =+IF(#REF!>=1,#REF!,0) ->  | F64: =+#REF! ->  | G64: =+#REF! ->  | H64: =+#REF! ->  | I64: =+#REF! ->  | J64: =+#REF! ->  | K64: =+#REF! ->  | L64: =+#REF! ->  | M64: =+#REF! ->  | N64: =+#REF! ->  | O64: =+#REF! ->  | P64: =+#REF! ->  | Q64: =+#REF! ->  | R64: =+#REF! ->  | S64: =+#REF! ->  | T64: =+#REF! ->  | U64: =+#REF! ->  | V64: =+'TEC1'!B78 -> 0 | W64: =+'TEC1'!C78 -> 0 | X64: =+'TEC1'!D78 -> 0 | Y64: =+'TEC1'!E78 -> 0
B65: =+IF(#REF!>=1,#REF!,0) ->  | C65: =+IF(#REF!>=1,#REF!,0) ->  | D65: =+IF(#REF!>=1,#REF!,0) ->  | E65: =+IF(#REF!>=1,#REF!,0) ->  | F65: =+#REF! ->  | G65: =+#REF! ->  | H65: =+#REF! ->  | I65: =+#REF! ->  | J65: =+#REF! ->  | K65: =+#REF! ->  | L65: =+#REF! ->  | M65: =+#REF! ->  | N65: =+#REF! ->  | O65: =+#REF! ->  | P65: =+#REF! ->  | Q65: =+#REF! ->  | R65: =+#REF! ->  | S65: =+#REF! ->  | T65: =+#REF! ->  | U65: =+#REF! ->  | V65: =+'TEC1'!B79 -> 0 | W65: =+'TEC1'!C79 -> 0 | X65: =+'TEC1'!D79 -> 0 | Y65: =+'TEC1'!E79 -> 0
B66: =+IF(#REF!>=1,#REF!,0) ->  | C66: =+IF(#REF!>=1,#REF!,0) ->  | D66: =+IF(#REF!>=1,#REF!,0) ->  | E66: =+IF(#REF!>=1,#REF!,0) ->  | F66: =+#REF! ->  | G66: =+#REF! ->  | H66: =+#REF! ->  | I66: =+#REF! ->  | J66: =+#REF! ->  | K66: =+#REF! ->  | L66: =+#REF! ->  | M66: =+#REF! ->  | N66: =+#REF! ->  | O66: =+#REF! ->  | P66: =+#REF! ->  | Q66: =+#REF! ->  | R66: =+#REF! ->  | S66: =+#REF! ->  | T66: =+#REF! ->  | U66: =+#REF! ->  | V66: =+'TEC1'!B80 -> 0 | W66: =+'TEC1'!C80 -> 0 | X66: =+'TEC1'!D80 -> 0 | Y66: =+'TEC1'!E80 -> 0
B67: =+IF(#REF!>=1,#REF!,0) ->  | C67: =+IF(#REF!>=1,#REF!,0) ->  | D67: =+IF(#REF!>=1,#REF!,0) ->  | E67: =+IF(#REF!>=1,#REF!,0) ->  | F67: =+#REF! ->  | G67: =+#REF! ->  | H67: =+#REF! ->  | I67: =+#REF! ->  | J67: =+#REF! ->  | K67: =+#REF! ->  | L67: =+#REF! ->  | M67: =+#REF! ->  | N67: =+#REF! ->  | O67: =+#REF! ->  | P67: =+#REF! ->  | Q67: =+#REF! ->  | R67: =+#REF! ->  | S67: =+#REF! ->  | T67: =+#REF! ->  | U67: =+#REF! ->  | V67: =+'TEC1'!B81 -> 0 | W67: =+'TEC1'!C81 -> 0 | X67: =+'TEC1'!D81 -> 0 | Y67: =+'TEC1'!E81 -> 0
B68: =+IF(#REF!>=1,#REF!,0) ->  | C68: =+IF(#REF!>=1,#REF!,0) ->  | D68: =+IF(#REF!>=1,#REF!,0) ->  | E68: =+IF(#REF!>=1,#REF!,0) ->  | F68: =+#REF! ->  | G68: =+#REF! ->  | H68: =+#REF! ->  | I68: =+#REF! ->  | J68: =+#REF! ->  | K68: =+#REF! ->  | L68: =+#REF! ->  | M68: =+#REF! ->  | N68: =+#REF! ->  | O68: =+#REF! ->  | P68: =+#REF! ->  | Q68: =+#REF! ->  | R68: =+#REF! ->  | S68: =+#REF! ->  | T68: =+#REF! ->  | U68: =+#REF! ->  | V68: =+'TEC1'!B82 -> 0 | W68: =+'TEC1'!C82 -> 0 | X68: =+'TEC1'!D82 -> 0 | Y68: =+'TEC1'!E82 -> 0
B69: =+IF(#REF!>=1,#REF!,0) ->  | C69: =+IF(#REF!>=1,#REF!,0) ->  | D69: =+IF(#REF!>=1,#REF!,0) ->  | E69: =+IF(#REF!>=1,#REF!,0) ->  | F69: =+#REF! ->  | G69: =+#REF! ->  | H69: =+#REF! ->  | I69: =+#REF! ->  | J69: =+#REF! ->  | K69: =+#REF! ->  | L69: =+#REF! ->  | M69: =+#REF! ->  | N69: =+#REF! ->  | O69: =+#REF! ->  | P69: =+#REF! ->  | Q69: =+#REF! ->  | R69: =+#REF! ->  | S69: =+#REF! ->  | T69: =+#REF! ->  | U69: =+#REF! ->  | V69: =+'TEC1'!B83 -> 0 | W69: =+'TEC1'!C83 -> 0 | X69: =+'TEC1'!D83 -> 0 | Y69: =+'TEC1'!E83 -> 0
B70: =+IF(#REF!>=1,#REF!,0) ->  | C70: =+IF(#REF!>=1,#REF!,0) ->  | D70: =+IF(#REF!>=1,#REF!,0) ->  | E70: =+IF(#REF!>=1,#REF!,0) ->  | F70: =+#REF! ->  | G70: =+#REF! ->  | H70: =+#REF! ->  | I70: =+#REF! ->  | J70: =+#REF! ->  | K70: =+#REF! ->  | L70: =+#REF! ->  | M70: =+#REF! ->  | N70: =+#REF! ->  | O70: =+#REF! ->  | P70: =+#REF! ->  | Q70: =+#REF! ->  | R70: =+#REF! ->  | S70: =+#REF! ->  | T70: =+#REF! ->  | U70: =+#REF! ->  | V70: =+'TEC1'!B84 -> 0 | W70: =+'TEC1'!C84 -> 0 | X70: =+'TEC1'!D84 -> 0 | Y70: =+'TEC1'!E84 -> 0
B71: =+IF(#REF!>=1,#REF!,0) ->  | C71: =+IF(#REF!>=1,#REF!,0) ->  | D71: =+IF(#REF!>=1,#REF!,0) ->  | E71: =+IF(#REF!>=1,#REF!,0) ->  | F71: =+#REF! ->  | G71: =+#REF! ->  | H71: =+#REF! ->  | I71: =+#REF! ->  | J71: =+#REF! ->  | K71: =+#REF! ->  | L71: =+#REF! ->  | M71: =+#REF! ->  | N71: =+#REF! ->  | O71: =+#REF! ->  | P71: =+#REF! ->  | Q71: =+#REF! ->  | R71: =+#REF! ->  | S71: =+#REF! ->  | T71: =+#REF! ->  | U71: =+#REF! ->  | V71: =+'TEC1'!B85 -> 0 | W71: =+'TEC1'!C85 -> 0 | X71: =+'TEC1'!D85 -> 0 | Y71: =+'TEC1'!E85 -> 0
B72: =+IF(#REF!>=1,#REF!,0) ->  | C72: =+IF(#REF!>=1,#REF!,0) ->  | D72: =+IF(#REF!>=1,#REF!,0) ->  | E72: =+IF(#REF!>=1,#REF!,0) ->  | F72: =+#REF! ->  | G72: =+#REF! ->  | H72: =+#REF! ->  | I72: =+#REF! ->  | J72: =+#REF! ->  | K72: =+#REF! ->  | L72: =+#REF! ->  | M72: =+#REF! ->  | N72: =+#REF! ->  | O72: =+#REF! ->  | P72: =+#REF! ->  | Q72: =+#REF! ->  | R72: =+#REF! ->  | S72: =+#REF! ->  | T72: =+#REF! ->  | U72: =+#REF! ->  | V72: =+'TEC1'!B86 -> 0 | W72: =+'TEC1'!C86 -> 0 | X72: =+'TEC1'!D86 -> 0 | Y72: =+'TEC1'!E86 -> 0
B73: =+IF(#REF!>=1,#REF!,0) ->  | C73: =+IF(#REF!>=1,#REF!,0) ->  | D73: =+IF(#REF!>=1,#REF!,0) ->  | E73: =+IF(#REF!>=1,#REF!,0) ->  | F73: =+#REF! ->  | G73: =+#REF! ->  | H73: =+#REF! ->  | I73: =+#REF! ->  | J73: =+#REF! ->  | K73: =+#REF! ->  | L73: =+#REF! ->  | M73: =+#REF! ->  | N73: =+#REF! ->  | O73: =+#REF! ->  | P73: =+#REF! ->  | Q73: =+#REF! ->  | R73: =+#REF! ->  | S73: =+#REF! ->  | T73: =+#REF! ->  | U73: =+#REF! ->  | V73: =+'TEC1'!B87 -> 0 | W73: =+'TEC1'!C87 -> 0 | X73: =+'TEC1'!D87 -> 0 | Y73: =+'TEC1'!E87 -> 0
B74: =+IF(#REF!>=1,#REF!,0) ->  | C74: =+IF(#REF!>=1,#REF!,0) ->  | D74: =+IF(#REF!>=1,#REF!,0) ->  | E74: =+IF(#REF!>=1,#REF!,0) ->  | F74: =+#REF! ->  | G74: =+#REF! ->  | H74: =+#REF! ->  | I74: =+#REF! ->  | J74: =+#REF! ->  | K74: =+#REF! ->  | L74: =+#REF! ->  | M74: =+#REF! ->  | N74: =+#REF! ->  | O74: =+#REF! ->  | P74: =+#REF! ->  | Q74: =+#REF! ->  | R74: =+#REF! ->  | S74: =+#REF! ->  | T74: =+#REF! ->  | U74: =+#REF! ->  | V74: =+'TEC1'!B88 -> 0 | W74: =+'TEC1'!C88 -> 0 | X74: =+'TEC1'!D88 -> 0 | Y74: =+'TEC1'!E88 -> 0
B75: =+IF(#REF!>=1,#REF!,0) ->  | C75: =+IF(#REF!>=1,#REF!,0) ->  | D75: =+IF(#REF!>=1,#REF!,0) ->  | E75: =+IF(#REF!>=1,#REF!,0) ->  | F75: =+#REF! ->  | G75: =+#REF! ->  | H75: =+#REF! ->  | I75: =+#REF! ->  | J75: =+#REF! ->  | K75: =+#REF! ->  | L75: =+#REF! ->  | M75: =+#REF! ->  | N75: =+#REF! ->  | O75: =+#REF! ->  | P75: =+#REF! ->  | Q75: =+#REF! ->  | R75: =+#REF! ->  | S75: =+#REF! ->  | T75: =+#REF! ->  | U75: =+#REF! ->  | V75: =+'TEC1'!B89 -> 0 | W75: =+'TEC1'!C89 -> 0 | X75: =+'TEC1'!D89 -> 0 | Y75: =+'TEC1'!E89 -> 0
B76: =+IF(#REF!>=1,#REF!,0) ->  | C76: =+IF(#REF!>=1,#REF!,0) ->  | D76: =+IF(#REF!>=1,#REF!,0) ->  | E76: =+IF(#REF!>=1,#REF!,0) ->  | F76: =+#REF! ->  | G76: =+#REF! ->  | H76: =+#REF! ->  | I76: =+#REF! ->  | J76: =+#REF! ->  | K76: =+#REF! ->  | L76: =+#REF! ->  | M76: =+#REF! ->  | N76: =+#REF! ->  | O76: =+#REF! ->  | P76: =+#REF! ->  | Q76: =+#REF! ->  | R76: =+#REF! ->  | S76: =+#REF! ->  | T76: =+#REF! ->  | U76: =+#REF! ->  | V76: =+'TEC1'!B90 -> 0 | W76: =+'TEC1'!C90 -> 0 | X76: =+'TEC1'!D90 -> 0 | Y76: =+'TEC1'!E90 -> 0
B77: =+IF(#REF!>=1,#REF!,0) ->  | C77: =+IF(#REF!>=1,#REF!,0) ->  | D77: =+IF(#REF!>=1,#REF!,0) ->  | E77: =+IF(#REF!>=1,#REF!,0) ->  | F77: =+#REF! ->  | G77: =+#REF! ->  | H77: =+#REF! ->  | I77: =+#REF! ->  | J77: =+#REF! ->  | K77: =+#REF! ->  | L77: =+#REF! ->  | M77: =+#REF! ->  | N77: =+#REF! ->  | O77: =+#REF! ->  | P77: =+#REF! ->  | Q77: =+#REF! ->  | R77: =+#REF! ->  | S77: =+#REF! ->  | T77: =+#REF! ->  | U77: =+#REF! ->  | V77: =+'TEC1'!B91 -> 0 | W77: =+'TEC1'!C91 -> 0 | X77: =+'TEC1'!D91 -> 0 | Y77: =+'TEC1'!E91 -> 0
B78: =+IF(#REF!>=1,#REF!,0) ->  | C78: =+IF(#REF!>=1,#REF!,0) ->  | D78: =+IF(#REF!>=1,#REF!,0) ->  | E78: =+IF(#REF!>=1,#REF!,0) ->  | F78: =+#REF! ->  | G78: =+#REF! ->  | H78: =+#REF! ->  | I78: =+#REF! ->  | J78: =+#REF! ->  | K78: =+#REF! ->  | L78: =+#REF! ->  | M78: =+#REF! ->  | N78: =+#REF! ->  | O78: =+#REF! ->  | P78: =+#REF! ->  | Q78: =+#REF! ->  | R78: =+#REF! ->  | S78: =+#REF! ->  | T78: =+#REF! ->  | U78: =+#REF! ->  | V78: =+'TEC1'!B92 -> 0 | W78: =+'TEC1'!C92 -> 0 | X78: =+'TEC1'!D92 -> 0 | Y78: =+'TEC1'!E92 -> 0
B79: =+IF(#REF!>=1,#REF!,0) ->  | C79: =+IF(#REF!>=1,#REF!,0) ->  | D79: =+IF(#REF!>=1,#REF!,0) ->  | E79: =+IF(#REF!>=1,#REF!,0) ->  | F79: =+#REF! ->  | G79: =+#REF! ->  | H79: =+#REF! ->  | I79: =+#REF! ->  | J79: =+#REF! ->  | K79: =+#REF! ->  | L79: =+#REF! ->  | M79: =+#REF! ->  | N79: =+#REF! ->  | O79: =+#REF! ->  | P79: =+#REF! ->  | Q79: =+#REF! ->  | R79: =+#REF! ->  | S79: =+#REF! ->  | T79: =+#REF! ->  | U79: =+#REF! ->  | V79: =+'TEC1'!B93 -> 0 | W79: =+'TEC1'!C93 -> 0 | X79: =+'TEC1'!D93 -> 0 | Y79: =+'TEC1'!E93 -> 0
B80: =+IF(#REF!>=1,#REF!,0) ->  | C80: =+IF(#REF!>=1,#REF!,0) ->  | D80: =+IF(#REF!>=1,#REF!,0) ->  | E80: =+IF(#REF!>=1,#REF!,0) ->  | F80: =+#REF! ->  | G80: =+#REF! ->  | H80: =+#REF! ->  | I80: =+#REF! ->  | J80: =+#REF! ->  | K80: =+#REF! ->  | L80: =+#REF! ->  | M80: =+#REF! ->  | N80: =+#REF! ->  | O80: =+#REF! ->  | P80: =+#REF! ->  | Q80: =+#REF! ->  | R80: =+#REF! ->  | S80: =+#REF! ->  | T80: =+#REF! ->  | U80: =+#REF! ->  | V80: =+'TEC1'!B94 -> 0 | W80: =+'TEC1'!C94 -> 0 | X80: =+'TEC1'!D94 -> 0 | Y80: =+'TEC1'!E94 -> 0
B81: =+IF(#REF!>=1,#REF!,0) ->  | C81: =+IF(#REF!>=1,#REF!,0) ->  | D81: =+IF(#REF!>=1,#REF!,0) ->  | E81: =+IF(#REF!>=1,#REF!,0) ->  | F81: =+#REF! ->  | G81: =+#REF! ->  | H81: =+#REF! ->  | I81: =+#REF! ->  | J81: =+#REF! ->  | K81: =+#REF! ->  | L81: =+#REF! ->  | M81: =+#REF! ->  | N81: =+#REF! ->  | O81: =+#REF! ->  | P81: =+#REF! ->  | Q81: =+#REF! ->  | R81: =+#REF! ->  | S81: =+#REF! ->  | T81: =+#REF! ->  | U81: =+#REF! ->  | V81: =+'TEC1'!B95 -> 0 | W81: =+'TEC1'!C95 -> 0 | X81: =+'TEC1'!D95 -> 0 | Y81: =+'TEC1'!E95 -> 0
B82: =+IF(#REF!>=1,#REF!,0) ->  | C82: =+IF(#REF!>=1,#REF!,0) ->  | D82: =+IF(#REF!>=1,#REF!,0) ->  | E82: =+IF(#REF!>=1,#REF!,0) ->  | F82: =+#REF! ->  | G82: =+#REF! ->  | H82: =+#REF! ->  | I82: =+#REF! ->  | J82: =+#REF! ->  | K82: =+#REF! ->  | L82: =+#REF! ->  | M82: =+#REF! ->  | N82: =+#REF! ->  | O82: =+#REF! ->  | P82: =+#REF! ->  | Q82: =+#REF! ->  | R82: =+#REF! ->  | S82: =+#REF! ->  | T82: =+#REF! ->  | U82: =+#REF! ->  | V82: =+'TEC1'!B96 -> 0 | W82: =+'TEC1'!C96 -> 0 | X82: =+'TEC1'!D96 -> 0 | Y82: =+'TEC1'!E96 -> 0
B83: =+IF(#REF!>=1,#REF!,0) ->  | C83: =+IF(#REF!>=1,#REF!,0) ->  | D83: =+IF(#REF!>=1,#REF!,0) ->  | E83: =+IF(#REF!>=1,#REF!,0) ->  | F83: =+#REF! ->  | G83: =+#REF! ->  | H83: =+#REF! ->  | I83: =+#REF! ->  | J83: =+#REF! ->  | K83: =+#REF! ->  | L83: =+#REF! ->  | M83: =+#REF! ->  | N83: =+#REF! ->  | O83: =+#REF! ->  | P83: =+#REF! ->  | Q83: =+#REF! ->  | R83: =+#REF! ->  | S83: =+#REF! ->  | T83: =+#REF! ->  | U83: =+#REF! ->  | V83: =+'TEC1'!B97 -> 0 | W83: =+'TEC1'!C97 -> 0 | X83: =+'TEC1'!D97 -> 0 | Y83: =+'TEC1'!E97 -> 0
B84: =+IF(#REF!>=1,#REF!,0) ->  | C84: =+IF(#REF!>=1,#REF!,0) ->  | D84: =+IF(#REF!>=1,#REF!,0) ->  | E84: =+IF(#REF!>=1,#REF!,0) ->  | F84: =+#REF! ->  | G84: =+#REF! ->  | H84: =+#REF! ->  | I84: =+#REF! ->  | J84: =+#REF! ->  | K84: =+#REF! ->  | L84: =+#REF! ->  | M84: =+#REF! ->  | N84: =+#REF! ->  | O84: =+#REF! ->  | P84: =+#REF! ->  | Q84: =+#REF! ->  | R84: =+#REF! ->  | S84: =+#REF! ->  | T84: =+#REF! ->  | U84: =+#REF! ->  | V84: =+'TEC1'!B98 -> 0 | W84: =+'TEC1'!C98 -> 0 | X84: =+'TEC1'!D98 -> 0 | Y84: =+'TEC1'!E98 -> 0
B85: =+IF(#REF!>=1,#REF!,0) ->  | C85: =+IF(#REF!>=1,#REF!,0) ->  | D85: =+IF(#REF!>=1,#REF!,0) ->  | E85: =+IF(#REF!>=1,#REF!,0) ->  | F85: =+#REF! ->  | G85: =+#REF! ->  | H85: =+#REF! ->  | I85: =+#REF! ->  | J85: =+#REF! ->  | K85: =+#REF! ->  | L85: =+#REF! ->  | M85: =+#REF! ->  | N85: =+#REF! ->  | O85: =+#REF! ->  | P85: =+#REF! ->  | Q85: =+#REF! ->  | R85: =+#REF! ->  | S85: =+#REF! ->  | T85: =+#REF! ->  | U85: =+#REF! ->  | V85: =+'TEC1'!B99 -> 0 | W85: =+'TEC1'!C99 -> 0 | X85: =+'TEC1'!D99 -> 0 | Y85: =+'TEC1'!E99 -> 0
B86: =+IF(#REF!>=1,#REF!,0) ->  | C86: =+IF(#REF!>=1,#REF!,0) ->  | D86: =+IF(#REF!>=1,#REF!,0) ->  | E86: =+IF(#REF!>=1,#REF!,0) ->  | F86: =+#REF! ->  | G86: =+#REF! ->  | H86: =+#REF! ->  | I86: =+#REF! ->  | J86: =+#REF! ->  | K86: =+#REF! ->  | L86: =+#REF! ->  | M86: =+#REF! ->  | N86: =+#REF! ->  | O86: =+#REF! ->  | P86: =+#REF! ->  | Q86: =+#REF! ->  | R86: =+#REF! ->  | S86: =+#REF! ->  | T86: =+#REF! ->  | U86: =+#REF! ->  | V86: =+'TEC1'!B100 -> 0 | W86: =+'TEC1'!C100 -> 0 | X86: =+'TEC1'!D100 -> 0 | Y86: =+'TEC1'!E100 -> 0

Sheet TEC2
W2: =+IF($B$9>1,"AKA Nigel","") ->  | Y2: =+IF($B$9>1,"AKA Nigel","") -> 
B5: Centre for Education Statistics and Evaluation | P5: Class Name: | T5: Ms Johnson
U6: To convert to %
U7: Maximum value
G9: Basics | U9: =+IF($X$7=0,B9,((B9/$X$7)*100)) -> 0 | V9: 0 | W9: 0 | X9: 0
H10: Count | J10: Sum | L10: Min | N10: Max | U10: 0 | V10: 0 | W10: 0 | X10: 0
H11: =COUNTIF(U9:X100,">1") -> 0 | J11: =SUM($U$9:$X$100) -> 0 | L11: =+MIN(IF($U$9:$X$100>1,$U$9:$X$100)) -> 0 | N11: =MAX($U$9:$X$100) -> 0 | U11: 0 | V11: 0 | W11: 0 | X11: 0
U12: 0 | V12: 0 | W12: 0 | X12: 0
G13: Measures of Central Tendency | U13: 0 | V13: 0 | W13: 0 | X13: 0 | AA13: Standard Deviation | AB13: =STDEV(IF(U9:X100<>0,U9:X100)) -> 
H14: Mean | J14: Median | L14: Mode 1 | N14: Mode 2,3 | U14: 0 | V14: 0 | W14: 0 | X14: 0 | Z14: Square Root of no: values | AB14: =SQRT(H11) -> 0
H15: =+AVERAGEIF($U$9:$X$100,">1",$U$9:$X$100) ->  | J15: =+MEDIAN(IF($U$9:$X$100<>0,$U$9:$X$100)) ->  | L15: =+AB19 ->  | N15: =+IF(AB20=L15,"",AB20) ->  | U15: =+IF($X$7=0,B15,((B15/$X$7)*100)) -> 0 | V15: =+IF($X$7=0,C15,((C15/$X$7)*100)) -> 0 | W15: =+IF($X$7=0,D15,((D15/$X$7)*100)) -> 0 | X15: =+IF($X$7=0,E15,((E15/$X$7)*100)) -> 0 | AA15: Standard Error (SE) | AB15: =+IF(AB14=0,0,(AB13/AB14)) -> 0
N16: =+IF(AB21=L15,"",AB21) ->  | U16: 0 | V16: 0 | W16: 0 | X16: 0 | AA16: T-distribution probability figure | AB16: 0.95 | AC16: =+IF(H11=0,0,VLOOKUP(H11,Sheet2!C2:D65,2,TRUE)) -> 0
U17: 0 | V17: 0 | W17: 0 | X17: 0 | AA17: SE x T-distribution figure | AB17: =IF(AC16="",0,AB15*AC16) -> 0
G18: Quartiles - Interquartile area/range | U18: 0 | V18: 0 | W18: 0 | X18: 0 | AA18: Variance | AB18: =+IF(H11=0,"",_xlfn.VAR.S($B$9:$E$100)) -> 
H19: Lower Quartile | J19: Middle Quartile | L19: Upper Quartile | U19: 0 | V19: 0 | W19: 0 | X19: 0 | AA19: Mode #1 | AB19: =+IF($X$7=0,AC19,((AC19/$X$7)*100)) ->  | AC19: =_xlfn.MODE.MULT($B$9:$E$100,$B$9:$E$100) -> 
H20: =IF(H11=0,0,QUARTILE(IF($U$9:$X$100>1,$U$9:$X$100),1)) -> 0 | J20: =IF(H11=0,0,QUARTILE(IF($U$9:$X$100>1,$U$9:$X$100),2)) -> 0 | L20: =IF(H11=0,0,QUARTILE(IF($U$9:$X$100>1,$U$9:$X$100),3)) -> 0 | U20: 0 | V20: 0 | W20: 0 | X20: 0 | AA20: Mode #2 | AB20: =+IF($X$7=0,AC20,((AC20/$X$7)*100)) -> 
U21: 0 | V21: 0 | W21: 0 | X21: 0 | AA21: Mode #3 | AB21: =+IF($X$7=0,AC21,((AC21/$X$7)*100)) -> 
H22: Interquartile Area | J22: =+H20 -> 0 | K22: to | L22: =+L20 -> 0 | U22: 0 | V22: 0 | W22: 0 | X22: 0 | AA22: Mode #4
U23: 0 | V23: 0 | W23: 0 | X23: 0
G24: Confidence Interval | U24: 0 | V24: 0 | W24: 0 | X24: 0 | AA24: q1-min | AB24: =+H20-L11 -> 0 | AC24: 27.5
G25: CI commences with sample size >5. The bigger the sample, the more accurate the CI. | U25: 0 | V25: 0 | W25: 0 | X25: 0 | AA25: q1 | AB25: =+H20 -> 0 | AC25: 51.94444444
G26: Confidence Interval | J26: =+IF(H11<=5,0,H15-AB17) -> 0 | K26: to | L26: =+IF(H11<=5,"",(H15+AB17)) ->  | U26: 0 | V26: 0 | W26: 0 | X26: 0 | AA26: median-q1 | AB26: =+J15-H20 ->  | AC26: 15.27777778
U27: 0 | V27: 0 | W27: 0 | X27: 0 | AA27: median
U28: 0 | V28: 0 | W28: 0 | X28: 0 | AA28: Q3-median | AB28: =+L20-J15 ->  | AC28: 15.27777778
U29: 0 | V29: 0 | W29: 0 | X29: 0 | AA29: Max-q3 | AB29: =+N11-L20 -> 0 | AC29: 15.27777778
U30: 0 | V30: 0 | W30: 0 | X30: 0 | AA30: Mean | AB30: =+H15 ->  | AC30: 65.18518519
U31: 0 | V31: 0 | W31: 0 | X31: 0
I32: Percentile % | J32: 0.9 | L32: =IF(H11=0,"",PERCENTILE($B$9:$E$100,J32)) ->  | U32: 0 | V32: 0 | W32: 0 | X32: 0 | AA32: =+J26 -> 0 | AB32: =+AC32-AA32 ->  | AC32: =+L26 -> 
U33: 0 | V33: 0 | W33: 0 | X33: 0
H34: Standard Deviation | J34: =+AB13 ->  | U34: 0 | V34: 0 | W34: 0 | X34: 0
U35: 0 | V35: 0 | W35: 0 | X35: 0
U36: 0 | V36: 0 | W36: 0 | X36: 0
U37: 0 | V37: 0 | W37: 0 | X37: 0
U38: 0 | V38: 0 | W38: 0 | X38: 0
U39: 0 | V39: 0 | W39: 0 | X39: 0
U40: 0 | V40: 0 | W40: 0 | X40: 0
U41: =+IF($X$7=0,B41,((B41/$X$7)*100)) -> 0 | V41: =+IF($X$7=0,C41,((C41/$X$7)*100)) -> 0 | W41: =+IF($X$7=0,D41,((D41/$X$7)*100)) -> 0 | X41: =+IF($X$7=0,E41,((E41/$X$7)*100)) -> 0
U42: 0 | V42: 0 | W42: 0 | X42: 0
U43: 0 | V43: 0 | W43: 0 | X43: 0
U44: 0 | V44: 0 | W44: 0 | X44: 0
U45: 0 | V45: 0 | W45: 0 | X45: 0
U46: 0 | V46: 0 | W46: 0 | X46: 0
U47: 0 | V47: 0 | W47: 0 | X47: 0
U48: 0 | V48: 0 | W48: 0 | X48: 0
U49: 0 | V49: 0 | W49: 0 | X49: 0
U50: 0 | V50: 0 | W50: 0 | X50: 0
U51: 0 | V51: 0 | W51: 0 | X51: 0
U52: 0 | V52: 0 | W52: 0 | X52: 0
U53: 0 | V53: 0 | W53: 0 | X53: 0
U54: 0 | V54: 0 | W54: 0 | X54: 0
U55: 0 | V55: 0 | W55: 0 | X55: 0
U56: 0 | V56: 0 | W56: 0 | X56: 0
U57: 0 | V57: 0 | W57: 0 | X57: 0
U58: 0 | V58: 0 | W58: 0 | X58: 0
U59: 0 | V59: 0 | W59: 0 | X59: 0
U60: 0 | V60: 0 | W60: 0 | X60: 0
U61: 0 | V61: 0 | W61: 0 | X61: 0
U62: 0 | V62: 0 | W62: 0 | X62: 0
U63: 0 | V63: 0 | W63: 0 | X63: 0
U64: 0 | V64: 0 | W64: 0 | X64: 0
U65: 0 | V65: 0 | W65: 0 | X65: 0
U66: 0 | V66: 0 | W66: 0 | X66: 0
U67: 0 | V67: 0 | W67: 0 | X67: 0
U68: 0 | V68: 0 | W68: 0 | X68: 0
U69: 0 | V69: 0 | W69: 0 | X69: 0
U70: 0 | V70: 0 | W70: 0 | X70: 0
U71: 0 | V71: 0 | W71: 0 | X71: 0
U72: 0 | V72: 0 | W72: 0 | X72: 0
U73: =+IF($X$7=0,B73,((B73/$X$7)*100)) -> 0 | V73: =+IF($X$7=0,C73,((C73/$X$7)*100)) -> 0 | W73: =+IF($X$7=0,D73,((D73/$X$7)*100)) -> 0 | X73: =+IF($X$7=0,E73,((E73/$X$7)*100)) -> 0
U74: 0 | V74: 0 | W74: 0 | X74: 0
U75: 0 | V75: 0 | W75: 0 | X75: 0
U76: 0 | V76: 0 | W76: 0 | X76: 0
U77: 0 | V77: 0 | W77: 0 | X77: 0
U78: 0 | V78: 0 | W78: 0 | X78: 0
U79: 0 | V79: 0 | W79: 0 | X79: 0
U80: 0 | V80: 0 | W80: 0 | X80: 0
U81: 0 | V81: 0 | W81: 0 | X81: 0
U82: 0 | V82: 0 | W82: 0 | X82: 0
U83: 0 | V83: 0 | W83: 0 | X83: 0
U84: 0 | V84: 0 | W84: 0 | X84: 0
U85: 0 | V85: 0 | W85: 0 | X85: 0
U86: 0 | V86: 0 | W86: 0 | X86: 0
U87: 0 | V87: 0 | W87: 0 | X87: 0
U88: 0 | V88: 0 | W88: 0 | X88: 0
U89: 0 | V89: 0 | W89: 0 | X89: 0
U90: 0 | V90: 0 | W90: 0 | X90: 0
U91: 0 | V91: 0 | W91: 0 | X91: 0
U92: 0 | V92: 0 | W92: 0 | X92: 0
U93: 0 | V93: 0 | W93: 0 | X93: 0
U94: 0 | V94: 0 | W94: 0 | X94: 0
U95: 0 | V95: 0 | W95: 0 | X95: 0
U96: 0 | V96: 0 | W96: 0 | X96: 0
U97: 0 | V97: 0 | W97: 0 | X97: 0
U98: 0 | V98: 0 | W98: 0 | X98: 0
U99: 0 | V99: 0 | W99: 0 | X99: 0
U100: 0 | V100: 0 | W100: 0 | X100: 0

Sheet TEC3
W2: =+IF($B$9>1,"AKA Nigel","") ->  | Y2: =+IF($B$9>1,"AKA Nigel","") -> 
B5: Centre for Education Statistics and Evaluation | P5: Class Name: | T5: Mr Baldwin
U6: To convert to %
U7: Maximum value
G9: Basics | U9: =+IF($X$7=0,B9,((B9/$X$7)*100)) -> 0 | V9: =+IF($X$7=0,C9,((C9/$X$7)*100)) -> 0 | W9: =+IF($X$7=0,D9,((D9/$X$7)*100)) -> 0 | X9: =+IF($X$7=0,E9,((E9/$X$7)*100)) -> 0
H10: Count | J10: Sum | L10: Min | N10: Max | U10: 0 | V10: 0 | W10: 0 | X10: 0
H11: =COUNTIF(U9:X100,">1") -> 0 | J11: =SUM($U$9:$X$100) -> 0 | L11: =+MIN(IF($U$9:$X$100>1,$U$9:$X$100)) -> 0 | N11: =MAX($U$9:$X$100) -> 0 | U11: 0 | V11: 0 | W11: 0 | X11: 0
U12: 0 | V12: 0 | W12: 0 | X12: 0
G13: Measures of Central Tendency | U13: 0 | V13: 0 | W13: 0 | X13: 0 | AA13: Standard Deviation | AB13: =STDEV(IF(U9:X100<>0,U9:X100)) -> 
H14: Mean | J14: Median | L14: Mode 1 | N14: Mode 2,3 | U14: 0 | V14: 0 | W14: 0 | X14: 0 | Z14: Square Root of no: values | AB14: =SQRT(H11) -> 0
H15: =+AVERAGEIF($U$9:$X$100,">1",$U$9:$X$100) ->  | J15: =+MEDIAN(IF($U$9:$X$100<>0,$U$9:$X$100)) ->  | L15: =+AB19 ->  | N15: =+IF(AB20=L15,"",AB20) ->  | U15: 0 | V15: 0 | W15: 0 | X15: 0 | AA15: Standard Error (SE) | AB15: =+IF(AB14=0,0,(AB13/AB14)) -> 0
N16: =+IF(AB21=L15,"",AB21) ->  | U16: 0 | V16: 0 | W16: 0 | X16: 0 | AA16: T-distribution probability figure | AB16: 0.95 | AC16: =+IF(H11=0,0,VLOOKUP(H11,Sheet2!C2:D65,2,TRUE)) -> 0
U17: 0 | V17: 0 | W17: 0 | X17: 0 | AA17: SE x T-distribution figure | AB17: =IF(AC16="",0,AB15*AC16) -> 0
G18: Quartiles - Interquartile area/range | U18: 0 | V18: 0 | W18: 0 | X18: 0 | AA18: Variance | AB18: =+IF(H11=0,"",_xlfn.VAR.S($B$9:$E$100)) -> 
H19: Lower Quartile | J19: Middle Quartile | L19: Upper Quartile | U19: 0 | V19: 0 | W19: 0 | X19: 0 | AA19: Mode #1 | AB19: =+IF($X$7=0,AC19,((AC19/$X$7)*100)) ->  | AC19: =_xlfn.MODE.MULT($B$9:$E$100,$B$9:$E$100) -> 
H20: =IF(H11=0,0,QUARTILE(IF($U$9:$X$100>1,$U$9:$X$100),1)) -> 0 | J20: =IF(H11=0,0,QUARTILE(IF($U$9:$X$100>1,$U$9:$X$100),2)) -> 0 | L20: =IF(H11=0,0,QUARTILE(IF($U$9:$X$100>1,$U$9:$X$100),3)) -> 0 | U20: 0 | V20: 0 | W20: 0 | X20: 0 | AA20: Mode #2 | AB20: =+IF($X$7=0,AC20,((AC20/$X$7)*100)) -> 
U21: 0 | V21: 0 | W21: 0 | X21: 0 | AA21: Mode #3 | AB21: =+IF($X$7=0,AC21,((AC21/$X$7)*100)) -> 
H22: Interquartile Area | J22: =+H20 -> 0 | K22: to | L22: =+L20 -> 0 | U22: 0 | V22: 0 | W22: 0 | X22: 0 | AA22: Mode #4
U23: 0 | V23: 0 | W23: 0 | X23: 0
G24: Confidence Interval | U24: 0 | V24: 0 | W24: 0 | X24: 0 | AA24: q1-min | AB24: =+H20-L11 -> 0
G25: CI commences with sample size >5. The bigger the sample, the more accurate the CI. | U25: 0 | V25: 0 | W25: 0 | X25: 0 | AA25: q1 | AB25: =+H20 -> 0
G26: Confidence Interval | J26: =+IF(H11<=5,"",(H15-AB17)) ->  | K26: to | L26: =+IF(H11<=5,"",(H15+AB17)) ->  | U26: 0 | V26: 0 | W26: 0 | X26: 0 | AA26: median-q1 | AB26: =+J15-H20 -> 
U27: 0 | V27: 0 | W27: 0 | X27: 0 | AA27: median
U28: 0 | V28: 0 | W28: 0 | X28: 0 | AA28: Q3-median | AB28: =+L20-J15 -> 
U29: 0 | V29: 0 | W29: 0 | X29: 0 | AA29: Max-q3 | AB29: =+N11-L20 -> 0
U30: 0 | V30: 0 | W30: 0 | X30: 0 | AA30: Mean | AB30: =+H15 -> 
U31: 0 | V31: 0 | W31: 0 | X31: 0
I32: Percentile % | J32: 0.9 | L32: =IF(H11=0,"",PERCENTILE($B$9:$E$100,J32)) ->  | U32: 0 | V32: 0 | W32: 0 | X32: 0 | AA32: =+J26 ->  | AB32: =+AC32-AA32 ->  | AC32: =+L26 -> 
U33: 0 | V33: 0 | W33: 0 | X33: 0
H34: Standard Deviation | J34: =+AB13 ->  | U34: 0 | V34: 0 | W34: 0 | X34: 0
U35: 0 | V35: 0 | W35: 0 | X35: 0
U36: 0 | V36: 0 | W36: 0 | X36: 0
U37: 0 | V37: 0 | W37: 0 | X37: 0
U38: 0 | V38: 0 | W38: 0 | X38: 0
U39: 0 | V39: 0 | W39: 0 | X39: 0
U40: 0 | V40: 0 | W40: 0 | X40: 0
U41: =+IF($X$7=0,B41,((B41/$X$7)*100)) -> 0 | V41: =+IF($X$7=0,C41,((C41/$X$7)*100)) -> 0 | W41: =+IF($X$7=0,D41,((D41/$X$7)*100)) -> 0 | X41: =+IF($X$7=0,E41,((E41/$X$7)*100)) -> 0
U42: 0 | V42: 0 | W42: 0 | X42: 0
U43: 0 | V43: 0 | W43: 0 | X43: 0
U44: 0 | V44: 0 | W44: 0 | X44: 0
U45: 0 | V45: 0 | W45: 0 | X45: 0
U46: 0 | V46: 0 | W46: 0 | X46: 0
U47: 0 | V47: 0 | W47: 0 | X47: 0
U48: 0 | V48: 0 | W48: 0 | X48: 0
U49: 0 | V49: 0 | W49: 0 | X49: 0
U50: 0 | V50: 0 | W50: 0 | X50: 0
U51: 0 | V51: 0 | W51: 0 | X51: 0
U52: 0 | V52: 0 | W52: 0 | X52: 0
U53: 0 | V53: 0 | W53: 0 | X53: 0
U54: 0 | V54: 0 | W54: 0 | X54: 0
U55: 0 | V55: 0 | W55: 0 | X55: 0
U56: 0 | V56: 0 | W56: 0 | X56: 0
U57: 0 | V57: 0 | W57: 0 | X57: 0
U58: 0 | V58: 0 | W58: 0 | X58: 0
U59: 0 | V59: 0 | W59: 0 | X59: 0
U60: 0 | V60: 0 | W60: 0 | X60: 0
U61: 0 | V61: 0 | W61: 0 | X61: 0
U62: 0 | V62: 0 | W62: 0 | X62: 0
U63: 0 | V63: 0 | W63: 0 | X63: 0
U64: 0 | V64: 0 | W64: 0 | X64: 0
U65: 0 | V65: 0 | W65: 0 | X65: 0
U66: 0 | V66: 0 | W66: 0 | X66: 0
U67: 0 | V67: 0 | W67: 0 | X67: 0
U68: 0 | V68: 0 | W68: 0 | X68: 0
U69: 0 | V69: 0 | W69: 0 | X69: 0
U70: 0 | V70: 0 | W70: 0 | X70: 0
U71: 0 | V71: 0 | W71: 0 | X71: 0
U72: 0 | V72: 0 | W72: 0 | X72: 0
U73: =+IF($X$7=0,B73,((B73/$X$7)*100)) -> 0 | V73: =+IF($X$7=0,C73,((C73/$X$7)*100)) -> 0 | W73: =+IF($X$7=0,D73,((D73/$X$7)*100)) -> 0 | X73: =+IF($X$7=0,E73,((E73/$X$7)*100)) -> 0
U74: 0 | V74: 0 | W74: 0 | X74: 0
U75: 0 | V75: 0 | W75: 0 | X75: 0
U76: 0 | V76: 0 | W76: 0 | X76: 0
U77: 0 | V77: 0 | W77: 0 | X77: 0
U78: 0 | V78: 0 | W78: 0 | X78: 0
U79: 0 | V79: 0 | W79: 0 | X79: 0
U80: 0 | V80: 0 | W80: 0 | X80: 0
U81: 0 | V81: 0 | W81: 0 | X81: 0
U82: 0 | V82: 0 | W82: 0 | X82: 0
U83: 0 | V83: 0 | W83: 0 | X83: 0
U84: 0 | V84: 0 | W84: 0 | X84: 0
U85: 0 | V85: 0 | W85: 0 | X85: 0
U86: 0 | V86: 0 | W86: 0 | X86: 0
U87: 0 | V87: 0 | W87: 0 | X87: 0
U88: 0 | V88: 0 | W88: 0 | X88: 0
U89: 0 | V89: 0 | W89: 0 | X89: 0
U90: 0 | V90: 0 | W90: 0 | X90: 0
U91: 0 | V91: 0 | W91: 0 | X91: 0
U92: 0 | V92: 0 | W92: 0 | X92: 0
U93: 0 | V93: 0 | W93: 0 | X93: 0
U94: 0 | V94: 0 | W94: 0 | X94: 0
U95: 0 | V95: 0 | W95: 0 | X95: 0
U96: 0 | V96: 0 | W96: 0 | X96: 0
U97: 0 | V97: 0 | W97: 0 | X97: 0
U98: 0 | V98: 0 | W98: 0 | X98: 0
U99: 0 | V99: 0 | W99: 0 | X99: 0
U100: 0 | V100: 0 | W100: 0 | X100: 0

Sheet TEC4
W2: =+IF($B$9>1,"AKA Nigel","") ->  | Y2: =+IF($B$9>1,"AKA Nigel","") -> 
B5: Centre for Education Statistics and Evaluation | P5: Class Name: | T5: Ms Galley
U6: To convert to %
U7: Maximum value
G9: Basics | U9: =+IF($X$7=0,B9,((B9/$X$7)*100)) -> 0 | V9: =+IF($X$7=0,C9,((C9/$X$7)*100)) -> 0 | W9: =+IF($X$7=0,D9,((D9/$X$7)*100)) -> 0 | X9: =+IF($X$7=0,E9,((E9/$X$7)*100)) -> 0
H10: Count | J10: Sum | L10: Min | N10: Max | U10: 0 | V10: 0 | W10: 0 | X10: 0
H11: =COUNTIF(U9:X100,">1") -> 0 | J11: =SUM($U$9:$X$100) -> 0 | L11: =+MIN(IF($U$9:$X$100>1,$U$9:$X$100)) -> 0 | N11: =MAX($U$9:$X$100) -> 0 | U11: 0 | V11: 0 | W11: 0 | X11: 0
U12: 0 | V12: 0 | W12: 0 | X12: 0
G13: Measures of Central Tendency | U13: 0 | V13: 0 | W13: 0 | X13: 0 | AA13: Standard Deviation | AB13: =STDEV(IF(U9:X100<>0,U9:X100)) -> 
H14: Mean | J14: Median | L14: Mode 1 | N14: Mode 2,3 | U14: 0 | V14: 0 | W14: 0 | X14: 0 | Z14: Square Root of no: values | AB14: =SQRT(H11) -> 0
H15: =+AVERAGEIF($U$9:$X$100,">1",$U$9:$X$100) ->  | J15: =+MEDIAN(IF($U$9:$X$100<>0,$U$9:$X$100)) ->  | L15: =+AB19 ->  | N15: =+IF(AB20=L15,"",AB20) ->  | U15: 0 | V15: 0 | W15: 0 | X15: 0 | AA15: Standard Error (SE) | AB15: =+IF(AB14=0,0,(AB13/AB14)) -> 0
N16: =+IF(AB21=L15,"",AB21) ->  | U16: 0 | V16: 0 | W16: 0 | X16: 0 | AA16: T-distribution probability figure | AB16: 0.95 | AC16: =+IF(H11=0,0,VLOOKUP(H11,Sheet2!C2:D65,2,TRUE)) -> 0
U17: 0 | V17: 0 | W17: 0 | X17: 0 | AA17: SE x T-distribution figure | AB17: =IF(AC16="",0,AB15*AC16) -> 0
G18: Quartiles - Interquartile area/range | U18: 0 | V18: 0 | W18: 0 | X18: 0 | AA18: Variance | AB18: =+IF(H11=0,"",_xlfn.VAR.S($B$9:$E$100)) -> 
H19: Lower Quartile | J19: Middle Quartile | L19: Upper Quartile | U19: 0 | V19: 0 | W19: 0 | X19: 0 | AA19: Mode #1 | AB19: =+IF($X$7=0,AC19,((AC19/$X$7)*100)) ->  | AC19: =_xlfn.MODE.MULT($B$9:$E$100,$B$9:$E$100) -> 
H20: =IF(H11=0,0,QUARTILE(IF($U$9:$X$100>1,$U$9:$X$100),1)) -> 0 | J20: =IF(H11=0,0,QUARTILE(IF($U$9:$X$100>1,$U$9:$X$100),2)) -> 0 | L20: =IF(H11=0,0,QUARTILE(IF($U$9:$X$100>1,$U$9:$X$100),3)) -> 0 | U20: 0 | V20: 0 | W20: 0 | X20: 0 | AA20: Mode #2 | AB20: =+IF($X$7=0,AC20,((AC20/$X$7)*100)) -> 
U21: 0 | V21: 0 | W21: 0 | X21: 0 | AA21: Mode #3 | AB21: =+IF($X$7=0,AC21,((AC21/$X$7)*100)) -> 
H22: Interquartile Area | J22: =+H20 -> 0 | K22: to | L22: =+L20 -> 0 | U22: 0 | V22: 0 | W22: 0 | X22: 0 | AA22: Mode #4
U23: 0 | V23: 0 | W23: 0 | X23: 0
G24: Confidence Interval | U24: 0 | V24: 0 | W24: 0 | X24: 0 | AA24: q1-min | AB24: =+H20-L11 -> 0
G25: CI commences with sample size >5. The bigger the sample, the more accurate the CI. | U25: 0 | V25: 0 | W25: 0 | X25: 0 | AA25: q1 | AB25: =+H20 -> 0
G26: Confidence Interval | J26: =+IF(H11<=5,"",(H15-AB17)) ->  | K26: to | L26: =+IF(H11<=5,"",(H15+AB17)) ->  | U26: 0 | V26: 0 | W26: 0 | X26: 0 | AA26: median-q1 | AB26: =+J15-H20 -> 
U27: 0 | V27: 0 | W27: 0 | X27: 0 | AA27: median
U28: 0 | V28: 0 | W28: 0 | X28: 0 | AA28: Q3-median | AB28: =+L20-J15 -> 
U29: 0 | V29: 0 | W29: 0 | X29: 0 | AA29: Max-q3 | AB29: =+N11-L20 -> 0
U30: 0 | V30: 0 | W30: 0 | X30: 0 | AA30: Mean | AB30: =+H15 -> 
U31: 0 | V31: 0 | W31: 0 | X31: 0
I32: Percentile % | J32: 0.9 | L32: =IF(H11=0,"",PERCENTILE($B$9:$E$100,J32)) ->  | U32: 0 | V32: 0 | W32: 0 | X32: 0 | AA32: =+J26 ->  | AB32: =+AC32-AA32 ->  | AC32: =+L26 -> 
U33: 0 | V33: 0 | W33: 0 | X33: 0
H34: Standard Deviation | J34: =+AB13 ->  | U34: 0 | V34: 0 | W34: 0 | X34: 0
U35: 0 | V35: 0 | W35: 0 | X35: 0
U36: 0 | V36: 0 | W36: 0 | X36: 0
U37: 0 | V37: 0 | W37: 0 | X37: 0
U38: 0 | V38: 0 | W38: 0 | X38: 0
U39: 0 | V39: 0 | W39: 0 | X39: 0
U40: 0 | V40: 0 | W40: 0 | X40: 0
U41: =+IF($X$7=0,B41,((B41/$X$7)*100)) -> 0 | V41: =+IF($X$7=0,C41,((C41/$X$7)*100)) -> 0 | W41: =+IF($X$7=0,D41,((D41/$X$7)*100)) -> 0 | X41: =+IF($X$7=0,E41,((E41/$X$7)*100)) -> 0
U42: 0 | V42: 0 | W42: 0 | X42: 0
U43: 0 | V43: 0 | W43: 0 | X43: 0
U44: 0 | V44: 0 | W44: 0 | X44: 0
U45: 0 | V45: 0 | W45: 0 | X45: 0
U46: 0 | V46: 0 | W46: 0 | X46: 0
U47: 0 | V47: 0 | W47: 0 | X47: 0
U48: 0 | V48: 0 | W48: 0 | X48: 0
U49: 0 | V49: 0 | W49: 0 | X49: 0
U50: 0 | V50: 0 | W50: 0 | X50: 0
U51: 0 | V51: 0 | W51: 0 | X51: 0
U52: 0 | V52: 0 | W52: 0 | X52: 0
U53: 0 | V53: 0 | W53: 0 | X53: 0
U54: 0 | V54: 0 | W54: 0 | X54: 0
U55: 0 | V55: 0 | W55: 0 | X55: 0
U56: 0 | V56: 0 | W56: 0 | X56: 0
U57: 0 | V57: 0 | W57: 0 | X57: 0
U58: 0 | V58: 0 | W58: 0 | X58: 0
U59: 0 | V59: 0 | W59: 0 | X59: 0
U60: 0 | V60: 0 | W60: 0 | X60: 0
U61: 0 | V61: 0 | W61: 0 | X61: 0
U62: 0 | V62: 0 | W62: 0 | X62: 0
U63: 0 | V63: 0 | W63: 0 | X63: 0
U64: 0 | V64: 0 | W64: 0 | X64: 0
U65: 0 | V65: 0 | W65: 0 | X65: 0
U66: 0 | V66: 0 | W66: 0 | X66: 0
U67: 0 | V67: 0 | W67: 0 | X67: 0
U68: 0 | V68: 0 | W68: 0 | X68: 0
U69: 0 | V69: 0 | W69: 0 | X69: 0
U70: 0 | V70: 0 | W70: 0 | X70: 0
U71: 0 | V71: 0 | W71: 0 | X71: 0
U72: 0 | V72: 0 | W72: 0 | X72: 0
U73: =+IF($X$7=0,B73,((B73/$X$7)*100)) -> 0 | V73: =+IF($X$7=0,C73,((C73/$X$7)*100)) -> 0 | W73: =+IF($X$7=0,D73,((D73/$X$7)*100)) -> 0 | X73: =+IF($X$7=0,E73,((E73/$X$7)*100)) -> 0
U74: 0 | V74: 0 | W74: 0 | X74: 0
U75: 0 | V75: 0 | W75: 0 | X75: 0
U76: 0 | V76: 0 | W76: 0 | X76: 0
U77: 0 | V77: 0 | W77: 0 | X77: 0
U78: 0 | V78: 0 | W78: 0 | X78: 0
U79: 0 | V79: 0 | W79: 0 | X79: 0
U80: 0 | V80: 0 | W80: 0 | X80: 0
U81: 0 | V81: 0 | W81: 0 | X81: 0
U82: 0 | V82: 0 | W82: 0 | X82: 0
U83: 0 | V83: 0 | W83: 0 | X83: 0
U84: 0 | V84: 0 | W84: 0 | X84: 0
U85: 0 | V85: 0 | W85: 0 | X85: 0
U86: 0 | V86: 0 | W86: 0 | X86: 0
U87: 0 | V87: 0 | W87: 0 | X87: 0
U88: 0 | V88: 0 | W88: 0 | X88: 0
U89: 0 | V89: 0 | W89: 0 | X89: 0
U90: 0 | V90: 0 | W90: 0 | X90: 0
U91: 0 | V91: 0 | W91: 0 | X91: 0
U92: 0 | V92: 0 | W92: 0 | X92: 0
U93: 0 | V93: 0 | W93: 0 | X93: 0
U94: 0 | V94: 0 | W94: 0 | X94: 0
U95: 0 | V95: 0 | W95: 0 | X95: 0
U96: 0 | V96: 0 | W96: 0 | X96: 0
U97: 0 | V97: 0 | W97: 0 | X97: 0
U98: 0 | V98: 0 | W98: 0 | X98: 0
U99: 0 | V99: 0 | W99: 0 | X99: 0
U100: 0 | V100: 0 | W100: 0 | X100: 0

Sheet TEC5
W2: =+IF($B$9>1,"AKA Nigel","") ->  | Y2: =+IF($B$9>1,"AKA Nigel","") -> 
B5: Centre for Education Statistics and Evaluation | P5: Class Name: | T5: Ms Sendall
U6: To convert to %
U7: Maximum value
G9: Basics | U9: =+IF($X$7=0,B9,((B9/$X$7)*100)) -> 0 | V9: =+IF($X$7=0,C9,((C9/$X$7)*100)) -> 0 | W9: =+IF($X$7=0,D9,((D9/$X$7)*100)) -> 0 | X9: =+IF($X$7=0,E9,((E9/$X$7)*100)) -> 0
H10: Count | J10: Sum | L10: Min | N10: Max | U10: 0 | V10: 0 | W10: 0 | X10: 0
H11: =COUNTIF(U9:X100,">1") -> 0 | J11: =SUM($U$9:$X$100) -> 0 | L11: =+MIN(IF($U$9:$X$100>1,$U$9:$X$100)) -> 0 | N11: =MAX($U$9:$X$100) -> 0 | U11: 0 | V11: 0 | W11: 0 | X11: 0
U12: 0 | V12: 0 | W12: 0 | X12: 0
G13: Measures of Central Tendency | U13: 0 | V13: 0 | W13: 0 | X13: 0 | AA13: Standard Deviation | AB13: =STDEV(IF(U9:X100<>0,U9:X100)) -> 
H14: Mean | J14: Median | L14: Mode 1 | N14: Mode 2,3 | U14: 0 | V14: 0 | W14: 0 | X14: 0 | Z14: Square Root of no: values | AB14: =SQRT(H11) -> 0
H15: =+AVERAGEIF($U$9:$X$100,">1",$U$9:$X$100) ->  | J15: =+MEDIAN(IF($U$9:$X$100<>0,$U$9:$X$100)) ->  | L15: =+AB19 ->  | N15: =+IF(AB20=L15,"",AB20) ->  | U15: 0 | V15: 0 | W15: 0 | X15: 0 | AA15: Standard Error (SE) | AB15: =+IF(AB14=0,0,(AB13/AB14)) -> 0
N16: =+IF(AB21=L15,"",AB21) ->  | U16: 0 | V16: 0 | W16: 0 | X16: 0 | AA16: T-distribution probability figure | AB16: 0.95 | AC16: =+IF(H11=0,0,VLOOKUP(H11,Sheet2!C2:D65,2,TRUE)) -> 0
U17: 0 | V17: 0 | W17: 0 | X17: 0 | AA17: SE x T-distribution figure | AB17: =IF(AC16="",0,AB15*AC16) -> 0
G18: Quartiles - Interquartile area/range | U18: 0 | V18: 0 | W18: 0 | X18: 0 | AA18: Variance | AB18: =+IF(H11=0,"",_xlfn.VAR.S($B$9:$E$100)) -> 
H19: Lower Quartile | J19: Middle Quartile | L19: Upper Quartile | U19: 0 | V19: 0 | W19: 0 | X19: 0 | AA19: Mode #1 | AB19: =+IF($X$7=0,AC19,((AC19/$X$7)*100)) ->  | AC19: =_xlfn.MODE.MULT($B$9:$E$100,$B$9:$E$100) -> 
H20: =IF(H11=0,0,QUARTILE(IF($U$9:$X$100>1,$U$9:$X$100),1)) -> 0 | J20: =IF(H11=0,0,QUARTILE(IF($U$9:$X$100>1,$U$9:$X$100),2)) -> 0 | L20: =IF(H11=0,0,QUARTILE(IF($U$9:$X$100>1,$U$9:$X$100),3)) -> 0 | U20: 0 | V20: 0 | W20: 0 | X20: 0 | AA20: Mode #2 | AB20: =+IF($X$7=0,AC20,((AC20/$X$7)*100)) -> 
U21: 0 | V21: 0 | W21: 0 | X21: 0 | AA21: Mode #3 | AB21: =+IF($X$7=0,AC21,((AC21/$X$7)*100)) -> 
H22: Interquartile Area | J22: =+H20 -> 0 | K22: to | L22: =+L20 -> 0 | U22: 0 | V22: 0 | W22: 0 | X22: 0 | AA22: Mode #4
U23: 0 | V23: 0 | W23: 0 | X23: 0
G24: Confidence Interval | U24: 0 | V24: 0 | W24: 0 | X24: 0 | AA24: q1-min | AB24: =+H20-L11 -> 0
G25: CI commences with sample size >5. The bigger the sample, the more accurate the CI. | U25: 0 | V25: 0 | W25: 0 | X25: 0 | AA25: q1 | AB25: =+H20 -> 0
G26: Confidence Interval | J26: =+IF(H11<=5,"",(H15-AB17)) ->  | K26: to | L26: =+IF(H11<=5,"",(H15+AB17)) ->  | U26: 0 | V26: 0 | W26: 0 | X26: 0 | AA26: median-q1 | AB26: =+J15-H20 -> 
U27: 0 | V27: 0 | W27: 0 | X27: 0 | AA27: median
U28: 0 | V28: 0 | W28: 0 | X28: 0 | AA28: Q3-median | AB28: =+L20-J15 -> 
U29: 0 | V29: 0 | W29: 0 | X29: 0 | AA29: Max-q3 | AB29: =+N11-L20 -> 0
U30: 0 | V30: 0 | W30: 0 | X30: 0 | AA30: Mean | AB30: =+H15 -> 
U31: 0 | V31: 0 | W31: 0 | X31: 0
I32: Percentile % | J32: 0.9 | L32: =IF(H11=0,"",PERCENTILE($B$9:$E$100,J32)) ->  | U32: 0 | V32: 0 | W32: 0 | X32: 0 | AA32: =+J26 ->  | AB32: =+AC32-AA32 ->  | AC32: =+L26 -> 
U33: 0 | V33: 0 | W33: 0 | X33: 0
H34: Standard Deviation | J34: =+AB13 ->  | U34: 0 | V34: 0 | W34: 0 | X34: 0
U35: 0 | V35: 0 | W35: 0 | X35: 0
U36: 0 | V36: 0 | W36: 0 | X36: 0
U37: 0 | V37: 0 | W37: 0 | X37: 0
U38: 0 | V38: 0 | W38: 0 | X38: 0
U39: 0 | V39: 0 | W39: 0 | X39: 0
U40: 0 | V40: 0 | W40: 0 | X40: 0
U41: =+IF($X$7=0,B41,((B41/$X$7)*100)) -> 0 | V41: =+IF($X$7=0,C41,((C41/$X$7)*100)) -> 0 | W41: =+IF($X$7=0,D41,((D41/$X$7)*100)) -> 0 | X41: =+IF($X$7=0,E41,((E41/$X$7)*100)) -> 0
U42: 0 | V42: 0 | W42: 0 | X42: 0
U43: 0 | V43: 0 | W43: 0 | X43: 0
U44: 0 | V44: 0 | W44: 0 | X44: 0
U45: 0 | V45: 0 | W45: 0 | X45: 0
U46: 0 | V46: 0 | W46: 0 | X46: 0
U47: 0 | V47: 0 | W47: 0 | X47: 0
U48: 0 | V48: 0 | W48: 0 | X48: 0
U49: 0 | V49: 0 | W49: 0 | X49: 0
U50: 0 | V50: 0 | W50: 0 | X50: 0
U51: 0 | V51: 0 | W51: 0 | X51: 0
U52: 0 | V52: 0 | W52: 0 | X52: 0
U53: 0 | V53: 0 | W53: 0 | X53: 0
U54: 0 | V54: 0 | W54: 0 | X54: 0
U55: 0 | V55: 0 | W55: 0 | X55: 0
U56: 0 | V56: 0 | W56: 0 | X56: 0
U57: 0 | V57: 0 | W57: 0 | X57: 0
U58: 0 | V58: 0 | W58: 0 | X58: 0
U59: 0 | V59: 0 | W59: 0 | X59: 0
U60: 0 | V60: 0 | W60: 0 | X60: 0
U61: 0 | V61: 0 | W61: 0 | X61: 0
U62: 0 | V62: 0 | W62: 0 | X62: 0
U63: 0 | V63: 0 | W63: 0 | X63: 0
U64: 0 | V64: 0 | W64: 0 | X64: 0
U65: 0 | V65: 0 | W65: 0 | X65: 0
U66: 0 | V66: 0 | W66: 0 | X66: 0
U67: 0 | V67: 0 | W67: 0 | X67: 0
U68: 0 | V68: 0 | W68: 0 | X68: 0
U69: 0 | V69: 0 | W69: 0 | X69: 0
U70: 0 | V70: 0 | W70: 0 | X70: 0
U71: 0 | V71: 0 | W71: 0 | X71: 0
U72: 0 | V72: 0 | W72: 0 | X72: 0
U73: =+IF($X$7=0,B73,((B73/$X$7)*100)) -> 0 | V73: =+IF($X$7=0,C73,((C73/$X$7)*100)) -> 0 | W73: =+IF($X$7=0,D73,((D73/$X$7)*100)) -> 0 | X73: =+IF($X$7=0,E73,((E73/$X$7)*100)) -> 0
U74: 0 | V74: 0 | W74: 0 | X74: 0
U75: 0 | V75: 0 | W75: 0 | X75: 0
U76: 0 | V76: 0 | W76: 0 | X76: 0
U77: 0 | V77: 0 | W77: 0 | X77: 0
U78: 0 | V78: 0 | W78: 0 | X78: 0
U79: 0 | V79: 0 | W79: 0 | X79: 0
U80: 0 | V80: 0 | W80: 0 | X80: 0
U81: 0 | V81: 0 | W81: 0 | X81: 0
U82: 0 | V82: 0 | W82: 0 | X82: 0
U83: 0 | V83: 0 | W83: 0 | X83: 0
U84: 0 | V84: 0 | W84: 0 | X84: 0
U85: 0 | V85: 0 | W85: 0 | X85: 0
U86: 0 | V86: 0 | W86: 0 | X86: 0
U87: 0 | V87: 0 | W87: 0 | X87: 0
U88: 0 | V88: 0 | W88: 0 | X88: 0
U89: 0 | V89: 0 | W89: 0 | X89: 0
U90: 0 | V90: 0 | W90: 0 | X90: 0
U91: 0 | V91: 0 | W91: 0 | X91: 0
U92: 0 | V92: 0 | W92: 0 | X92: 0
U93: 0 | V93: 0 | W93: 0 | X93: 0
U94: 0 | V94: 0 | W94: 0 | X94: 0
U95: 0 | V95: 0 | W95: 0 | X95: 0
U96: 0 | V96: 0 | W96: 0 | X96: 0
U97: 0 | V97: 0 | W97: 0 | X97: 0
U98: 0 | V98: 0 | W98: 0 | X98: 0
U99: 0 | V99: 0 | W99: 0 | X99: 0
U100: 0 | V100: 0 | W100: 0 | X100: 0

Sheet TEC6
W2: =+IF($B$9>1,"AKA Nigel","") ->  | Y2: =+IF($B$9>1,"AKA Nigel","") -> 
B5: Centre for Education Statistics and Evaluation | P5: Class Name: | T5: Mr Chifley
U6: To convert to %
U7: Maximum value
G9: Basics | U9: =+IF($X$7=0,B9,((B9/$X$7)*100)) -> 0 | V9: =+IF($X$7=0,C9,((C9/$X$7)*100)) -> 0 | W9: =+IF($X$7=0,D9,((D9/$X$7)*100)) -> 0 | X9: =+IF($X$7=0,E9,((E9/$X$7)*100)) -> 0
H10: Count | J10: Sum | L10: Min | N10: Max | U10: 0 | V10: 0 | W10: 0 | X10: 0
H11: =COUNTIF(U9:X100,">1") -> 0 | J11: =SUM($U$9:$X$100) -> 0 | L11: =+MIN(IF($U$9:$X$100>1,$U$9:$X$100)) -> 0 | N11: =MAX($U$9:$X$100) -> 0 | U11: 0 | V11: 0 | W11: 0 | X11: 0
U12: 0 | V12: 0 | W12: 0 | X12: 0
G13: Measures of Central Tendency | U13: 0 | V13: 0 | W13: 0 | X13: 0 | AA13: Standard Deviation | AB13: =STDEV(IF(U9:X100<>0,U9:X100)) -> 
H14: Mean | J14: Median | L14: Mode 1 | N14: Mode 2,3 | U14: 0 | V14: 0 | W14: 0 | X14: 0 | Z14: Square Root of no: values | AB14: =SQRT(H11) -> 0
H15: =+AVERAGEIF($U$9:$X$100,">1",$U$9:$X$100) ->  | J15: =+MEDIAN(IF($U$9:$X$100<>0,$U$9:$X$100)) ->  | L15: =+AB19 ->  | N15: =+IF(AB20=L15,"",AB20) ->  | U15: 0 | V15: 0 | W15: 0 | X15: 0 | AA15: Standard Error (SE) | AB15: =+IF(AB14=0,0,(AB13/AB14)) -> 0
N16: =+IF(AB21=L15,"",AB21) ->  | U16: 0 | V16: 0 | W16: 0 | X16: 0 | AA16: T-distribution probability figure | AB16: 0.95 | AC16: =+IF(H11=0,0,VLOOKUP(H11,Sheet2!C2:D65,2,TRUE)) -> 0
U17: 0 | V17: 0 | W17: 0 | X17: 0 | AA17: SE x T-distribution figure | AB17: =IF(AC16="",0,AB15*AC16) -> 0
G18: Quartiles - Interquartile area/range | U18: 0 | V18: 0 | W18: 0 | X18: 0 | AA18: Variance | AB18: =+IF(H11=0,"",_xlfn.VAR.S($B$9:$E$100)) -> 
H19: Lower Quartile | J19: Middle Quartile | L19: Upper Quartile | U19: 0 | V19: 0 | W19: 0 | X19: 0 | AA19: Mode #1 | AB19: =+IF($X$7=0,AC19,((AC19/$X$7)*100)) ->  | AC19: =_xlfn.MODE.MULT($B$9:$E$100,$B$9:$E$100) -> 
H20: =IF(H11=0,0,QUARTILE(IF($U$9:$X$100>1,$U$9:$X$100),1)) -> 0 | J20: =IF(H11=0,0,QUARTILE(IF($U$9:$X$100>1,$U$9:$X$100),2)) -> 0 | L20: =IF(H11=0,0,QUARTILE(IF($U$9:$X$100>1,$U$9:$X$100),3)) -> 0 | U20: 0 | V20: 0 | W20: 0 | X20: 0 | AA20: Mode #2 | AB20: =+IF($X$7=0,AC20,((AC20/$X$7)*100)) -> 
U21: 0 | V21: 0 | W21: 0 | X21: 0 | AA21: Mode #3 | AB21: =+IF($X$7=0,AC21,((AC21/$X$7)*100)) -> 
H22: Interquartile Area | J22: =+H20 -> 0 | K22: to | L22: =+L20 -> 0 | U22: 0 | V22: 0 | W22: 0 | X22: 0 | AA22: Mode #4
U23: 0 | V23: 0 | W23: 0 | X23: 0
G24: Confidence Interval | U24: 0 | V24: 0 | W24: 0 | X24: 0 | AA24: q1-min | AB24: =+H20-L11 -> 0
G25: CI commences with sample size >5. The bigger the sample, the more accurate the CI. | U25: 0 | V25: 0 | W25: 0 | X25: 0 | AA25: q1 | AB25: =+H20 -> 0
G26: Confidence Interval | J26: =+IF(H11<=5,"",(H15-AB17)) ->  | K26: to | L26: =+IF(H11<=5,"",(H15+AB17)) ->  | U26: 0 | V26: 0 | W26: 0 | X26: 0 | AA26: median-q1 | AB26: =+J15-H20 -> 
U27: 0 | V27: 0 | W27: 0 | X27: 0 | AA27: median
U28: 0 | V28: 0 | W28: 0 | X28: 0 | AA28: Q3-median | AB28: =+L20-J15 -> 
U29: 0 | V29: 0 | W29: 0 | X29: 0 | AA29: Max-q3 | AB29: =+N11-L20 -> 0
U30: 0 | V30: 0 | W30: 0 | X30: 0 | AA30: Mean | AB30: =+H15 -> 
U31: 0 | V31: 0 | W31: 0 | X31: 0
I32: Percentile % | J32: 0.9 | L32: =IF(H11=0,"",PERCENTILE($B$9:$E$100,J32)) ->  | U32: 0 | V32: 0 | W32: 0 | X32: 0 | AA32: =+J26 ->  | AB32: =+AC32-AA32 ->  | AC32: =+L26 -> 
U33: 0 | V33: 0 | W33: 0 | X33: 0
H34: Standard Deviation | J34: =+AB13 ->  | U34: 0 | V34: 0 | W34: 0 | X34: 0
U35: 0 | V35: 0 | W35: 0 | X35: 0
U36: 0 | V36: 0 | W36: 0 | X36: 0
U37: 0 | V37: 0 | W37: 0 | X37: 0
U38: 0 | V38: 0 | W38: 0 | X38: 0
U39: 0 | V39: 0 | W39: 0 | X39: 0
U40: 0 | V40: 0 | W40: 0 | X40: 0
U41: =+IF($X$7=0,B41,((B41/$X$7)*100)) -> 0 | V41: =+IF($X$7=0,C41,((C41/$X$7)*100)) -> 0 | W41: =+IF($X$7=0,D41,((D41/$X$7)*100)) -> 0 | X41: =+IF($X$7=0,E41,((E41/$X$7)*100)) -> 0
U42: 0 | V42: 0 | W42: 0 | X42: 0
U43: 0 | V43: 0 | W43: 0 | X43: 0
U44: 0 | V44: 0 | W44: 0 | X44: 0
U45: 0 | V45: 0 | W45: 0 | X45: 0
U46: 0 | V46: 0 | W46: 0 | X46: 0
U47: 0 | V47: 0 | W47: 0 | X47: 0
U48: 0 | V48: 0 | W48: 0 | X48: 0
U49: 0 | V49: 0 | W49: 0 | X49: 0
U50: 0 | V50: 0 | W50: 0 | X50: 0
U51: 0 | V51: 0 | W51: 0 | X51: 0
U52: 0 | V52: 0 | W52: 0 | X52: 0
U53: 0 | V53: 0 | W53: 0 | X53: 0
U54: 0 | V54: 0 | W54: 0 | X54: 0
U55: 0 | V55: 0 | W55: 0 | X55: 0
U56: 0 | V56: 0 | W56: 0 | X56: 0
U57: 0 | V57: 0 | W57: 0 | X57: 0
U58: 0 | V58: 0 | W58: 0 | X58: 0
U59: 0 | V59: 0 | W59: 0 | X59: 0
U60: 0 | V60: 0 | W60: 0 | X60: 0
U61: 0 | V61: 0 | W61: 0 | X61: 0
U62: 0 | V62: 0 | W62: 0 | X62: 0
U63: 0 | V63: 0 | W63: 0 | X63: 0
U64: 0 | V64: 0 | W64: 0 | X64: 0
U65: 0 | V65: 0 | W65: 0 | X65: 0
U66: 0 | V66: 0 | W66: 0 | X66: 0
U67: 0 | V67: 0 | W67: 0 | X67: 0
U68: 0 | V68: 0 | W68: 0 | X68: 0
U69: 0 | V69: 0 | W69: 0 | X69: 0
U70: 0 | V70: 0 | W70: 0 | X70: 0
U71: 0 | V71: 0 | W71: 0 | X71: 0
U72: 0 | V72: 0 | W72: 0 | X72: 0
U73: =+IF($X$7=0,B73,((B73/$X$7)*100)) -> 0 | V73: =+IF($X$7=0,C73,((C73/$X$7)*100)) -> 0 | W73: =+IF($X$7=0,D73,((D73/$X$7)*100)) -> 0 | X73: =+IF($X$7=0,E73,((E73/$X$7)*100)) -> 0
U74: 0 | V74: 0 | W74: 0 | X74: 0
U75: 0 | V75: 0 | W75: 0 | X75: 0
U76: 0 | V76: 0 | W76: 0 | X76: 0
U77: 0 | V77: 0 | W77: 0 | X77: 0
U78: 0 | V78: 0 | W78: 0 | X78: 0
U79: 0 | V79: 0 | W79: 0 | X79: 0
U80: 0 | V80: 0 | W80: 0 | X80: 0
U81: 0 | V81: 0 | W81: 0 | X81: 0
U82: 0 | V82: 0 | W82: 0 | X82: 0
U83: 0 | V83: 0 | W83: 0 | X83: 0
U84: 0 | V84: 0 | W84: 0 | X84: 0
U85: 0 | V85: 0 | W85: 0 | X85: 0
U86: 0 | V86: 0 | W86: 0 | X86: 0
U87: 0 | V87: 0 | W87: 0 | X87: 0
U88: 0 | V88: 0 | W88: 0 | X88: 0
U89: 0 | V89: 0 | W89: 0 | X89: 0
U90: 0 | V90: 0 | W90: 0 | X90: 0
U91: 0 | V91: 0 | W91: 0 | X91: 0
U92: 0 | V92: 0 | W92: 0 | X92: 0
U93: 0 | V93: 0 | W93: 0 | X93: 0
U94: 0 | V94: 0 | W94: 0 | X94: 0
U95: 0 | V95: 0 | W95: 0 | X95: 0
U96: 0 | V96: 0 | W96: 0 | X96: 0
U97: 0 | V97: 0 | W97: 0 | X97: 0
U98: 0 | V98: 0 | W98: 0 | X98: 0
U99: 0 | V99: 0 | W99: 0 | X99: 0
U100: 0 | V100: 0 | W100: 0 | X100: 0

Sheet Sheet8 (hidden)
B5: Centre for Education Statistics and Evaluation | AJ5: Class Name:
B9: =+IF('TEC1'!U9=0,"",'TEC1'!U9) ->  | C9: =+IF('TEC1'!V9=0,"",'TEC1'!V9) ->  | D9: =+IF('TEC1'!W9=0,"",'TEC1'!W9) ->  | E9: =+IF('TEC1'!X9=0,"",'TEC1'!X9) ->  | F9: =+'TEC2'!U9 -> 0 | G9: =+'TEC2'!V9 -> 0 | H9: =+'TEC2'!W9 -> 0 | I9: =+'TEC2'!X9 -> 0 | J9: =+'TEC3'!U9 -> 0 | K9: =+'TEC3'!V9 -> 0 | L9: =+'TEC3'!W9 -> 0 | M9: =+'TEC3'!X9 -> 0 | N9: =+'TEC4'!U9 -> 0 | O9: =+'TEC4'!V9 -> 0 | P9: =+'TEC4'!W9 -> 0 | Q9: =+'TEC4'!X9 -> 0 | R9: =+'TEC5'!U9 -> 0 | S9: =+'TEC5'!V9 -> 0 | T9: =+'TEC5'!W9 -> 0 | U9: =+'TEC5'!X9 -> 0 | V9: =+'TEC6'!U9 -> 0 | W9: =+'TEC6'!V9 -> 0 | X9: =+'TEC6'!W9 -> 0 | Y9: =+'TEC6'!X9 -> 0 | AA9: Basics
B10: =+IF('TEC1'!U10=0,"",'TEC1'!U10) ->  | C10: =+IF('TEC1'!V10=0,"",'TEC1'!V10) ->  | D10: =+IF('TEC1'!W10=0,"",'TEC1'!W10) ->  | E10: =+IF('TEC1'!X10=0,"",'TEC1'!X10) ->  | F10: =+'TEC2'!U10 -> 0 | G10: =+'TEC2'!V10 -> 0 | H10: =+'TEC2'!W10 -> 0 | I10: =+'TEC2'!X10 -> 0 | J10: =+'TEC3'!U10 -> 0 | K10: =+'TEC3'!V10 -> 0 | L10: =+'TEC3'!W10 -> 0 | M10: =+'TEC3'!X10 -> 0 | N10: =+'TEC4'!U10 -> 0 | O10: =+'TEC4'!V10 -> 0 | P10: =+'TEC4'!W10 -> 0 | Q10: =+'TEC4'!X10 -> 0 | R10: =+'TEC5'!U10 -> 0 | S10: =+'TEC5'!V10 -> 0 | T10: =+'TEC5'!W10 -> 0 | U10: =+'TEC5'!X10 -> 0 | V10: =+'TEC6'!U10 -> 0 | W10: =+'TEC6'!V10 -> 0 | X10: =+'TEC6'!W10 -> 0 | Y10: =+'TEC6'!X10 -> 0 | AB10: Count | AD10: Sum | AF10: Min | AH10: Max
B11: =+IF('TEC1'!U11=0,"",'TEC1'!U11) ->  | C11: =+IF('TEC1'!V11=0,"",'TEC1'!V11) ->  | D11: =+IF('TEC1'!W11=0,"",'TEC1'!W11) ->  | E11: =+IF('TEC1'!X11=0,"",'TEC1'!X11) ->  | F11: =+'TEC2'!U11 -> 0 | G11: =+'TEC2'!V11 -> 0 | H11: =+'TEC2'!W11 -> 0 | I11: =+'TEC2'!X11 -> 0 | J11: =+'TEC3'!U11 -> 0 | K11: =+'TEC3'!V11 -> 0 | L11: =+'TEC3'!W11 -> 0 | M11: =+'TEC3'!X11 -> 0 | N11: =+'TEC4'!U11 -> 0 | O11: =+'TEC4'!V11 -> 0 | P11: =+'TEC4'!W11 -> 0 | Q11: =+'TEC4'!X11 -> 0 | R11: =+'TEC5'!U11 -> 0 | S11: =+'TEC5'!V11 -> 0 | T11: =+'TEC5'!W11 -> 0 | U11: =+'TEC5'!X11 -> 0 | V11: =+'TEC6'!U11 -> 0 | W11: =+'TEC6'!V11 -> 0 | X11: =+'TEC6'!W11 -> 0 | Y11: =+'TEC6'!X11 -> 0 | AB11: =COUNTIF($B$9:$Y$100,">1") -> 0 | AD11: =SUM(B9:Y100) -> 0 | AF11: =+MIN(IF(B9:Y100>1,B9:Y100)) -> 0 | AH11: =MAX(B9:Y100) -> 0
B12: =+IF('TEC1'!U12=0,"",'TEC1'!U12) ->  | C12: =+IF('TEC1'!V12=0,"",'TEC1'!V12) ->  | D12: =+IF('TEC1'!W12=0,"",'TEC1'!W12) ->  | E12: =+IF('TEC1'!X12=0,"",'TEC1'!X12) ->  | F12: =+'TEC2'!U12 -> 0 | G12: =+'TEC2'!V12 -> 0 | H12: =+'TEC2'!W12 -> 0 | I12: =+'TEC2'!X12 -> 0 | J12: =+'TEC3'!U12 -> 0 | K12: =+'TEC3'!V12 -> 0 | L12: =+'TEC3'!W12 -> 0 | M12: =+'TEC3'!X12 -> 0 | N12: =+'TEC4'!U12 -> 0 | O12: =+'TEC4'!V12 -> 0 | P12: =+'TEC4'!W12 -> 0 | Q12: =+'TEC4'!X12 -> 0 | R12: =+'TEC5'!U12 -> 0 | S12: =+'TEC5'!V12 -> 0 | T12: =+'TEC5'!W12 -> 0 | U12: =+'TEC5'!X12 -> 0 | V12: =+'TEC6'!U12 -> 0 | W12: =+'TEC6'!V12 -> 0 | X12: =+'TEC6'!W12 -> 0 | Y12: =+'TEC6'!X12 -> 0
B13: =+IF('TEC1'!U13=0,"",'TEC1'!U13) ->  | C13: =+IF('TEC1'!V13=0,"",'TEC1'!V13) ->  | D13: =+IF('TEC1'!W13=0,"",'TEC1'!W13) ->  | E13: =+IF('TEC1'!X13=0,"",'TEC1'!X13) ->  | F13: =+'TEC2'!U13 -> 0 | G13: =+'TEC2'!V13 -> 0 | H13: =+'TEC2'!W13 -> 0 | I13: =+'TEC2'!X13 -> 0 | J13: =+'TEC3'!U13 -> 0 | K13: =+'TEC3'!V13 -> 0 | L13: =+'TEC3'!W13 -> 0 | M13: =+'TEC3'!X13 -> 0 | N13: =+'TEC4'!U13 -> 0 | O13: =+'TEC4'!V13 -> 0 | P13: =+'TEC4'!W13 -> 0 | Q13: =+'TEC4'!X13 -> 0 | R13: =+'TEC5'!U13 -> 0 | S13: =+'TEC5'!V13 -> 0 | T13: =+'TEC5'!W13 -> 0 | U13: =+'TEC5'!X13 -> 0 | V13: =+'TEC6'!U13 -> 0 | W13: =+'TEC6'!V13 -> 0 | X13: =+'TEC6'!W13 -> 0 | Y13: =+'TEC6'!X13 -> 0 | AA13: Measures of Central Tendency | AP13: Standard Deviation | AQ13: =STDEV(IF((B9:Y100<>0)*(B9:Y100>0),B9:Y100)) -> 
B14: =+IF('TEC1'!U14=0,"",'TEC1'!U14) ->  | C14: =+IF('TEC1'!V14=0,"",'TEC1'!V14) ->  | D14: =+IF('TEC1'!W14=0,"",'TEC1'!W14) ->  | E14: =+IF('TEC1'!X14=0,"",'TEC1'!X14) ->  | F14: =+'TEC2'!U14 -> 0 | G14: =+'TEC2'!V14 -> 0 | H14: =+'TEC2'!W14 -> 0 | I14: =+'TEC2'!X14 -> 0 | J14: =+'TEC3'!U14 -> 0 | K14: =+'TEC3'!V14 -> 0 | L14: =+'TEC3'!W14 -> 0 | M14: =+'TEC3'!X14 -> 0 | N14: =+'TEC4'!U14 -> 0 | O14: =+'TEC4'!V14 -> 0 | P14: =+'TEC4'!W14 -> 0 | Q14: =+'TEC4'!X14 -> 0 | R14: =+'TEC5'!U14 -> 0 | S14: =+'TEC5'!V14 -> 0 | T14: =+'TEC5'!W14 -> 0 | U14: =+'TEC5'!X14 -> 0 | V14: =+'TEC6'!U14 -> 0 | W14: =+'TEC6'!V14 -> 0 | X14: =+'TEC6'!W14 -> 0 | Y14: =+'TEC6'!X14 -> 0 | AB14: Mean | AD14: Median | AF14: Mode 1 | AH14: Mode 2,3 | AO14: Square Root of no: values | AQ14: =SQRT(AB11) -> 0
B15: =+IF('TEC1'!U15=0,"",'TEC1'!U15) ->  | C15: =+IF('TEC1'!V15=0,"",'TEC1'!V15) ->  | D15: =+IF('TEC1'!W15=0,"",'TEC1'!W15) ->  | E15: =+IF('TEC1'!X15=0,"",'TEC1'!X15) ->  | F15: =+'TEC2'!U15 -> 0 | G15: =+'TEC2'!V15 -> 0 | H15: =+'TEC2'!W15 -> 0 | I15: =+'TEC2'!X15 -> 0 | J15: =+'TEC3'!U15 -> 0 | K15: =+'TEC3'!V15 -> 0 | L15: =+'TEC3'!W15 -> 0 | M15: =+'TEC3'!X15 -> 0 | N15: =+'TEC4'!U15 -> 0 | O15: =+'TEC4'!V15 -> 0 | P15: =+'TEC4'!W15 -> 0 | Q15: =+'TEC4'!X15 -> 0 | R15: =+'TEC5'!U15 -> 0 | S15: =+'TEC5'!V15 -> 0 | T15: =+'TEC5'!W15 -> 0 | U15: =+'TEC5'!X15 -> 0 | V15: =+'TEC6'!U15 -> 0 | W15: =+'TEC6'!V15 -> 0 | X15: =+'TEC6'!W15 -> 0 | Y15: =+'TEC6'!X15 -> 0 | AB15: =+AVERAGEIF(B9:Y100,">1",B9:Y100) ->  | AD15: =+MEDIAN(IF(B9:Y100<>0,B9:Y100)) ->  | AF15: =+AQ19 -> 0 | AH15: =+IF(AQ20=AF15,"",AQ20) ->  | AP15: Standard Error (SE) | AQ15: =+IF(AQ14=0,0,(AQ13/AQ14)) -> 0
B16: =+IF('TEC1'!U16=0,"",'TEC1'!U16) ->  | C16: =+IF('TEC1'!V16=0,"",'TEC1'!V16) ->  | D16: =+IF('TEC1'!W16=0,"",'TEC1'!W16) ->  | E16: =+IF('TEC1'!X16=0,"",'TEC1'!X16) ->  | F16: =+'TEC2'!U16 -> 0 | G16: =+'TEC2'!V16 -> 0 | H16: =+'TEC2'!W16 -> 0 | I16: =+'TEC2'!X16 -> 0 | J16: =+'TEC3'!U16 -> 0 | K16: =+'TEC3'!V16 -> 0 | L16: =+'TEC3'!W16 -> 0 | M16: =+'TEC3'!X16 -> 0 | N16: =+'TEC4'!U16 -> 0 | O16: =+'TEC4'!V16 -> 0 | P16: =+'TEC4'!W16 -> 0 | Q16: =+'TEC4'!X16 -> 0 | R16: =+'TEC5'!U16 -> 0 | S16: =+'TEC5'!V16 -> 0 | T16: =+'TEC5'!W16 -> 0 | U16: =+'TEC5'!X16 -> 0 | V16: =+'TEC6'!U16 -> 0 | W16: =+'TEC6'!V16 -> 0 | X16: =+'TEC6'!W16 -> 0 | Y16: =+'TEC6'!X16 -> 0 | AH16: =+IF(AQ21=AF15,"",AQ21) ->  | AP16: T-distribution probability figure | AQ16: 0.95 | AR16: 2.093
B17: =+IF('TEC1'!U17=0,"",'TEC1'!U17) ->  | C17: =+IF('TEC1'!V17=0,"",'TEC1'!V17) ->  | D17: =+IF('TEC1'!W17=0,"",'TEC1'!W17) ->  | E17: =+IF('TEC1'!X17=0,"",'TEC1'!X17) ->  | F17: =+'TEC2'!U17 -> 0 | G17: =+'TEC2'!V17 -> 0 | H17: =+'TEC2'!W17 -> 0 | I17: =+'TEC2'!X17 -> 0 | J17: =+'TEC3'!U17 -> 0 | K17: =+'TEC3'!V17 -> 0 | L17: =+'TEC3'!W17 -> 0 | M17: =+'TEC3'!X17 -> 0 | N17: =+'TEC4'!U17 -> 0 | O17: =+'TEC4'!V17 -> 0 | P17: =+'TEC4'!W17 -> 0 | Q17: =+'TEC4'!X17 -> 0 | R17: =+'TEC5'!U17 -> 0 | S17: =+'TEC5'!V17 -> 0 | T17: =+'TEC5'!W17 -> 0 | U17: =+'TEC5'!X17 -> 0 | V17: =+'TEC6'!U17 -> 0 | W17: =+'TEC6'!V17 -> 0 | X17: =+'TEC6'!W17 -> 0 | Y17: =+'TEC6'!X17 -> 0 | AP17: SE x T-distribution figure | AQ17: =IF(AR16="",0,AQ15*AR16) -> 0
B18: =+IF('TEC1'!U18=0,"",'TEC1'!U18) ->  | C18: =+IF('TEC1'!V18=0,"",'TEC1'!V18) ->  | D18: =+IF('TEC1'!W18=0,"",'TEC1'!W18) ->  | E18: =+IF('TEC1'!X18=0,"",'TEC1'!X18) ->  | F18: =+'TEC2'!U18 -> 0 | G18: =+'TEC2'!V18 -> 0 | H18: =+'TEC2'!W18 -> 0 | I18: =+'TEC2'!X18 -> 0 | J18: =+'TEC3'!U18 -> 0 | K18: =+'TEC3'!V18 -> 0 | L18: =+'TEC3'!W18 -> 0 | M18: =+'TEC3'!X18 -> 0 | N18: =+'TEC4'!U18 -> 0 | O18: =+'TEC4'!V18 -> 0 | P18: =+'TEC4'!W18 -> 0 | Q18: =+'TEC4'!X18 -> 0 | R18: =+'TEC5'!U18 -> 0 | S18: =+'TEC5'!V18 -> 0 | T18: =+'TEC5'!W18 -> 0 | U18: =+'TEC5'!X18 -> 0 | V18: =+'TEC6'!U18 -> 0 | W18: =+'TEC6'!V18 -> 0 | X18: =+'TEC6'!W18 -> 0 | Y18: =+'TEC6'!X18 -> 0 | AA18: Quartiles - Interquartile area/range | AP18: Variance | AQ18: =+IF(AB11=0,"",_xlfn.VAR.S(B9:Y100)) ->  | AT18: =55.56-6.67 -> 48.89
B19: =+IF('TEC1'!U19=0,"",'TEC1'!U19) ->  | C19: =+IF('TEC1'!V19=0,"",'TEC1'!V19) ->  | D19: =+IF('TEC1'!W19=0,"",'TEC1'!W19) ->  | E19: =+IF('TEC1'!X19=0,"",'TEC1'!X19) ->  | F19: =+'TEC2'!U19 -> 0 | G19: =+'TEC2'!V19 -> 0 | H19: =+'TEC2'!W19 -> 0 | I19: =+'TEC2'!X19 -> 0 | J19: =+'TEC3'!U19 -> 0 | K19: =+'TEC3'!V19 -> 0 | L19: =+'TEC3'!W19 -> 0 | M19: =+'TEC3'!X19 -> 0 | N19: =+'TEC4'!U19 -> 0 | O19: =+'TEC4'!V19 -> 0 | P19: =+'TEC4'!W19 -> 0 | Q19: =+'TEC4'!X19 -> 0 | R19: =+'TEC5'!U19 -> 0 | S19: =+'TEC5'!V19 -> 0 | T19: =+'TEC5'!W19 -> 0 | U19: =+'TEC5'!X19 -> 0 | V19: =+'TEC6'!U19 -> 0 | W19: =+'TEC6'!V19 -> 0 | X19: =+'TEC6'!W19 -> 0 | Y19: =+'TEC6'!X19 -> 0 | AB19: Lower Quartile | AD19: Middle Quartile | AF19: Upper Quartile | AP19: Mode #1 | AQ19: =+IF($T$7=0,AR19,((AR19/$T$7)*100)) -> 0
B20: =+IF('TEC1'!U20=0,"",'TEC1'!U20) ->  | C20: =+IF('TEC1'!V20=0,"",'TEC1'!V20) ->  | D20: =+IF('TEC1'!W20=0,"",'TEC1'!W20) ->  | E20: =+IF('TEC1'!X20=0,"",'TEC1'!X20) ->  | F20: =+'TEC2'!U20 -> 0 | G20: =+'TEC2'!V20 -> 0 | H20: =+'TEC2'!W20 -> 0 | I20: =+'TEC2'!X20 -> 0 | J20: =+'TEC3'!U20 -> 0 | K20: =+'TEC3'!V20 -> 0 | L20: =+'TEC3'!W20 -> 0 | M20: =+'TEC3'!X20 -> 0 | N20: =+'TEC4'!U20 -> 0 | O20: =+'TEC4'!V20 -> 0 | P20: =+'TEC4'!W20 -> 0 | Q20: =+'TEC4'!X20 -> 0 | R20: =+'TEC5'!U20 -> 0 | S20: =+'TEC5'!V20 -> 0 | T20: =+'TEC5'!W20 -> 0 | U20: =+'TEC5'!X20 -> 0 | V20: =+'TEC6'!U20 -> 0 | W20: =+'TEC6'!V20 -> 0 | X20: =+'TEC6'!W20 -> 0 | Y20: =+'TEC6'!X20 -> 0 | AB20: =IF(AB11=0,0,QUARTILE(IF($B$9:$Y$100>1,$B$9:$Y$100),1)) -> 0 | AD20: =IF(AD11=0,0,QUARTILE(IF($B$9:$Y$100>1,$B$9:$Y$100),2)) -> 0 | AF20: =IF(AF11=0,0,QUARTILE(IF($B$9:$Y$100>1,$B$9:$Y$100),3)) -> 0 | AP20: Mode #2 | AQ20: =+IF($T$7=0,AR20,((AR20/$T$7)*100)) -> 0
B21: =+IF('TEC1'!U21=0,"",'TEC1'!U21) ->  | C21: =+IF('TEC1'!V21=0,"",'TEC1'!V21) ->  | D21: =+IF('TEC1'!W21=0,"",'TEC1'!W21) ->  | E21: =+IF('TEC1'!X21=0,"",'TEC1'!X21) ->  | F21: =+'TEC2'!U21 -> 0 | G21: =+'TEC2'!V21 -> 0 | H21: =+'TEC2'!W21 -> 0 | I21: =+'TEC2'!X21 -> 0 | J21: =+'TEC3'!U21 -> 0 | K21: =+'TEC3'!V21 -> 0 | L21: =+'TEC3'!W21 -> 0 | M21: =+'TEC3'!X21 -> 0 | N21: =+'TEC4'!U21 -> 0 | O21: =+'TEC4'!V21 -> 0 | P21: =+'TEC4'!W21 -> 0 | Q21: =+'TEC4'!X21 -> 0 | R21: =+'TEC5'!U21 -> 0 | S21: =+'TEC5'!V21 -> 0 | T21: =+'TEC5'!W21 -> 0 | U21: =+'TEC5'!X21 -> 0 | V21: =+'TEC6'!U21 -> 0 | W21: =+'TEC6'!V21 -> 0 | X21: =+'TEC6'!W21 -> 0 | Y21: =+'TEC6'!X21 -> 0 | AP21: Mode #3 | AQ21: =+IF($T$7=0,AR21,((AR21/$T$7)*100)) -> 0
B22: =+IF('TEC1'!U22=0,"",'TEC1'!U22) ->  | C22: =+IF('TEC1'!V22=0,"",'TEC1'!V22) ->  | D22: =+IF('TEC1'!W22=0,"",'TEC1'!W22) ->  | E22: =+IF('TEC1'!X22=0,"",'TEC1'!X22) ->  | F22: =+'TEC2'!U22 -> 0 | G22: =+'TEC2'!V22 -> 0 | H22: =+'TEC2'!W22 -> 0 | I22: =+'TEC2'!X22 -> 0 | J22: =+'TEC3'!U22 -> 0 | K22: =+'TEC3'!V22 -> 0 | L22: =+'TEC3'!W22 -> 0 | M22: =+'TEC3'!X22 -> 0 | N22: =+'TEC4'!U22 -> 0 | O22: =+'TEC4'!V22 -> 0 | P22: =+'TEC4'!W22 -> 0 | Q22: =+'TEC4'!X22 -> 0 | R22: =+'TEC5'!U22 -> 0 | S22: =+'TEC5'!V22 -> 0 | T22: =+'TEC5'!W22 -> 0 | U22: =+'TEC5'!X22 -> 0 | V22: =+'TEC6'!U22 -> 0 | W22: =+'TEC6'!V22 -> 0 | X22: =+'TEC6'!W22 -> 0 | Y22: =+'TEC6'!X22 -> 0 | AB22: Interquartile Area | AD22: =+AB20 -> 0 | AE22: to | AF22: =+AF20 -> 0 | AP22: Mode #4 | AQ22: =+IF($T$7=0,AR22,((AR22/$T$7)*100)) -> 0
B23: =+IF('TEC1'!U23=0,"",'TEC1'!U23) ->  | C23: =+IF('TEC1'!V23=0,"",'TEC1'!V23) ->  | D23: =+IF('TEC1'!W23=0,"",'TEC1'!W23) ->  | E23: =+IF('TEC1'!X23=0,"",'TEC1'!X23) ->  | F23: =+'TEC2'!U23 -> 0 | G23: =+'TEC2'!V23 -> 0 | H23: =+'TEC2'!W23 -> 0 | I23: =+'TEC2'!X23 -> 0 | J23: =+'TEC3'!U23 -> 0 | K23: =+'TEC3'!V23 -> 0 | L23: =+'TEC3'!W23 -> 0 | M23: =+'TEC3'!X23 -> 0 | N23: =+'TEC4'!U23 -> 0 | O23: =+'TEC4'!V23 -> 0 | P23: =+'TEC4'!W23 -> 0 | Q23: =+'TEC4'!X23 -> 0 | R23: =+'TEC5'!U23 -> 0 | S23: =+'TEC5'!V23 -> 0 | T23: =+'TEC5'!W23 -> 0 | U23: =+'TEC5'!X23 -> 0 | V23: =+'TEC6'!U23 -> 0 | W23: =+'TEC6'!V23 -> 0 | X23: =+'TEC6'!W23 -> 0 | Y23: =+'TEC6'!X23 -> 0
B24: =+IF('TEC1'!U24=0,"",'TEC1'!U24) ->  | C24: =+IF('TEC1'!V24=0,"",'TEC1'!V24) ->  | D24: =+IF('TEC1'!W24=0,"",'TEC1'!W24) ->  | E24: =+IF('TEC1'!X24=0,"",'TEC1'!X24) ->  | F24: =+'TEC2'!U24 -> 0 | G24: =+'TEC2'!V24 -> 0 | H24: =+'TEC2'!W24 -> 0 | I24: =+'TEC2'!X24 -> 0 | J24: =+'TEC3'!U24 -> 0 | K24: =+'TEC3'!V24 -> 0 | L24: =+'TEC3'!W24 -> 0 | M24: =+'TEC3'!X24 -> 0 | N24: =+'TEC4'!U24 -> 0 | O24: =+'TEC4'!V24 -> 0 | P24: =+'TEC4'!W24 -> 0 | Q24: =+'TEC4'!X24 -> 0 | R24: =+'TEC5'!U24 -> 0 | S24: =+'TEC5'!V24 -> 0 | T24: =+'TEC5'!W24 -> 0 | U24: =+'TEC5'!X24 -> 0 | V24: =+'TEC6'!U24 -> 0 | W24: =+'TEC6'!V24 -> 0 | X24: =+'TEC6'!W24 -> 0 | Y24: =+'TEC6'!X24 -> 0 | AA24: Confidence Interval | AP24: q1-min | AQ24: =+AB20-AF11 -> 0 | AS24: q1-min | AT24: =+AB20-AF11 -> 0
B25: =+IF('TEC1'!U25=0,"",'TEC1'!U25) ->  | C25: =+IF('TEC1'!V25=0,"",'TEC1'!V25) ->  | D25: =+IF('TEC1'!W25=0,"",'TEC1'!W25) ->  | E25: =+IF('TEC1'!X25=0,"",'TEC1'!X25) ->  | F25: =+'TEC2'!U25 -> 0 | G25: =+'TEC2'!V25 -> 0 | H25: =+'TEC2'!W25 -> 0 | I25: =+'TEC2'!X25 -> 0 | J25: =+'TEC3'!U25 -> 0 | K25: =+'TEC3'!V25 -> 0 | L25: =+'TEC3'!W25 -> 0 | M25: =+'TEC3'!X25 -> 0 | N25: =+'TEC4'!U25 -> 0 | O25: =+'TEC4'!V25 -> 0 | P25: =+'TEC4'!W25 -> 0 | Q25: =+'TEC4'!X25 -> 0 | R25: =+'TEC5'!U25 -> 0 | S25: =+'TEC5'!V25 -> 0 | T25: =+'TEC5'!W25 -> 0 | U25: =+'TEC5'!X25 -> 0 | V25: =+'TEC6'!U25 -> 0 | W25: =+'TEC6'!V25 -> 0 | X25: =+'TEC6'!W25 -> 0 | Y25: =+'TEC6'!X25 -> 0 | AA25: CI commences with sample size >5. The bigger the sample, the more accurate the CI. | AP25: q1 | AQ25: =+AB20 -> 0 | AS25: q1 | AT25: =+AB20 -> 0
B26: =+IF('TEC1'!U26=0,"",'TEC1'!U26) ->  | C26: =+IF('TEC1'!V26=0,"",'TEC1'!V26) ->  | D26: =+IF('TEC1'!W26=0,"",'TEC1'!W26) ->  | E26: =+IF('TEC1'!X26=0,"",'TEC1'!X26) ->  | F26: =+'TEC2'!U26 -> 0 | G26: =+'TEC2'!V26 -> 0 | H26: =+'TEC2'!W26 -> 0 | I26: =+'TEC2'!X26 -> 0 | J26: =+'TEC3'!U26 -> 0 | K26: =+'TEC3'!V26 -> 0 | L26: =+'TEC3'!W26 -> 0 | M26: =+'TEC3'!X26 -> 0 | N26: =+'TEC4'!U26 -> 0 | O26: =+'TEC4'!V26 -> 0 | P26: =+'TEC4'!W26 -> 0 | Q26: =+'TEC4'!X26 -> 0 | R26: =+'TEC5'!U26 -> 0 | S26: =+'TEC5'!V26 -> 0 | T26: =+'TEC5'!W26 -> 0 | U26: =+'TEC5'!X26 -> 0 | V26: =+'TEC6'!U26 -> 0 | W26: =+'TEC6'!V26 -> 0 | X26: =+'TEC6'!W26 -> 0 | Y26: =+'TEC6'!X26 -> 0 | AA26: Confidence Interval | AD26: =+IF(AB11<=5,"",(AB15-AQ17)) ->  | AE26: to | AF26: =+IF(AB11<=5,"",(AB15+AQ17)) ->  | AP26: median-q1 | AQ26: =+AD15-AB20 ->  | AS26: median-q1 | AT26: =+AD15-AB20 -> 
B27: =+IF('TEC1'!U27=0,"",'TEC1'!U27) ->  | C27: =+IF('TEC1'!V27=0,"",'TEC1'!V27) ->  | D27: =+IF('TEC1'!W27=0,"",'TEC1'!W27) ->  | E27: =+IF('TEC1'!X27=0,"",'TEC1'!X27) ->  | F27: =+'TEC2'!U27 -> 0 | G27: =+'TEC2'!V27 -> 0 | H27: =+'TEC2'!W27 -> 0 | I27: =+'TEC2'!X27 -> 0 | J27: =+'TEC3'!U27 -> 0 | K27: =+'TEC3'!V27 -> 0 | L27: =+'TEC3'!W27 -> 0 | M27: =+'TEC3'!X27 -> 0 | N27: =+'TEC4'!U27 -> 0 | O27: =+'TEC4'!V27 -> 0 | P27: =+'TEC4'!W27 -> 0 | Q27: =+'TEC4'!X27 -> 0 | R27: =+'TEC5'!U27 -> 0 | S27: =+'TEC5'!V27 -> 0 | T27: =+'TEC5'!W27 -> 0 | U27: =+'TEC5'!X27 -> 0 | V27: =+'TEC6'!U27 -> 0 | W27: =+'TEC6'!V27 -> 0 | X27: =+'TEC6'!W27 -> 0 | Y27: =+'TEC6'!X27 -> 0 | AP27: median | AS27: median
B28: =+IF('TEC1'!U28=0,"",'TEC1'!U28) ->  | C28: =+IF('TEC1'!V28=0,"",'TEC1'!V28) ->  | D28: =+IF('TEC1'!W28=0,"",'TEC1'!W28) ->  | E28: =+IF('TEC1'!X28=0,"",'TEC1'!X28) ->  | F28: =+'TEC2'!U28 -> 0 | G28: =+'TEC2'!V28 -> 0 | H28: =+'TEC2'!W28 -> 0 | I28: =+'TEC2'!X28 -> 0 | J28: =+'TEC3'!U28 -> 0 | K28: =+'TEC3'!V28 -> 0 | L28: =+'TEC3'!W28 -> 0 | M28: =+'TEC3'!X28 -> 0 | N28: =+'TEC4'!U28 -> 0 | O28: =+'TEC4'!V28 -> 0 | P28: =+'TEC4'!W28 -> 0 | Q28: =+'TEC4'!X28 -> 0 | R28: =+'TEC5'!U28 -> 0 | S28: =+'TEC5'!V28 -> 0 | T28: =+'TEC5'!W28 -> 0 | U28: =+'TEC5'!X28 -> 0 | V28: =+'TEC6'!U28 -> 0 | W28: =+'TEC6'!V28 -> 0 | X28: =+'TEC6'!W28 -> 0 | Y28: =+'TEC6'!X28 -> 0 | AP28: Q3-median | AQ28: =+AF20-AD15 ->  | AS28: Q3-median | AT28: =+AF20-AD15 -> 
B29: =+IF('TEC1'!U29=0,"",'TEC1'!U29) ->  | C29: =+IF('TEC1'!V29=0,"",'TEC1'!V29) ->  | D29: =+IF('TEC1'!W29=0,"",'TEC1'!W29) ->  | E29: =+IF('TEC1'!X29=0,"",'TEC1'!X29) ->  | F29: =+'TEC2'!U29 -> 0 | G29: =+'TEC2'!V29 -> 0 | H29: =+'TEC2'!W29 -> 0 | I29: =+'TEC2'!X29 -> 0 | J29: =+'TEC3'!U29 -> 0 | K29: =+'TEC3'!V29 -> 0 | L29: =+'TEC3'!W29 -> 0 | M29: =+'TEC3'!X29 -> 0 | N29: =+'TEC4'!U29 -> 0 | O29: =+'TEC4'!V29 -> 0 | P29: =+'TEC4'!W29 -> 0 | Q29: =+'TEC4'!X29 -> 0 | R29: =+'TEC5'!U29 -> 0 | S29: =+'TEC5'!V29 -> 0 | T29: =+'TEC5'!W29 -> 0 | U29: =+'TEC5'!X29 -> 0 | V29: =+'TEC6'!U29 -> 0 | W29: =+'TEC6'!V29 -> 0 | X29: =+'TEC6'!W29 -> 0 | Y29: =+'TEC6'!X29 -> 0 | AP29: Max-q3 | AQ29: =+AH11-AF20 -> 0 | AS29: Max-q3 | AT29: =+AH11-AF20 -> 0
B30: =+IF('TEC1'!U30=0,"",'TEC1'!U30) ->  | C30: =+IF('TEC1'!V30=0,"",'TEC1'!V30) ->  | D30: =+IF('TEC1'!W30=0,"",'TEC1'!W30) ->  | E30: =+IF('TEC1'!X30=0,"",'TEC1'!X30) ->  | F30: =+'TEC2'!U30 -> 0 | G30: =+'TEC2'!V30 -> 0 | H30: =+'TEC2'!W30 -> 0 | I30: =+'TEC2'!X30 -> 0 | J30: =+'TEC3'!U30 -> 0 | K30: =+'TEC3'!V30 -> 0 | L30: =+'TEC3'!W30 -> 0 | M30: =+'TEC3'!X30 -> 0 | N30: =+'TEC4'!U30 -> 0 | O30: =+'TEC4'!V30 -> 0 | P30: =+'TEC4'!W30 -> 0 | Q30: =+'TEC4'!X30 -> 0 | R30: =+'TEC5'!U30 -> 0 | S30: =+'TEC5'!V30 -> 0 | T30: =+'TEC5'!W30 -> 0 | U30: =+'TEC5'!X30 -> 0 | V30: =+'TEC6'!U30 -> 0 | W30: =+'TEC6'!V30 -> 0 | X30: =+'TEC6'!W30 -> 0 | Y30: =+'TEC6'!X30 -> 0 | AP30: Mean | AQ30: =+AB15 ->  | AS30: Mean | AT30: =+AB15 -> 
B31: =+IF('TEC1'!U31=0,"",'TEC1'!U31) ->  | C31: =+IF('TEC1'!V31=0,"",'TEC1'!V31) ->  | D31: =+IF('TEC1'!W31=0,"",'TEC1'!W31) ->  | E31: =+IF('TEC1'!X31=0,"",'TEC1'!X31) ->  | F31: =+'TEC2'!U31 -> 0 | G31: =+'TEC2'!V31 -> 0 | H31: =+'TEC2'!W31 -> 0 | I31: =+'TEC2'!X31 -> 0 | J31: =+'TEC3'!U31 -> 0 | K31: =+'TEC3'!V31 -> 0 | L31: =+'TEC3'!W31 -> 0 | M31: =+'TEC3'!X31 -> 0 | N31: =+'TEC4'!U31 -> 0 | O31: =+'TEC4'!V31 -> 0 | P31: =+'TEC4'!W31 -> 0 | Q31: =+'TEC4'!X31 -> 0 | R31: =+'TEC5'!U31 -> 0 | S31: =+'TEC5'!V31 -> 0 | T31: =+'TEC5'!W31 -> 0 | U31: =+'TEC5'!X31 -> 0 | V31: =+'TEC6'!U31 -> 0 | W31: =+'TEC6'!V31 -> 0 | X31: =+'TEC6'!W31 -> 0 | Y31: =+'TEC6'!X31 -> 0
B32: =+IF('TEC1'!U32=0,"",'TEC1'!U32) ->  | C32: =+IF('TEC1'!V32=0,"",'TEC1'!V32) ->  | D32: =+IF('TEC1'!W32=0,"",'TEC1'!W32) ->  | E32: =+IF('TEC1'!X32=0,"",'TEC1'!X32) ->  | F32: =+'TEC2'!U32 -> 0 | G32: =+'TEC2'!V32 -> 0 | H32: =+'TEC2'!W32 -> 0 | I32: =+'TEC2'!X32 -> 0 | J32: =+'TEC3'!U32 -> 0 | K32: =+'TEC3'!V32 -> 0 | L32: =+'TEC3'!W32 -> 0 | M32: =+'TEC3'!X32 -> 0 | N32: =+'TEC4'!U32 -> 0 | O32: =+'TEC4'!V32 -> 0 | P32: =+'TEC4'!W32 -> 0 | Q32: =+'TEC4'!X32 -> 0 | R32: =+'TEC5'!U32 -> 0 | S32: =+'TEC5'!V32 -> 0 | T32: =+'TEC5'!W32 -> 0 | U32: =+'TEC5'!X32 -> 0 | V32: =+'TEC6'!U32 -> 0 | W32: =+'TEC6'!V32 -> 0 | X32: =+'TEC6'!W32 -> 0 | Y32: =+'TEC6'!X32 -> 0 | AC32: Percentile % | AD32: 0.9 | AF32: =IF(AB11=0,"",PERCENTILE($B$9:$Y$100,AD32)) ->  | AP32: =+Y26 -> 0 | AQ32: =+AR32-AP32 -> 0
B33: =+IF('TEC1'!U33=0,"",'TEC1'!U33) ->  | C33: =+IF('TEC1'!V33=0,"",'TEC1'!V33) ->  | D33: =+IF('TEC1'!W33=0,"",'TEC1'!W33) ->  | E33: =+IF('TEC1'!X33=0,"",'TEC1'!X33) ->  | F33: =+'TEC2'!U33 -> 0 | G33: =+'TEC2'!V33 -> 0 | H33: =+'TEC2'!W33 -> 0 | I33: =+'TEC2'!X33 -> 0 | J33: =+'TEC3'!U33 -> 0 | K33: =+'TEC3'!V33 -> 0 | L33: =+'TEC3'!W33 -> 0 | M33: =+'TEC3'!X33 -> 0 | N33: =+'TEC4'!U33 -> 0 | O33: =+'TEC4'!V33 -> 0 | P33: =+'TEC4'!W33 -> 0 | Q33: =+'TEC4'!X33 -> 0 | R33: =+'TEC5'!U33 -> 0 | S33: =+'TEC5'!V33 -> 0 | T33: =+'TEC5'!W33 -> 0 | U33: =+'TEC5'!X33 -> 0 | V33: =+'TEC6'!U33 -> 0 | W33: =+'TEC6'!V33 -> 0 | X33: =+'TEC6'!W33 -> 0 | Y33: =+'TEC6'!X33 -> 0
B34: =+IF('TEC1'!U34=0,"",'TEC1'!U34) ->  | C34: =+IF('TEC1'!V34=0,"",'TEC1'!V34) ->  | D34: =+IF('TEC1'!W34=0,"",'TEC1'!W34) ->  | E34: =+IF('TEC1'!X34=0,"",'TEC1'!X34) ->  | F34: =+'TEC2'!U34 -> 0 | G34: =+'TEC2'!V34 -> 0 | H34: =+'TEC2'!W34 -> 0 | I34: =+'TEC2'!X34 -> 0 | J34: =+'TEC3'!U34 -> 0 | K34: =+'TEC3'!V34 -> 0 | L34: =+'TEC3'!W34 -> 0 | M34: =+'TEC3'!X34 -> 0 | N34: =+'TEC4'!U34 -> 0 | O34: =+'TEC4'!V34 -> 0 | P34: =+'TEC4'!W34 -> 0 | Q34: =+'TEC4'!X34 -> 0 | R34: =+'TEC5'!U34 -> 0 | S34: =+'TEC5'!V34 -> 0 | T34: =+'TEC5'!W34 -> 0 | U34: =+'TEC5'!X34 -> 0 | V34: =+'TEC6'!U34 -> 0 | W34: =+'TEC6'!V34 -> 0 | X34: =+'TEC6'!W34 -> 0 | Y34: =+'TEC6'!X34 -> 0 | AB34: Standard Deviation | AD34: =+AQ13 -> 
B35: =+IF('TEC1'!U35=0,"",'TEC1'!U35) ->  | C35: =+IF('TEC1'!V35=0,"",'TEC1'!V35) ->  | D35: =+IF('TEC1'!W35=0,"",'TEC1'!W35) ->  | E35: =+IF('TEC1'!X35=0,"",'TEC1'!X35) ->  | F35: =+'TEC2'!U35 -> 0 | G35: =+'TEC2'!V35 -> 0 | H35: =+'TEC2'!W35 -> 0 | I35: =+'TEC2'!X35 -> 0 | J35: =+'TEC3'!U35 -> 0 | K35: =+'TEC3'!V35 -> 0 | L35: =+'TEC3'!W35 -> 0 | M35: =+'TEC3'!X35 -> 0 | N35: =+'TEC4'!U35 -> 0 | O35: =+'TEC4'!V35 -> 0 | P35: =+'TEC4'!W35 -> 0 | Q35: =+'TEC4'!X35 -> 0 | R35: =+'TEC5'!U35 -> 0 | S35: =+'TEC5'!V35 -> 0 | T35: =+'TEC5'!W35 -> 0 | U35: =+'TEC5'!X35 -> 0 | V35: =+'TEC6'!U35 -> 0 | W35: =+'TEC6'!V35 -> 0 | X35: =+'TEC6'!W35 -> 0 | Y35: =+'TEC6'!X35 -> 0
B36: =+IF('TEC1'!U36=0,"",'TEC1'!U36) ->  | C36: =+IF('TEC1'!V36=0,"",'TEC1'!V36) ->  | D36: =+IF('TEC1'!W36=0,"",'TEC1'!W36) ->  | E36: =+IF('TEC1'!X36=0,"",'TEC1'!X36) ->  | F36: =+'TEC2'!U36 -> 0 | G36: =+'TEC2'!V36 -> 0 | H36: =+'TEC2'!W36 -> 0 | I36: =+'TEC2'!X36 -> 0 | J36: =+'TEC3'!U36 -> 0 | K36: =+'TEC3'!V36 -> 0 | L36: =+'TEC3'!W36 -> 0 | M36: =+'TEC3'!X36 -> 0 | N36: =+'TEC4'!U36 -> 0 | O36: =+'TEC4'!V36 -> 0 | P36: =+'TEC4'!W36 -> 0 | Q36: =+'TEC4'!X36 -> 0 | R36: =+'TEC5'!U36 -> 0 | S36: =+'TEC5'!V36 -> 0 | T36: =+'TEC5'!W36 -> 0 | U36: =+'TEC5'!X36 -> 0 | V36: =+'TEC6'!U36 -> 0 | W36: =+'TEC6'!V36 -> 0 | X36: =+'TEC6'!W36 -> 0 | Y36: =+'TEC6'!X36 -> 0
B37: =+IF('TEC1'!U37=0,"",'TEC1'!U37) ->  | C37: =+IF('TEC1'!V37=0,"",'TEC1'!V37) ->  | D37: =+IF('TEC1'!W37=0,"",'TEC1'!W37) ->  | E37: =+IF('TEC1'!X37=0,"",'TEC1'!X37) ->  | F37: =+'TEC2'!U37 -> 0 | G37: =+'TEC2'!V37 -> 0 | H37: =+'TEC2'!W37 -> 0 | I37: =+'TEC2'!X37 -> 0 | J37: =+'TEC3'!U37 -> 0 | K37: =+'TEC3'!V37 -> 0 | L37: =+'TEC3'!W37 -> 0 | M37: =+'TEC3'!X37 -> 0 | N37: =+'TEC4'!U37 -> 0 | O37: =+'TEC4'!V37 -> 0 | P37: =+'TEC4'!W37 -> 0 | Q37: =+'TEC4'!X37 -> 0 | R37: =+'TEC5'!U37 -> 0 | S37: =+'TEC5'!V37 -> 0 | T37: =+'TEC5'!W37 -> 0 | U37: =+'TEC5'!X37 -> 0 | V37: =+'TEC6'!U37 -> 0 | W37: =+'TEC6'!V37 -> 0 | X37: =+'TEC6'!W37 -> 0 | Y37: =+'TEC6'!X37 -> 0
B38: =+IF('TEC1'!U38=0,"",'TEC1'!U38) ->  | C38: =+IF('TEC1'!V38=0,"",'TEC1'!V38) ->  | D38: =+IF('TEC1'!W38=0,"",'TEC1'!W38) ->  | E38: =+IF('TEC1'!X38=0,"",'TEC1'!X38) ->  | F38: =+'TEC2'!U38 -> 0 | G38: =+'TEC2'!V38 -> 0 | H38: =+'TEC2'!W38 -> 0 | I38: =+'TEC2'!X38 -> 0 | J38: =+'TEC3'!U38 -> 0 | K38: =+'TEC3'!V38 -> 0 | L38: =+'TEC3'!W38 -> 0 | M38: =+'TEC3'!X38 -> 0 | N38: =+'TEC4'!U38 -> 0 | O38: =+'TEC4'!V38 -> 0 | P38: =+'TEC4'!W38 -> 0 | Q38: =+'TEC4'!X38 -> 0 | R38: =+'TEC5'!U38 -> 0 | S38: =+'TEC5'!V38 -> 0 | T38: =+'TEC5'!W38 -> 0 | U38: =+'TEC5'!X38 -> 0 | V38: =+'TEC6'!U38 -> 0 | W38: =+'TEC6'!V38 -> 0 | X38: =+'TEC6'!W38 -> 0 | Y38: =+'TEC6'!X38 -> 0
B39: =+IF('TEC1'!U39=0,"",'TEC1'!U39) ->  | C39: =+IF('TEC1'!V39=0,"",'TEC1'!V39) ->  | D39: =+IF('TEC1'!W39=0,"",'TEC1'!W39) ->  | E39: =+IF('TEC1'!X39=0,"",'TEC1'!X39) ->  | F39: =+'TEC2'!U39 -> 0 | G39: =+'TEC2'!V39 -> 0 | H39: =+'TEC2'!W39 -> 0 | I39: =+'TEC2'!X39 -> 0 | J39: =+'TEC3'!U39 -> 0 | K39: =+'TEC3'!V39 -> 0 | L39: =+'TEC3'!W39 -> 0 | M39: =+'TEC3'!X39 -> 0 | N39: =+'TEC4'!U39 -> 0 | O39: =+'TEC4'!V39 -> 0 | P39: =+'TEC4'!W39 -> 0 | Q39: =+'TEC4'!X39 -> 0 | R39: =+'TEC5'!U39 -> 0 | S39: =+'TEC5'!V39 -> 0 | T39: =+'TEC5'!W39 -> 0 | U39: =+'TEC5'!X39 -> 0 | V39: =+'TEC6'!U39 -> 0 | W39: =+'TEC6'!V39 -> 0 | X39: =+'TEC6'!W39 -> 0 | Y39: =+'TEC6'!X39 -> 0
B40: =+IF('TEC1'!U40=0,"",'TEC1'!U40) ->  | C40: =+IF('TEC1'!V40=0,"",'TEC1'!V40) ->  | D40: =+IF('TEC1'!W40=0,"",'TEC1'!W40) ->  | E40: =+IF('TEC1'!X40=0,"",'TEC1'!X40) ->  | F40: =+'TEC2'!U40 -> 0 | G40: =+'TEC2'!V40 -> 0 | H40: =+'TEC2'!W40 -> 0 | I40: =+'TEC2'!X40 -> 0 | J40: =+'TEC3'!U40 -> 0 | K40: =+'TEC3'!V40 -> 0 | L40: =+'TEC3'!W40 -> 0 | M40: =+'TEC3'!X40 -> 0 | N40: =+'TEC4'!U40 -> 0 | O40: =+'TEC4'!V40 -> 0 | P40: =+'TEC4'!W40 -> 0 | Q40: =+'TEC4'!X40 -> 0 | R40: =+'TEC5'!U40 -> 0 | S40: =+'TEC5'!V40 -> 0 | T40: =+'TEC5'!W40 -> 0 | U40: =+'TEC5'!X40 -> 0 | V40: =+'TEC6'!U40 -> 0 | W40: =+'TEC6'!V40 -> 0 | X40: =+'TEC6'!W40 -> 0 | Y40: =+'TEC6'!X40 -> 0
B41: =+IF('TEC1'!U41=0,"",'TEC1'!U41) ->  | C41: =+IF('TEC1'!V41=0,"",'TEC1'!V41) ->  | D41: =+IF('TEC1'!W41=0,"",'TEC1'!W41) ->  | E41: =+IF('TEC1'!X41=0,"",'TEC1'!X41) ->  | F41: =+'TEC2'!U41 -> 0 | G41: =+'TEC2'!V41 -> 0 | H41: =+'TEC2'!W41 -> 0 | I41: =+'TEC2'!X41 -> 0 | J41: =+'TEC3'!U41 -> 0 | K41: =+'TEC3'!V41 -> 0 | L41: =+'TEC3'!W41 -> 0 | M41: =+'TEC3'!X41 -> 0 | N41: =+'TEC4'!U41 -> 0 | O41: =+'TEC4'!V41 -> 0 | P41: =+'TEC4'!W41 -> 0 | Q41: =+'TEC4'!X41 -> 0 | R41: =+'TEC5'!U41 -> 0 | S41: =+'TEC5'!V41 -> 0 | T41: =+'TEC5'!W41 -> 0 | U41: =+'TEC5'!X41 -> 0 | V41: =+'TEC6'!U41 -> 0 | W41: =+'TEC6'!V41 -> 0 | X41: =+'TEC6'!W41 -> 0 | Y41: =+'TEC6'!X41 -> 0
B42: =+IF('TEC1'!U42=0,"",'TEC1'!U42) ->  | C42: =+IF('TEC1'!V42=0,"",'TEC1'!V42) ->  | D42: =+IF('TEC1'!W42=0,"",'TEC1'!W42) ->  | E42: =+IF('TEC1'!X42=0,"",'TEC1'!X42) ->  | F42: =+'TEC2'!U42 -> 0 | G42: =+'TEC2'!V42 -> 0 | H42: =+'TEC2'!W42 -> 0 | I42: =+'TEC2'!X42 -> 0 | J42: =+'TEC3'!U42 -> 0 | K42: =+'TEC3'!V42 -> 0 | L42: =+'TEC3'!W42 -> 0 | M42: =+'TEC3'!X42 -> 0 | N42: =+'TEC4'!U42 -> 0 | O42: =+'TEC4'!V42 -> 0 | P42: =+'TEC4'!W42 -> 0 | Q42: =+'TEC4'!X42 -> 0 | R42: =+'TEC5'!U42 -> 0 | S42: =+'TEC5'!V42 -> 0 | T42: =+'TEC5'!W42 -> 0 | U42: =+'TEC5'!X42 -> 0 | V42: =+'TEC6'!U42 -> 0 | W42: =+'TEC6'!V42 -> 0 | X42: =+'TEC6'!W42 -> 0 | Y42: =+'TEC6'!X42 -> 0
B43: =+IF('TEC1'!U43=0,"",'TEC1'!U43) ->  | C43: =+IF('TEC1'!V43=0,"",'TEC1'!V43) ->  | D43: =+IF('TEC1'!W43=0,"",'TEC1'!W43) ->  | E43: =+IF('TEC1'!X43=0,"",'TEC1'!X43) ->  | F43: =+'TEC2'!U43 -> 0 | G43: =+'TEC2'!V43 -> 0 | H43: =+'TEC2'!W43 -> 0 | I43: =+'TEC2'!X43 -> 0 | J43: =+'TEC3'!U43 -> 0 | K43: =+'TEC3'!V43 -> 0 | L43: =+'TEC3'!W43 -> 0 | M43: =+'TEC3'!X43 -> 0 | N43: =+'TEC4'!U43 -> 0 | O43: =+'TEC4'!V43 -> 0 | P43: =+'TEC4'!W43 -> 0 | Q43: =+'TEC4'!X43 -> 0 | R43: =+'TEC5'!U43 -> 0 | S43: =+'TEC5'!V43 -> 0 | T43: =+'TEC5'!W43 -> 0 | U43: =+'TEC5'!X43 -> 0 | V43: =+'TEC6'!U43 -> 0 | W43: =+'TEC6'!V43 -> 0 | X43: =+'TEC6'!W43 -> 0 | Y43: =+'TEC6'!X43 -> 0
B44: =+IF('TEC1'!U44=0,"",'TEC1'!U44) ->  | C44: =+IF('TEC1'!V44=0,"",'TEC1'!V44) ->  | D44: =+IF('TEC1'!W44=0,"",'TEC1'!W44) ->  | E44: =+IF('TEC1'!X44=0,"",'TEC1'!X44) ->  | F44: =+'TEC2'!U44 -> 0 | G44: =+'TEC2'!V44 -> 0 | H44: =+'TEC2'!W44 -> 0 | I44: =+'TEC2'!X44 -> 0 | J44: =+'TEC3'!U44 -> 0 | K44: =+'TEC3'!V44 -> 0 | L44: =+'TEC3'!W44 -> 0 | M44: =+'TEC3'!X44 -> 0 | N44: =+'TEC4'!U44 -> 0 | O44: =+'TEC4'!V44 -> 0 | P44: =+'TEC4'!W44 -> 0 | Q44: =+'TEC4'!X44 -> 0 | R44: =+'TEC5'!U44 -> 0 | S44: =+'TEC5'!V44 -> 0 | T44: =+'TEC5'!W44 -> 0 | U44: =+'TEC5'!X44 -> 0 | V44: =+'TEC6'!U44 -> 0 | W44: =+'TEC6'!V44 -> 0 | X44: =+'TEC6'!W44 -> 0 | Y44: =+'TEC6'!X44 -> 0
B45: =+IF('TEC1'!U45=0,"",'TEC1'!U45) ->  | C45: =+IF('TEC1'!V45=0,"",'TEC1'!V45) ->  | D45: =+IF('TEC1'!W45=0,"",'TEC1'!W45) ->  | E45: =+IF('TEC1'!X45=0,"",'TEC1'!X45) ->  | F45: =+'TEC2'!U45 -> 0 | G45: =+'TEC2'!V45 -> 0 | H45: =+'TEC2'!W45 -> 0 | I45: =+'TEC2'!X45 -> 0 | J45: =+'TEC3'!U45 -> 0 | K45: =+'TEC3'!V45 -> 0 | L45: =+'TEC3'!W45 -> 0 | M45: =+'TEC3'!X45 -> 0 | N45: =+'TEC4'!U45 -> 0 | O45: =+'TEC4'!V45 -> 0 | P45: =+'TEC4'!W45 -> 0 | Q45: =+'TEC4'!X45 -> 0 | R45: =+'TEC5'!U45 -> 0 | S45: =+'TEC5'!V45 -> 0 | T45: =+'TEC5'!W45 -> 0 | U45: =+'TEC5'!X45 -> 0 | V45: =+'TEC6'!U45 -> 0 | W45: =+'TEC6'!V45 -> 0 | X45: =+'TEC6'!W45 -> 0 | Y45: =+'TEC6'!X45 -> 0
B46: =+IF('TEC1'!U46=0,"",'TEC1'!U46) ->  | C46: =+IF('TEC1'!V46=0,"",'TEC1'!V46) ->  | D46: =+IF('TEC1'!W46=0,"",'TEC1'!W46) ->  | E46: =+IF('TEC1'!X46=0,"",'TEC1'!X46) ->  | F46: =+'TEC2'!U46 -> 0 | G46: =+'TEC2'!V46 -> 0 | H46: =+'TEC2'!W46 -> 0 | I46: =+'TEC2'!X46 -> 0 | J46: =+'TEC3'!U46 -> 0 | K46: =+'TEC3'!V46 -> 0 | L46: =+'TEC3'!W46 -> 0 | M46: =+'TEC3'!X46 -> 0 | N46: =+'TEC4'!U46 -> 0 | O46: =+'TEC4'!V46 -> 0 | P46: =+'TEC4'!W46 -> 0 | Q46: =+'TEC4'!X46 -> 0 | R46: =+'TEC5'!U46 -> 0 | S46: =+'TEC5'!V46 -> 0 | T46: =+'TEC5'!W46 -> 0 | U46: =+'TEC5'!X46 -> 0 | V46: =+'TEC6'!U46 -> 0 | W46: =+'TEC6'!V46 -> 0 | X46: =+'TEC6'!W46 -> 0 | Y46: =+'TEC6'!X46 -> 0
B47: =+IF('TEC1'!U47=0,"",'TEC1'!U47) ->  | C47: =+IF('TEC1'!V47=0,"",'TEC1'!V47) ->  | D47: =+IF('TEC1'!W47=0,"",'TEC1'!W47) ->  | E47: =+IF('TEC1'!X47=0,"",'TEC1'!X47) ->  | F47: =+'TEC2'!U47 -> 0 | G47: =+'TEC2'!V47 -> 0 | H47: =+'TEC2'!W47 -> 0 | I47: =+'TEC2'!X47 -> 0 | J47: =+'TEC3'!U47 -> 0 | K47: =+'TEC3'!V47 -> 0 | L47: =+'TEC3'!W47 -> 0 | M47: =+'TEC3'!X47 -> 0 | N47: =+'TEC4'!U47 -> 0 | O47: =+'TEC4'!V47 -> 0 | P47: =+'TEC4'!W47 -> 0 | Q47: =+'TEC4'!X47 -> 0 | R47: =+'TEC5'!U47 -> 0 | S47: =+'TEC5'!V47 -> 0 | T47: =+'TEC5'!W47 -> 0 | U47: =+'TEC5'!X47 -> 0 | V47: =+'TEC6'!U47 -> 0 | W47: =+'TEC6'!V47 -> 0 | X47: =+'TEC6'!W47 -> 0 | Y47: =+'TEC6'!X47 -> 0
B48: =+IF('TEC1'!U48=0,"",'TEC1'!U48) ->  | C48: =+IF('TEC1'!V48=0,"",'TEC1'!V48) ->  | D48: =+IF('TEC1'!W48=0,"",'TEC1'!W48) ->  | E48: =+IF('TEC1'!X48=0,"",'TEC1'!X48) ->  | F48: =+'TEC2'!U48 -> 0 | G48: =+'TEC2'!V48 -> 0 | H48: =+'TEC2'!W48 -> 0 | I48: =+'TEC2'!X48 -> 0 | J48: =+'TEC3'!U48 -> 0 | K48: =+'TEC3'!V48 -> 0 | L48: =+'TEC3'!W48 -> 0 | M48: =+'TEC3'!X48 -> 0 | N48: =+'TEC4'!U48 -> 0 | O48: =+'TEC4'!V48 -> 0 | P48: =+'TEC4'!W48 -> 0 | Q48: =+'TEC4'!X48 -> 0 | R48: =+'TEC5'!U48 -> 0 | S48: =+'TEC5'!V48 -> 0 | T48: =+'TEC5'!W48 -> 0 | U48: =+'TEC5'!X48 -> 0 | V48: =+'TEC6'!U48 -> 0 | W48: =+'TEC6'!V48 -> 0 | X48: =+'TEC6'!W48 -> 0 | Y48: =+'TEC6'!X48 -> 0
B49: =+IF('TEC1'!U49=0,"",'TEC1'!U49) ->  | C49: =+IF('TEC1'!V49=0,"",'TEC1'!V49) ->  | D49: =+IF('TEC1'!W49=0,"",'TEC1'!W49) ->  | E49: =+IF('TEC1'!X49=0,"",'TEC1'!X49) ->  | F49: =+'TEC2'!U49 -> 0 | G49: =+'TEC2'!V49 -> 0 | H49: =+'TEC2'!W49 -> 0 | I49: =+'TEC2'!X49 -> 0 | J49: =+'TEC3'!U49 -> 0 | K49: =+'TEC3'!V49 -> 0 | L49: =+'TEC3'!W49 -> 0 | M49: =+'TEC3'!X49 -> 0 | N49: =+'TEC4'!U49 -> 0 | O49: =+'TEC4'!V49 -> 0 | P49: =+'TEC4'!W49 -> 0 | Q49: =+'TEC4'!X49 -> 0 | R49: =+'TEC5'!U49 -> 0 | S49: =+'TEC5'!V49 -> 0 | T49: =+'TEC5'!W49 -> 0 | U49: =+'TEC5'!X49 -> 0 | V49: =+'TEC6'!U49 -> 0 | W49: =+'TEC6'!V49 -> 0 | X49: =+'TEC6'!W49 -> 0 | Y49: =+'TEC6'!X49 -> 0
B50: =+IF('TEC1'!U50=0,"",'TEC1'!U50) ->  | C50: =+IF('TEC1'!V50=0,"",'TEC1'!V50) ->  | D50: =+IF('TEC1'!W50=0,"",'TEC1'!W50) ->  | E50: =+IF('TEC1'!X50=0,"",'TEC1'!X50) ->  | F50: =+'TEC2'!U50 -> 0 | G50: =+'TEC2'!V50 -> 0 | H50: =+'TEC2'!W50 -> 0 | I50: =+'TEC2'!X50 -> 0 | J50: =+'TEC3'!U50 -> 0 | K50: =+'TEC3'!V50 -> 0 | L50: =+'TEC3'!W50 -> 0 | M50: =+'TEC3'!X50 -> 0 | N50: =+'TEC4'!U50 -> 0 | O50: =+'TEC4'!V50 -> 0 | P50: =+'TEC4'!W50 -> 0 | Q50: =+'TEC4'!X50 -> 0 | R50: =+'TEC5'!U50 -> 0 | S50: =+'TEC5'!V50 -> 0 | T50: =+'TEC5'!W50 -> 0 | U50: =+'TEC5'!X50 -> 0 | V50: =+'TEC6'!U50 -> 0 | W50: =+'TEC6'!V50 -> 0 | X50: =+'TEC6'!W50 -> 0 | Y50: =+'TEC6'!X50 -> 0
B51: =+IF('TEC1'!U51=0,"",'TEC1'!U51) ->  | C51: =+IF('TEC1'!V51=0,"",'TEC1'!V51) ->  | D51: =+IF('TEC1'!W51=0,"",'TEC1'!W51) ->  | E51: =+IF('TEC1'!X51=0,"",'TEC1'!X51) ->  | F51: =+'TEC2'!U51 -> 0 | G51: =+'TEC2'!V51 -> 0 | H51: =+'TEC2'!W51 -> 0 | I51: =+'TEC2'!X51 -> 0 | J51: =+'TEC3'!U51 -> 0 | K51: =+'TEC3'!V51 -> 0 | L51: =+'TEC3'!W51 -> 0 | M51: =+'TEC3'!X51 -> 0 | N51: =+'TEC4'!U51 -> 0 | O51: =+'TEC4'!V51 -> 0 | P51: =+'TEC4'!W51 -> 0 | Q51: =+'TEC4'!X51 -> 0 | R51: =+'TEC5'!U51 -> 0 | S51: =+'TEC5'!V51 -> 0 | T51: =+'TEC5'!W51 -> 0 | U51: =+'TEC5'!X51 -> 0 | V51: =+'TEC6'!U51 -> 0 | W51: =+'TEC6'!V51 -> 0 | X51: =+'TEC6'!W51 -> 0 | Y51: =+'TEC6'!X51 -> 0
B52: =+IF('TEC1'!U52=0,"",'TEC1'!U52) ->  | C52: =+IF('TEC1'!V52=0,"",'TEC1'!V52) ->  | D52: =+IF('TEC1'!W52=0,"",'TEC1'!W52) ->  | E52: =+IF('TEC1'!X52=0,"",'TEC1'!X52) ->  | F52: =+'TEC2'!U52 -> 0 | G52: =+'TEC2'!V52 -> 0 | H52: =+'TEC2'!W52 -> 0 | I52: =+'TEC2'!X52 -> 0 | J52: =+'TEC3'!U52 -> 0 | K52: =+'TEC3'!V52 -> 0 | L52: =+'TEC3'!W52 -> 0 | M52: =+'TEC3'!X52 -> 0 | N52: =+'TEC4'!U52 -> 0 | O52: =+'TEC4'!V52 -> 0 | P52: =+'TEC4'!W52 -> 0 | Q52: =+'TEC4'!X52 -> 0 | R52: =+'TEC5'!U52 -> 0 | S52: =+'TEC5'!V52 -> 0 | T52: =+'TEC5'!W52 -> 0 | U52: =+'TEC5'!X52 -> 0 | V52: =+'TEC6'!U52 -> 0 | W52: =+'TEC6'!V52 -> 0 | X52: =+'TEC6'!W52 -> 0 | Y52: =+'TEC6'!X52 -> 0
B53: =+IF('TEC1'!U53=0,"",'TEC1'!U53) ->  | C53: =+IF('TEC1'!V53=0,"",'TEC1'!V53) ->  | D53: =+IF('TEC1'!W53=0,"",'TEC1'!W53) ->  | E53: =+IF('TEC1'!X53=0,"",'TEC1'!X53) ->  | F53: =+'TEC2'!U53 -> 0 | G53: =+'TEC2'!V53 -> 0 | H53: =+'TEC2'!W53 -> 0 | I53: =+'TEC2'!X53 -> 0 | J53: =+'TEC3'!U53 -> 0 | K53: =+'TEC3'!V53 -> 0 | L53: =+'TEC3'!W53 -> 0 | M53: =+'TEC3'!X53 -> 0 | N53: =+'TEC4'!U53 -> 0 | O53: =+'TEC4'!V53 -> 0 | P53: =+'TEC4'!W53 -> 0 | Q53: =+'TEC4'!X53 -> 0 | R53: =+'TEC5'!U53 -> 0 | S53: =+'TEC5'!V53 -> 0 | T53: =+'TEC5'!W53 -> 0 | U53: =+'TEC5'!X53 -> 0 | V53: =+'TEC6'!U53 -> 0 | W53: =+'TEC6'!V53 -> 0 | X53: =+'TEC6'!W53 -> 0 | Y53: =+'TEC6'!X53 -> 0
B54: =+IF('TEC1'!U54=0,"",'TEC1'!U54) ->  | C54: =+IF('TEC1'!V54=0,"",'TEC1'!V54) ->  | D54: =+IF('TEC1'!W54=0,"",'TEC1'!W54) ->  | E54: =+IF('TEC1'!X54=0,"",'TEC1'!X54) ->  | F54: =+'TEC2'!U54 -> 0 | G54: =+'TEC2'!V54 -> 0 | H54: =+'TEC2'!W54 -> 0 | I54: =+'TEC2'!X54 -> 0 | J54: =+'TEC3'!U54 -> 0 | K54: =+'TEC3'!V54 -> 0 | L54: =+'TEC3'!W54 -> 0 | M54: =+'TEC3'!X54 -> 0 | N54: =+'TEC4'!U54 -> 0 | O54: =+'TEC4'!V54 -> 0 | P54: =+'TEC4'!W54 -> 0 | Q54: =+'TEC4'!X54 -> 0 | R54: =+'TEC5'!U54 -> 0 | S54: =+'TEC5'!V54 -> 0 | T54: =+'TEC5'!W54 -> 0 | U54: =+'TEC5'!X54 -> 0 | V54: =+'TEC6'!U54 -> 0 | W54: =+'TEC6'!V54 -> 0 | X54: =+'TEC6'!W54 -> 0 | Y54: =+'TEC6'!X54 -> 0
B55: =+IF('TEC1'!U55=0,"",'TEC1'!U55) ->  | C55: =+IF('TEC1'!V55=0,"",'TEC1'!V55) ->  | D55: =+IF('TEC1'!W55=0,"",'TEC1'!W55) ->  | E55: =+IF('TEC1'!X55=0,"",'TEC1'!X55) ->  | F55: =+'TEC2'!U55 -> 0 | G55: =+'TEC2'!V55 -> 0 | H55: =+'TEC2'!W55 -> 0 | I55: =+'TEC2'!X55 -> 0 | J55: =+'TEC3'!U55 -> 0 | K55: =+'TEC3'!V55 -> 0 | L55: =+'TEC3'!W55 -> 0 | M55: =+'TEC3'!X55 -> 0 | N55: =+'TEC4'!U55 -> 0 | O55: =+'TEC4'!V55 -> 0 | P55: =+'TEC4'!W55 -> 0 | Q55: =+'TEC4'!X55 -> 0 | R55: =+'TEC5'!U55 -> 0 | S55: =+'TEC5'!V55 -> 0 | T55: =+'TEC5'!W55 -> 0 | U55: =+'TEC5'!X55 -> 0 | V55: =+'TEC6'!U55 -> 0 | W55: =+'TEC6'!V55 -> 0 | X55: =+'TEC6'!W55 -> 0 | Y55: =+'TEC6'!X55 -> 0
B56: =+IF('TEC1'!U56=0,"",'TEC1'!U56) ->  | C56: =+IF('TEC1'!V56=0,"",'TEC1'!V56) ->  | D56: =+IF('TEC1'!W56=0,"",'TEC1'!W56) ->  | E56: =+IF('TEC1'!X56=0,"",'TEC1'!X56) ->  | F56: =+'TEC2'!U56 -> 0 | G56: =+'TEC2'!V56 -> 0 | H56: =+'TEC2'!W56 -> 0 | I56: =+'TEC2'!X56 -> 0 | J56: =+'TEC3'!U56 -> 0 | K56: =+'TEC3'!V56 -> 0 | L56: =+'TEC3'!W56 -> 0 | M56: =+'TEC3'!X56 -> 0 | N56: =+'TEC4'!U56 -> 0 | O56: =+'TEC4'!V56 -> 0 | P56: =+'TEC4'!W56 -> 0 | Q56: =+'TEC4'!X56 -> 0 | R56: =+'TEC5'!U56 -> 0 | S56: =+'TEC5'!V56 -> 0 | T56: =+'TEC5'!W56 -> 0 | U56: =+'TEC5'!X56 -> 0 | V56: =+'TEC6'!U56 -> 0 | W56: =+'TEC6'!V56 -> 0 | X56: =+'TEC6'!W56 -> 0 | Y56: =+'TEC6'!X56 -> 0
B57: =+IF('TEC1'!U57=0,"",'TEC1'!U57) ->  | C57: =+IF('TEC1'!V57=0,"",'TEC1'!V57) ->  | D57: =+IF('TEC1'!W57=0,"",'TEC1'!W57) ->  | E57: =+IF('TEC1'!X57=0,"",'TEC1'!X57) ->  | F57: =+'TEC2'!U57 -> 0 | G57: =+'TEC2'!V57 -> 0 | H57: =+'TEC2'!W57 -> 0 | I57: =+'TEC2'!X57 -> 0 | J57: =+'TEC3'!U57 -> 0 | K57: =+'TEC3'!V57 -> 0 | L57: =+'TEC3'!W57 -> 0 | M57: =+'TEC3'!X57 -> 0 | N57: =+'TEC4'!U57 -> 0 | O57: =+'TEC4'!V57 -> 0 | P57: =+'TEC4'!W57 -> 0 | Q57: =+'TEC4'!X57 -> 0 | R57: =+'TEC5'!U57 -> 0 | S57: =+'TEC5'!V57 -> 0 | T57: =+'TEC5'!W57 -> 0 | U57: =+'TEC5'!X57 -> 0 | V57: =+'TEC6'!U57 -> 0 | W57: =+'TEC6'!V57 -> 0 | X57: =+'TEC6'!W57 -> 0 | Y57: =+'TEC6'!X57 -> 0
B58: =+IF('TEC1'!U58=0,"",'TEC1'!U58) ->  | C58: =+IF('TEC1'!V58=0,"",'TEC1'!V58) ->  | D58: =+IF('TEC1'!W58=0,"",'TEC1'!W58) ->  | E58: =+IF('TEC1'!X58=0,"",'TEC1'!X58) ->  | F58: =+'TEC2'!U58 -> 0 | G58: =+'TEC2'!V58 -> 0 | H58: =+'TEC2'!W58 -> 0 | I58: =+'TEC2'!X58 -> 0 | J58: =+'TEC3'!U58 -> 0 | K58: =+'TEC3'!V58 -> 0 | L58: =+'TEC3'!W58 -> 0 | M58: =+'TEC3'!X58 -> 0 | N58: =+'TEC4'!U58 -> 0 | O58: =+'TEC4'!V58 -> 0 | P58: =+'TEC4'!W58 -> 0 | Q58: =+'TEC4'!X58 -> 0 | R58: =+'TEC5'!U58 -> 0 | S58: =+'TEC5'!V58 -> 0 | T58: =+'TEC5'!W58 -> 0 | U58: =+'TEC5'!X58 -> 0 | V58: =+'TEC6'!U58 -> 0 | W58: =+'TEC6'!V58 -> 0 | X58: =+'TEC6'!W58 -> 0 | Y58: =+'TEC6'!X58 -> 0
B59: =+IF('TEC1'!U59=0,"",'TEC1'!U59) ->  | C59: =+IF('TEC1'!V59=0,"",'TEC1'!V59) ->  | D59: =+IF('TEC1'!W59=0,"",'TEC1'!W59) ->  | E59: =+IF('TEC1'!X59=0,"",'TEC1'!X59) ->  | F59: =+'TEC2'!U59 -> 0 | G59: =+'TEC2'!V59 -> 0 | H59: =+'TEC2'!W59 -> 0 | I59: =+'TEC2'!X59 -> 0 | J59: =+'TEC3'!U59 -> 0 | K59: =+'TEC3'!V59 -> 0 | L59: =+'TEC3'!W59 -> 0 | M59: =+'TEC3'!X59 -> 0 | N59: =+'TEC4'!U59 -> 0 | O59: =+'TEC4'!V59 -> 0 | P59: =+'TEC4'!W59 -> 0 | Q59: =+'TEC4'!X59 -> 0 | R59: =+'TEC5'!U59 -> 0 | S59: =+'TEC5'!V59 -> 0 | T59: =+'TEC5'!W59 -> 0 | U59: =+'TEC5'!X59 -> 0 | V59: =+'TEC6'!U59 -> 0 | W59: =+'TEC6'!V59 -> 0 | X59: =+'TEC6'!W59 -> 0 | Y59: =+'TEC6'!X59 -> 0
B60: =+IF('TEC1'!U60=0,"",'TEC1'!U60) ->  | C60: =+IF('TEC1'!V60=0,"",'TEC1'!V60) ->  | D60: =+IF('TEC1'!W60=0,"",'TEC1'!W60) ->  | E60: =+IF('TEC1'!X60=0,"",'TEC1'!X60) ->  | F60: =+'TEC2'!U60 -> 0 | G60: =+'TEC2'!V60 -> 0 | H60: =+'TEC2'!W60 -> 0 | I60: =+'TEC2'!X60 -> 0 | J60: =+'TEC3'!U60 -> 0 | K60: =+'TEC3'!V60 -> 0 | L60: =+'TEC3'!W60 -> 0 | M60: =+'TEC3'!X60 -> 0 | N60: =+'TEC4'!U60 -> 0 | O60: =+'TEC4'!V60 -> 0 | P60: =+'TEC4'!W60 -> 0 | Q60: =+'TEC4'!X60 -> 0 | R60: =+'TEC5'!U60 -> 0 | S60: =+'TEC5'!V60 -> 0 | T60: =+'TEC5'!W60 -> 0 | U60: =+'TEC5'!X60 -> 0 | V60: =+'TEC6'!U60 -> 0 | W60: =+'TEC6'!V60 -> 0 | X60: =+'TEC6'!W60 -> 0 | Y60: =+'TEC6'!X60 -> 0
B61: =+IF('TEC1'!U61=0,"",'TEC1'!U61) ->  | C61: =+IF('TEC1'!V61=0,"",'TEC1'!V61) ->  | D61: =+IF('TEC1'!W61=0,"",'TEC1'!W61) ->  | E61: =+IF('TEC1'!X61=0,"",'TEC1'!X61) ->  | F61: =+'TEC2'!U61 -> 0 | G61: =+'TEC2'!V61 -> 0 | H61: =+'TEC2'!W61 -> 0 | I61: =+'TEC2'!X61 -> 0 | J61: =+'TEC3'!U61 -> 0 | K61: =+'TEC3'!V61 -> 0 | L61: =+'TEC3'!W61 -> 0 | M61: =+'TEC3'!X61 -> 0 | N61: =+'TEC4'!U61 -> 0 | O61: =+'TEC4'!V61 -> 0 | P61: =+'TEC4'!W61 -> 0 | Q61: =+'TEC4'!X61 -> 0 | R61: =+'TEC5'!U61 -> 0 | S61: =+'TEC5'!V61 -> 0 | T61: =+'TEC5'!W61 -> 0 | U61: =+'TEC5'!X61 -> 0 | V61: =+'TEC6'!U61 -> 0 | W61: =+'TEC6'!V61 -> 0 | X61: =+'TEC6'!W61 -> 0 | Y61: =+'TEC6'!X61 -> 0
B62: =+IF('TEC1'!U62=0,"",'TEC1'!U62) ->  | C62: =+IF('TEC1'!V62=0,"",'TEC1'!V62) ->  | D62: =+IF('TEC1'!W62=0,"",'TEC1'!W62) ->  | E62: =+IF('TEC1'!X62=0,"",'TEC1'!X62) ->  | F62: =+'TEC2'!U62 -> 0 | G62: =+'TEC2'!V62 -> 0 | H62: =+'TEC2'!W62 -> 0 | I62: =+'TEC2'!X62 -> 0 | J62: =+'TEC3'!U62 -> 0 | K62: =+'TEC3'!V62 -> 0 | L62: =+'TEC3'!W62 -> 0 | M62: =+'TEC3'!X62 -> 0 | N62: =+'TEC4'!U62 -> 0 | O62: =+'TEC4'!V62 -> 0 | P62: =+'TEC4'!W62 -> 0 | Q62: =+'TEC4'!X62 -> 0 | R62: =+'TEC5'!U62 -> 0 | S62: =+'TEC5'!V62 -> 0 | T62: =+'TEC5'!W62 -> 0 | U62: =+'TEC5'!X62 -> 0 | V62: =+'TEC6'!U62 -> 0 | W62: =+'TEC6'!V62 -> 0 | X62: =+'TEC6'!W62 -> 0 | Y62: =+'TEC6'!X62 -> 0
B63: =+IF('TEC1'!U63=0,"",'TEC1'!U63) ->  | C63: =+IF('TEC1'!V63=0,"",'TEC1'!V63) ->  | D63: =+IF('TEC1'!W63=0,"",'TEC1'!W63) ->  | E63: =+IF('TEC1'!X63=0,"",'TEC1'!X63) ->  | F63: =+'TEC2'!U63 -> 0 | G63: =+'TEC2'!V63 -> 0 | H63: =+'TEC2'!W63 -> 0 | I63: =+'TEC2'!X63 -> 0 | J63: =+'TEC3'!U63 -> 0 | K63: =+'TEC3'!V63 -> 0 | L63: =+'TEC3'!W63 -> 0 | M63: =+'TEC3'!X63 -> 0 | N63: =+'TEC4'!U63 -> 0 | O63: =+'TEC4'!V63 -> 0 | P63: =+'TEC4'!W63 -> 0 | Q63: =+'TEC4'!X63 -> 0 | R63: =+'TEC5'!U63 -> 0 | S63: =+'TEC5'!V63 -> 0 | T63: =+'TEC5'!W63 -> 0 | U63: =+'TEC5'!X63 -> 0 | V63: =+'TEC6'!U63 -> 0 | W63: =+'TEC6'!V63 -> 0 | X63: =+'TEC6'!W63 -> 0 | Y63: =+'TEC6'!X63 -> 0
B64: =+IF('TEC1'!U64=0,"",'TEC1'!U64) ->  | C64: =+IF('TEC1'!V64=0,"",'TEC1'!V64) ->  | D64: =+IF('TEC1'!W64=0,"",'TEC1'!W64) ->  | E64: =+IF('TEC1'!X64=0,"",'TEC1'!X64) ->  | F64: =+'TEC2'!U64 -> 0 | G64: =+'TEC2'!V64 -> 0 | H64: =+'TEC2'!W64 -> 0 | I64: =+'TEC2'!X64 -> 0 | J64: =+'TEC3'!U64 -> 0 | K64: =+'TEC3'!V64 -> 0 | L64: =+'TEC3'!W64 -> 0 | M64: =+'TEC3'!X64 -> 0 | N64: =+'TEC4'!U64 -> 0 | O64: =+'TEC4'!V64 -> 0 | P64: =+'TEC4'!W64 -> 0 | Q64: =+'TEC4'!X64 -> 0 | R64: =+'TEC5'!U64 -> 0 | S64: =+'TEC5'!V64 -> 0 | T64: =+'TEC5'!W64 -> 0 | U64: =+'TEC5'!X64 -> 0 | V64: =+'TEC6'!U64 -> 0 | W64: =+'TEC6'!V64 -> 0 | X64: =+'TEC6'!W64 -> 0 | Y64: =+'TEC6'!X64 -> 0
B65: =+IF('TEC1'!U65=0,"",'TEC1'!U65) ->  | C65: =+IF('TEC1'!V65=0,"",'TEC1'!V65) ->  | D65: =+IF('TEC1'!W65=0,"",'TEC1'!W65) ->  | E65: =+IF('TEC1'!X65=0,"",'TEC1'!X65) ->  | F65: =+'TEC2'!U65 -> 0 | G65: =+'TEC2'!V65 -> 0 | H65: =+'TEC2'!W65 -> 0 | I65: =+'TEC2'!X65 -> 0 | J65: =+'TEC3'!U65 -> 0 | K65: =+'TEC3'!V65 -> 0 | L65: =+'TEC3'!W65 -> 0 | M65: =+'TEC3'!X65 -> 0 | N65: =+'TEC4'!U65 -> 0 | O65: =+'TEC4'!V65 -> 0 | P65: =+'TEC4'!W65 -> 0 | Q65: =+'TEC4'!X65 -> 0 | R65: =+'TEC5'!U65 -> 0 | S65: =+'TEC5'!V65 -> 0 | T65: =+'TEC5'!W65 -> 0 | U65: =+'TEC5'!X65 -> 0 | V65: =+'TEC6'!U65 -> 0 | W65: =+'TEC6'!V65 -> 0 | X65: =+'TEC6'!W65 -> 0 | Y65: =+'TEC6'!X65 -> 0
B66: =+IF('TEC1'!U66=0,"",'TEC1'!U66) ->  | C66: =+IF('TEC1'!V66=0,"",'TEC1'!V66) ->  | D66: =+IF('TEC1'!W66=0,"",'TEC1'!W66) ->  | E66: =+IF('TEC1'!X66=0,"",'TEC1'!X66) ->  | F66: =+'TEC2'!U66 -> 0 | G66: =+'TEC2'!V66 -> 0 | H66: =+'TEC2'!W66 -> 0 | I66: =+'TEC2'!X66 -> 0 | J66: =+'TEC3'!U66 -> 0 | K66: =+'TEC3'!V66 -> 0 | L66: =+'TEC3'!W66 -> 0 | M66: =+'TEC3'!X66 -> 0 | N66: =+'TEC4'!U66 -> 0 | O66: =+'TEC4'!V66 -> 0 | P66: =+'TEC4'!W66 -> 0 | Q66: =+'TEC4'!X66 -> 0 | R66: =+'TEC5'!U66 -> 0 | S66: =+'TEC5'!V66 -> 0 | T66: =+'TEC5'!W66 -> 0 | U66: =+'TEC5'!X66 -> 0 | V66: =+'TEC6'!U66 -> 0 | W66: =+'TEC6'!V66 -> 0 | X66: =+'TEC6'!W66 -> 0 | Y66: =+'TEC6'!X66 -> 0
B67: =+IF('TEC1'!U67=0,"",'TEC1'!U67) ->  | C67: =+IF('TEC1'!V67=0,"",'TEC1'!V67) ->  | D67: =+IF('TEC1'!W67=0,"",'TEC1'!W67) ->  | E67: =+IF('TEC1'!X67=0,"",'TEC1'!X67) ->  | F67: =+'TEC2'!U67 -> 0 | G67: =+'TEC2'!V67 -> 0 | H67: =+'TEC2'!W67 -> 0 | I67: =+'TEC2'!X67 -> 0 | J67: =+'TEC3'!U67 -> 0 | K67: =+'TEC3'!V67 -> 0 | L67: =+'TEC3'!W67 -> 0 | M67: =+'TEC3'!X67 -> 0 | N67: =+'TEC4'!U67 -> 0 | O67: =+'TEC4'!V67 -> 0 | P67: =+'TEC4'!W67 -> 0 | Q67: =+'TEC4'!X67 -> 0 | R67: =+'TEC5'!U67 -> 0 | S67: =+'TEC5'!V67 -> 0 | T67: =+'TEC5'!W67 -> 0 | U67: =+'TEC5'!X67 -> 0 | V67: =+'TEC6'!U67 -> 0 | W67: =+'TEC6'!V67 -> 0 | X67: =+'TEC6'!W67 -> 0 | Y67: =+'TEC6'!X67 -> 0
B68: =+IF('TEC1'!U68=0,"",'TEC1'!U68) ->  | C68: =+IF('TEC1'!V68=0,"",'TEC1'!V68) ->  | D68: =+IF('TEC1'!W68=0,"",'TEC1'!W68) ->  | E68: =+IF('TEC1'!X68=0,"",'TEC1'!X68) ->  | F68: =+'TEC2'!U68 -> 0 | G68: =+'TEC2'!V68 -> 0 | H68: =+'TEC2'!W68 -> 0 | I68: =+'TEC2'!X68 -> 0 | J68: =+'TEC3'!U68 -> 0 | K68: =+'TEC3'!V68 -> 0 | L68: =+'TEC3'!W68 -> 0 | M68: =+'TEC3'!X68 -> 0 | N68: =+'TEC4'!U68 -> 0 | O68: =+'TEC4'!V68 -> 0 | P68: =+'TEC4'!W68 -> 0 | Q68: =+'TEC4'!X68 -> 0 | R68: =+'TEC5'!U68 -> 0 | S68: =+'TEC5'!V68 -> 0 | T68: =+'TEC5'!W68 -> 0 | U68: =+'TEC5'!X68 -> 0 | V68: =+'TEC6'!U68 -> 0 | W68: =+'TEC6'!V68 -> 0 | X68: =+'TEC6'!W68 -> 0 | Y68: =+'TEC6'!X68 -> 0
B69: =+IF('TEC1'!U69=0,"",'TEC1'!U69) ->  | C69: =+IF('TEC1'!V69=0,"",'TEC1'!V69) ->  | D69: =+IF('TEC1'!W69=0,"",'TEC1'!W69) ->  | E69: =+IF('TEC1'!X69=0,"",'TEC1'!X69) ->  | F69: =+'TEC2'!U69 -> 0 | G69: =+'TEC2'!V69 -> 0 | H69: =+'TEC2'!W69 -> 0 | I69: =+'TEC2'!X69 -> 0 | J69: =+'TEC3'!U69 -> 0 | K69: =+'TEC3'!V69 -> 0 | L69: =+'TEC3'!W69 -> 0 | M69: =+'TEC3'!X69 -> 0 | N69: =+'TEC4'!U69 -> 0 | O69: =+'TEC4'!V69 -> 0 | P69: =+'TEC4'!W69 -> 0 | Q69: =+'TEC4'!X69 -> 0 | R69: =+'TEC5'!U69 -> 0 | S69: =+'TEC5'!V69 -> 0 | T69: =+'TEC5'!W69 -> 0 | U69: =+'TEC5'!X69 -> 0 | V69: =+'TEC6'!U69 -> 0 | W69: =+'TEC6'!V69 -> 0 | X69: =+'TEC6'!W69 -> 0 | Y69: =+'TEC6'!X69 -> 0
B70: =+IF('TEC1'!U70=0,"",'TEC1'!U70) ->  | C70: =+IF('TEC1'!V70=0,"",'TEC1'!V70) ->  | D70: =+IF('TEC1'!W70=0,"",'TEC1'!W70) ->  | E70: =+IF('TEC1'!X70=0,"",'TEC1'!X70) ->  | F70: =+'TEC2'!U70 -> 0 | G70: =+'TEC2'!V70 -> 0 | H70: =+'TEC2'!W70 -> 0 | I70: =+'TEC2'!X70 -> 0 | J70: =+'TEC3'!U70 -> 0 | K70: =+'TEC3'!V70 -> 0 | L70: =+'TEC3'!W70 -> 0 | M70: =+'TEC3'!X70 -> 0 | N70: =+'TEC4'!U70 -> 0 | O70: =+'TEC4'!V70 -> 0 | P70: =+'TEC4'!W70 -> 0 | Q70: =+'TEC4'!X70 -> 0 | R70: =+'TEC5'!U70 -> 0 | S70: =+'TEC5'!V70 -> 0 | T70: =+'TEC5'!W70 -> 0 | U70: =+'TEC5'!X70 -> 0 | V70: =+'TEC6'!U70 -> 0 | W70: =+'TEC6'!V70 -> 0 | X70: =+'TEC6'!W70 -> 0 | Y70: =+'TEC6'!X70 -> 0
B71: =+IF('TEC1'!U71=0,"",'TEC1'!U71) ->  | C71: =+IF('TEC1'!V71=0,"",'TEC1'!V71) ->  | D71: =+IF('TEC1'!W71=0,"",'TEC1'!W71) ->  | E71: =+IF('TEC1'!X71=0,"",'TEC1'!X71) ->  | F71: =+'TEC2'!U71 -> 0 | G71: =+'TEC2'!V71 -> 0 | H71: =+'TEC2'!W71 -> 0 | I71: =+'TEC2'!X71 -> 0 | J71: =+'TEC3'!U71 -> 0 | K71: =+'TEC3'!V71 -> 0 | L71: =+'TEC3'!W71 -> 0 | M71: =+'TEC3'!X71 -> 0 | N71: =+'TEC4'!U71 -> 0 | O71: =+'TEC4'!V71 -> 0 | P71: =+'TEC4'!W71 -> 0 | Q71: =+'TEC4'!X71 -> 0 | R71: =+'TEC5'!U71 -> 0 | S71: =+'TEC5'!V71 -> 0 | T71: =+'TEC5'!W71 -> 0 | U71: =+'TEC5'!X71 -> 0 | V71: =+'TEC6'!U71 -> 0 | W71: =+'TEC6'!V71 -> 0 | X71: =+'TEC6'!W71 -> 0 | Y71: =+'TEC6'!X71 -> 0
B72: =+IF('TEC1'!U72=0,"",'TEC1'!U72) ->  | C72: =+IF('TEC1'!V72=0,"",'TEC1'!V72) ->  | D72: =+IF('TEC1'!W72=0,"",'TEC1'!W72) ->  | E72: =+IF('TEC1'!X72=0,"",'TEC1'!X72) ->  | F72: =+'TEC2'!U72 -> 0 | G72: =+'TEC2'!V72 -> 0 | H72: =+'TEC2'!W72 -> 0 | I72: =+'TEC2'!X72 -> 0 | J72: =+'TEC3'!U72 -> 0 | K72: =+'TEC3'!V72 -> 0 | L72: =+'TEC3'!W72 -> 0 | M72: =+'TEC3'!X72 -> 0 | N72: =+'TEC4'!U72 -> 0 | O72: =+'TEC4'!V72 -> 0 | P72: =+'TEC4'!W72 -> 0 | Q72: =+'TEC4'!X72 -> 0 | R72: =+'TEC5'!U72 -> 0 | S72: =+'TEC5'!V72 -> 0 | T72: =+'TEC5'!W72 -> 0 | U72: =+'TEC5'!X72 -> 0 | V72: =+'TEC6'!U72 -> 0 | W72: =+'TEC6'!V72 -> 0 | X72: =+'TEC6'!W72 -> 0 | Y72: =+'TEC6'!X72 -> 0
B73: =+IF('TEC1'!U73=0,"",'TEC1'!U73) ->  | C73: =+IF('TEC1'!V73=0,"",'TEC1'!V73) ->  | D73: =+IF('TEC1'!W73=0,"",'TEC1'!W73) ->  | E73: =+IF('TEC1'!X73=0,"",'TEC1'!X73) ->  | F73: =+'TEC2'!U73 -> 0 | G73: =+'TEC2'!V73 -> 0 | H73: =+'TEC2'!W73 -> 0 | I73: =+'TEC2'!X73 -> 0 | J73: =+'TEC3'!U73 -> 0 | K73: =+'TEC3'!V73 -> 0 | L73: =+'TEC3'!W73 -> 0 | M73: =+'TEC3'!X73 -> 0 | N73: =+'TEC4'!U73 -> 0 | O73: =+'TEC4'!V73 -> 0 | P73: =+'TEC4'!W73 -> 0 | Q73: =+'TEC4'!X73 -> 0 | R73: =+'TEC5'!U73 -> 0 | S73: =+'TEC5'!V73 -> 0 | T73: =+'TEC5'!W73 -> 0 | U73: =+'TEC5'!X73 -> 0 | V73: =+'TEC6'!U73 -> 0 | W73: =+'TEC6'!V73 -> 0 | X73: =+'TEC6'!W73 -> 0 | Y73: =+'TEC6'!X73 -> 0
B74: =+IF('TEC1'!U74=0,"",'TEC1'!U74) ->  | C74: =+IF('TEC1'!V74=0,"",'TEC1'!V74) ->  | D74: =+IF('TEC1'!W74=0,"",'TEC1'!W74) ->  | E74: =+IF('TEC1'!X74=0,"",'TEC1'!X74) ->  | F74: =+'TEC2'!U74 -> 0 | G74: =+'TEC2'!V74 -> 0 | H74: =+'TEC2'!W74 -> 0 | I74: =+'TEC2'!X74 -> 0 | J74: =+'TEC3'!U74 -> 0 | K74: =+'TEC3'!V74 -> 0 | L74: =+'TEC3'!W74 -> 0 | M74: =+'TEC3'!X74 -> 0 | N74: =+'TEC4'!U74 -> 0 | O74: =+'TEC4'!V74 -> 0 | P74: =+'TEC4'!W74 -> 0 | Q74: =+'TEC4'!X74 -> 0 | R74: =+'TEC5'!U74 -> 0 | S74: =+'TEC5'!V74 -> 0 | T74: =+'TEC5'!W74 -> 0 | U74: =+'TEC5'!X74 -> 0 | V74: =+'TEC6'!U74 -> 0 | W74: =+'TEC6'!V74 -> 0 | X74: =+'TEC6'!W74 -> 0 | Y74: =+'TEC6'!X74 -> 0
B75: =+IF('TEC1'!U75=0,"",'TEC1'!U75) ->  | C75: =+IF('TEC1'!V75=0,"",'TEC1'!V75) ->  | D75: =+IF('TEC1'!W75=0,"",'TEC1'!W75) ->  | E75: =+IF('TEC1'!X75=0,"",'TEC1'!X75) ->  | F75: =+'TEC2'!U75 -> 0 | G75: =+'TEC2'!V75 -> 0 | H75: =+'TEC2'!W75 -> 0 | I75: =+'TEC2'!X75 -> 0 | J75: =+'TEC3'!U75 -> 0 | K75: =+'TEC3'!V75 -> 0 | L75: =+'TEC3'!W75 -> 0 | M75: =+'TEC3'!X75 -> 0 | N75: =+'TEC4'!U75 -> 0 | O75: =+'TEC4'!V75 -> 0 | P75: =+'TEC4'!W75 -> 0 | Q75: =+'TEC4'!X75 -> 0 | R75: =+'TEC5'!U75 -> 0 | S75: =+'TEC5'!V75 -> 0 | T75: =+'TEC5'!W75 -> 0 | U75: =+'TEC5'!X75 -> 0 | V75: =+'TEC6'!U75 -> 0 | W75: =+'TEC6'!V75 -> 0 | X75: =+'TEC6'!W75 -> 0 | Y75: =+'TEC6'!X75 -> 0
B76: =+IF('TEC1'!U76=0,"",'TEC1'!U76) ->  | C76: =+IF('TEC1'!V76=0,"",'TEC1'!V76) ->  | D76: =+IF('TEC1'!W76=0,"",'TEC1'!W76) ->  | E76: =+IF('TEC1'!X76=0,"",'TEC1'!X76) ->  | F76: =+'TEC2'!U76 -> 0 | G76: =+'TEC2'!V76 -> 0 | H76: =+'TEC2'!W76 -> 0 | I76: =+'TEC2'!X76 -> 0 | J76: =+'TEC3'!U76 -> 0 | K76: =+'TEC3'!V76 -> 0 | L76: =+'TEC3'!W76 -> 0 | M76: =+'TEC3'!X76 -> 0 | N76: =+'TEC4'!U76 -> 0 | O76: =+'TEC4'!V76 -> 0 | P76: =+'TEC4'!W76 -> 0 | Q76: =+'TEC4'!X76 -> 0 | R76: =+'TEC5'!U76 -> 0 | S76: =+'TEC5'!V76 -> 0 | T76: =+'TEC5'!W76 -> 0 | U76: =+'TEC5'!X76 -> 0 | V76: =+'TEC6'!U76 -> 0 | W76: =+'TEC6'!V76 -> 0 | X76: =+'TEC6'!W76 -> 0 | Y76: =+'TEC6'!X76 -> 0
B77: =+IF('TEC1'!U77=0,"",'TEC1'!U77) ->  | C77: =+IF('TEC1'!V77=0,"",'TEC1'!V77) ->  | D77: =+IF('TEC1'!W77=0,"",'TEC1'!W77) ->  | E77: =+IF('TEC1'!X77=0,"",'TEC1'!X77) ->  | F77: =+'TEC2'!U77 -> 0 | G77: =+'TEC2'!V77 -> 0 | H77: =+'TEC2'!W77 -> 0 | I77: =+'TEC2'!X77 -> 0 | J77: =+'TEC3'!U77 -> 0 | K77: =+'TEC3'!V77 -> 0 | L77: =+'TEC3'!W77 -> 0 | M77: =+'TEC3'!X77 -> 0 | N77: =+'TEC4'!U77 -> 0 | O77: =+'TEC4'!V77 -> 0 | P77: =+'TEC4'!W77 -> 0 | Q77: =+'TEC4'!X77 -> 0 | R77: =+'TEC5'!U77 -> 0 | S77: =+'TEC5'!V77 -> 0 | T77: =+'TEC5'!W77 -> 0 | U77: =+'TEC5'!X77 -> 0 | V77: =+'TEC6'!U77 -> 0 | W77: =+'TEC6'!V77 -> 0 | X77: =+'TEC6'!W77 -> 0 | Y77: =+'TEC6'!X77 -> 0
B78: =+IF('TEC1'!U78=0,"",'TEC1'!U78) ->  | C78: =+IF('TEC1'!V78=0,"",'TEC1'!V78) ->  | D78: =+IF('TEC1'!W78=0,"",'TEC1'!W78) ->  | E78: =+IF('TEC1'!X78=0,"",'TEC1'!X78) ->  | F78: =+'TEC2'!U78 -> 0 | G78: =+'TEC2'!V78 -> 0 | H78: =+'TEC2'!W78 -> 0 | I78: =+'TEC2'!X78 -> 0 | J78: =+'TEC3'!U78 -> 0 | K78: =+'TEC3'!V78 -> 0 | L78: =+'TEC3'!W78 -> 0 | M78: =+'TEC3'!X78 -> 0 | N78: =+'TEC4'!U78 -> 0 | O78: =+'TEC4'!V78 -> 0 | P78: =+'TEC4'!W78 -> 0 | Q78: =+'TEC4'!X78 -> 0 | R78: =+'TEC5'!U78 -> 0 | S78: =+'TEC5'!V78 -> 0 | T78: =+'TEC5'!W78 -> 0 | U78: =+'TEC5'!X78 -> 0 | V78: =+'TEC6'!U78 -> 0 | W78: =+'TEC6'!V78 -> 0 | X78: =+'TEC6'!W78 -> 0 | Y78: =+'TEC6'!X78 -> 0
B79: =+IF('TEC1'!U79=0,"",'TEC1'!U79) ->  | C79: =+IF('TEC1'!V79=0,"",'TEC1'!V79) ->  | D79: =+IF('TEC1'!W79=0,"",'TEC1'!W79) ->  | E79: =+IF('TEC1'!X79=0,"",'TEC1'!X79) ->  | F79: =+'TEC2'!U79 -> 0 | G79: =+'TEC2'!V79 -> 0 | H79: =+'TEC2'!W79 -> 0 | I79: =+'TEC2'!X79 -> 0 | J79: =+'TEC3'!U79 -> 0 | K79: =+'TEC3'!V79 -> 0 | L79: =+'TEC3'!W79 -> 0 | M79: =+'TEC3'!X79 -> 0 | N79: =+'TEC4'!U79 -> 0 | O79: =+'TEC4'!V79 -> 0 | P79: =+'TEC4'!W79 -> 0 | Q79: =+'TEC4'!X79 -> 0 | R79: =+'TEC5'!U79 -> 0 | S79: =+'TEC5'!V79 -> 0 | T79: =+'TEC5'!W79 -> 0 | U79: =+'TEC5'!X79 -> 0 | V79: =+'TEC6'!U79 -> 0 | W79: =+'TEC6'!V79 -> 0 | X79: =+'TEC6'!W79 -> 0 | Y79: =+'TEC6'!X79 -> 0
B80: =+IF('TEC1'!U80=0,"",'TEC1'!U80) ->  | C80: =+IF('TEC1'!V80=0,"",'TEC1'!V80) ->  | D80: =+IF('TEC1'!W80=0,"",'TEC1'!W80) ->  | E80: =+IF('TEC1'!X80=0,"",'TEC1'!X80) ->  | F80: =+'TEC2'!U80 -> 0 | G80: =+'TEC2'!V80 -> 0 | H80: =+'TEC2'!W80 -> 0 | I80: =+'TEC2'!X80 -> 0 | J80: =+'TEC3'!U80 -> 0 | K80: =+'TEC3'!V80 -> 0 | L80: =+'TEC3'!W80 -> 0 | M80: =+'TEC3'!X80 -> 0 | N80: =+'TEC4'!U80 -> 0 | O80: =+'TEC4'!V80 -> 0 | P80: =+'TEC4'!W80 -> 0 | Q80: =+'TEC4'!X80 -> 0 | R80: =+'TEC5'!U80 -> 0 | S80: =+'TEC5'!V80 -> 0 | T80: =+'TEC5'!W80 -> 0 | U80: =+'TEC5'!X80 -> 0 | V80: =+'TEC6'!U80 -> 0 | W80: =+'TEC6'!V80 -> 0 | X80: =+'TEC6'!W80 -> 0 | Y80: =+'TEC6'!X80 -> 0
B81: =+IF('TEC1'!U81=0,"",'TEC1'!U81) ->  | C81: =+IF('TEC1'!V81=0,"",'TEC1'!V81) ->  | D81: =+IF('TEC1'!W81=0,"",'TEC1'!W81) ->  | E81: =+IF('TEC1'!X81=0,"",'TEC1'!X81) ->  | F81: =+'TEC2'!U81 -> 0 | G81: =+'TEC2'!V81 -> 0 | H81: =+'TEC2'!W81 -> 0 | I81: =+'TEC2'!X81 -> 0 | J81: =+'TEC3'!U81 -> 0 | K81: =+'TEC3'!V81 -> 0 | L81: =+'TEC3'!W81 -> 0 | M81: =+'TEC3'!X81 -> 0 | N81: =+'TEC4'!U81 -> 0 | O81: =+'TEC4'!V81 -> 0 | P81: =+'TEC4'!W81 -> 0 | Q81: =+'TEC4'!X81 -> 0 | R81: =+'TEC5'!U81 -> 0 | S81: =+'TEC5'!V81 -> 0 | T81: =+'TEC5'!W81 -> 0 | U81: =+'TEC5'!X81 -> 0 | V81: =+'TEC6'!U81 -> 0 | W81: =+'TEC6'!V81 -> 0 | X81: =+'TEC6'!W81 -> 0 | Y81: =+'TEC6'!X81 -> 0
B82: =+IF('TEC1'!U82=0,"",'TEC1'!U82) ->  | C82: =+IF('TEC1'!V82=0,"",'TEC1'!V82) ->  | D82: =+IF('TEC1'!W82=0,"",'TEC1'!W82) ->  | E82: =+IF('TEC1'!X82=0,"",'TEC1'!X82) ->  | F82: =+'TEC2'!U82 -> 0 | G82: =+'TEC2'!V82 -> 0 | H82: =+'TEC2'!W82 -> 0 | I82: =+'TEC2'!X82 -> 0 | J82: =+'TEC3'!U82 -> 0 | K82: =+'TEC3'!V82 -> 0 | L82: =+'TEC3'!W82 -> 0 | M82: =+'TEC3'!X82 -> 0 | N82: =+'TEC4'!U82 -> 0 | O82: =+'TEC4'!V82 -> 0 | P82: =+'TEC4'!W82 -> 0 | Q82: =+'TEC4'!X82 -> 0 | R82: =+'TEC5'!U82 -> 0 | S82: =+'TEC5'!V82 -> 0 | T82: =+'TEC5'!W82 -> 0 | U82: =+'TEC5'!X82 -> 0 | V82: =+'TEC6'!U82 -> 0 | W82: =+'TEC6'!V82 -> 0 | X82: =+'TEC6'!W82 -> 0 | Y82: =+'TEC6'!X82 -> 0
B83: =+IF('TEC1'!U83=0,"",'TEC1'!U83) ->  | C83: =+IF('TEC1'!V83=0,"",'TEC1'!V83) ->  | D83: =+IF('TEC1'!W83=0,"",'TEC1'!W83) ->  | E83: =+IF('TEC1'!X83=0,"",'TEC1'!X83) ->  | F83: =+'TEC2'!U83 -> 0 | G83: =+'TEC2'!V83 -> 0 | H83: =+'TEC2'!W83 -> 0 | I83: =+'TEC2'!X83 -> 0 | J83: =+'TEC3'!U83 -> 0 | K83: =+'TEC3'!V83 -> 0 | L83: =+'TEC3'!W83 -> 0 | M83: =+'TEC3'!X83 -> 0 | N83: =+'TEC4'!U83 -> 0 | O83: =+'TEC4'!V83 -> 0 | P83: =+'TEC4'!W83 -> 0 | Q83: =+'TEC4'!X83 -> 0 | R83: =+'TEC5'!U83 -> 0 | S83: =+'TEC5'!V83 -> 0 | T83: =+'TEC5'!W83 -> 0 | U83: =+'TEC5'!X83 -> 0 | V83: =+'TEC6'!U83 -> 0 | W83: =+'TEC6'!V83 -> 0 | X83: =+'TEC6'!W83 -> 0 | Y83: =+'TEC6'!X83 -> 0
B84: =+IF('TEC1'!U84=0,"",'TEC1'!U84) ->  | C84: =+IF('TEC1'!V84=0,"",'TEC1'!V84) ->  | D84: =+IF('TEC1'!W84=0,"",'TEC1'!W84) ->  | E84: =+IF('TEC1'!X84=0,"",'TEC1'!X84) ->  | F84: =+'TEC2'!U84 -> 0 | G84: =+'TEC2'!V84 -> 0 | H84: =+'TEC2'!W84 -> 0 | I84: =+'TEC2'!X84 -> 0 | J84: =+'TEC3'!U84 -> 0 | K84: =+'TEC3'!V84 -> 0 | L84: =+'TEC3'!W84 -> 0 | M84: =+'TEC3'!X84 -> 0 | N84: =+'TEC4'!U84 -> 0 | O84: =+'TEC4'!V84 -> 0 | P84: =+'TEC4'!W84 -> 0 | Q84: =+'TEC4'!X84 -> 0 | R84: =+'TEC5'!U84 -> 0 | S84: =+'TEC5'!V84 -> 0 | T84: =+'TEC5'!W84 -> 0 | U84: =+'TEC5'!X84 -> 0 | V84: =+'TEC6'!U84 -> 0 | W84: =+'TEC6'!V84 -> 0 | X84: =+'TEC6'!W84 -> 0 | Y84: =+'TEC6'!X84 -> 0
B85: =+IF('TEC1'!U85=0,"",'TEC1'!U85) ->  | C85: =+IF('TEC1'!V85=0,"",'TEC1'!V85) ->  | D85: =+IF('TEC1'!W85=0,"",'TEC1'!W85) ->  | E85: =+IF('TEC1'!X85=0,"",'TEC1'!X85) ->  | F85: =+'TEC2'!U85 -> 0 | G85: =+'TEC2'!V85 -> 0 | H85: =+'TEC2'!W85 -> 0 | I85: =+'TEC2'!X85 -> 0 | J85: =+'TEC3'!U85 -> 0 | K85: =+'TEC3'!V85 -> 0 | L85: =+'TEC3'!W85 -> 0 | M85: =+'TEC3'!X85 -> 0 | N85: =+'TEC4'!U85 -> 0 | O85: =+'TEC4'!V85 -> 0 | P85: =+'TEC4'!W85 -> 0 | Q85: =+'TEC4'!X85 -> 0 | R85: =+'TEC5'!U85 -> 0 | S85: =+'TEC5'!V85 -> 0 | T85: =+'TEC5'!W85 -> 0 | U85: =+'TEC5'!X85 -> 0 | V85: =+'TEC6'!U85 -> 0 | W85: =+'TEC6'!V85 -> 0 | X85: =+'TEC6'!W85 -> 0 | Y85: =+'TEC6'!X85 -> 0
B86: =+IF('TEC1'!U86=0,"",'TEC1'!U86) ->  | C86: =+IF('TEC1'!V86=0,"",'TEC1'!V86) ->  | D86: =+IF('TEC1'!W86=0,"",'TEC1'!W86) ->  | E86: =+IF('TEC1'!X86=0,"",'TEC1'!X86) ->  | F86: =+'TEC2'!U86 -> 0 | G86: =+'TEC2'!V86 -> 0 | H86: =+'TEC2'!W86 -> 0 | I86: =+'TEC2'!X86 -> 0 | J86: =+'TEC3'!U86 -> 0 | K86: =+'TEC3'!V86 -> 0 | L86: =+'TEC3'!W86 -> 0 | M86: =+'TEC3'!X86 -> 0 | N86: =+'TEC4'!U86 -> 0 | O86: =+'TEC4'!V86 -> 0 | P86: =+'TEC4'!W86 -> 0 | Q86: =+'TEC4'!X86 -> 0 | R86: =+'TEC5'!U86 -> 0 | S86: =+'TEC5'!V86 -> 0 | T86: =+'TEC5'!W86 -> 0 | U86: =+'TEC5'!X86 -> 0 | V86: =+'TEC6'!U86 -> 0 | W86: =+'TEC6'!V86 -> 0 | X86: =+'TEC6'!W86 -> 0 | Y86: =+'TEC6'!X86 -> 0
B87: =+IF('TEC1'!U87=0,"",'TEC1'!U87) ->  | C87: =+IF('TEC1'!V87=0,"",'TEC1'!V87) ->  | D87: =+IF('TEC1'!W87=0,"",'TEC1'!W87) ->  | E87: =+IF('TEC1'!X87=0,"",'TEC1'!X87) ->  | F87: =+'TEC2'!U87 -> 0 | G87: =+'TEC2'!V87 -> 0 | H87: =+'TEC2'!W87 -> 0 | I87: =+'TEC2'!X87 -> 0 | J87: =+'TEC3'!U87 -> 0 | K87: =+'TEC3'!V87 -> 0 | L87: =+'TEC3'!W87 -> 0 | M87: =+'TEC3'!X87 -> 0 | N87: =+'TEC4'!U87 -> 0 | O87: =+'TEC4'!V87 -> 0 | P87: =+'TEC4'!W87 -> 0 | Q87: =+'TEC4'!X87 -> 0 | R87: =+'TEC5'!U87 -> 0 | S87: =+'TEC5'!V87 -> 0 | T87: =+'TEC5'!W87 -> 0 | U87: =+'TEC5'!X87 -> 0 | V87: =+'TEC6'!U87 -> 0 | W87: =+'TEC6'!V87 -> 0 | X87: =+'TEC6'!W87 -> 0 | Y87: =+'TEC6'!X87 -> 0
B88: =+IF('TEC1'!U88=0,"",'TEC1'!U88) ->  | C88: =+IF('TEC1'!V88=0,"",'TEC1'!V88) ->  | D88: =+IF('TEC1'!W88=0,"",'TEC1'!W88) ->  | E88: =+IF('TEC1'!X88=0,"",'TEC1'!X88) ->  | F88: =+'TEC2'!U88 -> 0 | G88: =+'TEC2'!V88 -> 0 | H88: =+'TEC2'!W88 -> 0 | I88: =+'TEC2'!X88 -> 0 | J88: =+'TEC3'!U88 -> 0 | K88: =+'TEC3'!V88 -> 0 | L88: =+'TEC3'!W88 -> 0 | M88: =+'TEC3'!X88 -> 0 | N88: =+'TEC4'!U88 -> 0 | O88: =+'TEC4'!V88 -> 0 | P88: =+'TEC4'!W88 -> 0 | Q88: =+'TEC4'!X88 -> 0 | R88: =+'TEC5'!U88 -> 0 | S88: =+'TEC5'!V88 -> 0 | T88: =+'TEC5'!W88 -> 0 | U88: =+'TEC5'!X88 -> 0 | V88: =+'TEC6'!U88 -> 0 | W88: =+'TEC6'!V88 -> 0 | X88: =+'TEC6'!W88 -> 0 | Y88: =+'TEC6'!X88 -> 0
B89: =+IF('TEC1'!U89=0,"",'TEC1'!U89) ->  | C89: =+IF('TEC1'!V89=0,"",'TEC1'!V89) ->  | D89: =+IF('TEC1'!W89=0,"",'TEC1'!W89) ->  | E89: =+IF('TEC1'!X89=0,"",'TEC1'!X89) ->  | F89: =+'TEC2'!U89 -> 0 | G89: =+'TEC2'!V89 -> 0 | H89: =+'TEC2'!W89 -> 0 | I89: =+'TEC2'!X89 -> 0 | J89: =+'TEC3'!U89 -> 0 | K89: =+'TEC3'!V89 -> 0 | L89: =+'TEC3'!W89 -> 0 | M89: =+'TEC3'!X89 -> 0 | N89: =+'TEC4'!U89 -> 0 | O89: =+'TEC4'!V89 -> 0 | P89: =+'TEC4'!W89 -> 0 | Q89: =+'TEC4'!X89 -> 0 | R89: =+'TEC5'!U89 -> 0 | S89: =+'TEC5'!V89 -> 0 | T89: =+'TEC5'!W89 -> 0 | U89: =+'TEC5'!X89 -> 0 | V89: =+'TEC6'!U89 -> 0 | W89: =+'TEC6'!V89 -> 0 | X89: =+'TEC6'!W89 -> 0 | Y89: =+'TEC6'!X89 -> 0
B90: =+IF('TEC1'!U90=0,"",'TEC1'!U90) ->  | C90: =+IF('TEC1'!V90=0,"",'TEC1'!V90) ->  | D90: =+IF('TEC1'!W90=0,"",'TEC1'!W90) ->  | E90: =+IF('TEC1'!X90=0,"",'TEC1'!X90) ->  | F90: =+'TEC2'!U90 -> 0 | G90: =+'TEC2'!V90 -> 0 | H90: =+'TEC2'!W90 -> 0 | I90: =+'TEC2'!X90 -> 0 | J90: =+'TEC3'!U90 -> 0 | K90: =+'TEC3'!V90 -> 0 | L90: =+'TEC3'!W90 -> 0 | M90: =+'TEC3'!X90 -> 0 | N90: =+'TEC4'!U90 -> 0 | O90: =+'TEC4'!V90 -> 0 | P90: =+'TEC4'!W90 -> 0 | Q90: =+'TEC4'!X90 -> 0 | R90: =+'TEC5'!U90 -> 0 | S90: =+'TEC5'!V90 -> 0 | T90: =+'TEC5'!W90 -> 0 | U90: =+'TEC5'!X90 -> 0 | V90: =+'TEC6'!U90 -> 0 | W90: =+'TEC6'!V90 -> 0 | X90: =+'TEC6'!W90 -> 0 | Y90: =+'TEC6'!X90 -> 0
B91: =+IF('TEC1'!U91=0,"",'TEC1'!U91) ->  | C91: =+IF('TEC1'!V91=0,"",'TEC1'!V91) ->  | D91: =+IF('TEC1'!W91=0,"",'TEC1'!W91) ->  | E91: =+IF('TEC1'!X91=0,"",'TEC1'!X91) ->  | F91: =+'TEC2'!U91 -> 0 | G91: =+'TEC2'!V91 -> 0 | H91: =+'TEC2'!W91 -> 0 | I91: =+'TEC2'!X91 -> 0 | J91: =+'TEC3'!U91 -> 0 | K91: =+'TEC3'!V91 -> 0 | L91: =+'TEC3'!W91 -> 0 | M91: =+'TEC3'!X91 -> 0 | N91: =+'TEC4'!U91 -> 0 | O91: =+'TEC4'!V91 -> 0 | P91: =+'TEC4'!W91 -> 0 | Q91: =+'TEC4'!X91 -> 0 | R91: =+'TEC5'!U91 -> 0 | S91: =+'TEC5'!V91 -> 0 | T91: =+'TEC5'!W91 -> 0 | U91: =+'TEC5'!X91 -> 0 | V91: =+'TEC6'!U91 -> 0 | W91: =+'TEC6'!V91 -> 0 | X91: =+'TEC6'!W91 -> 0 | Y91: =+'TEC6'!X91 -> 0
B92: =+IF('TEC1'!U92=0,"",'TEC1'!U92) ->  | C92: =+IF('TEC1'!V92=0,"",'TEC1'!V92) ->  | D92: =+IF('TEC1'!W92=0,"",'TEC1'!W92) ->  | E92: =+IF('TEC1'!X92=0,"",'TEC1'!X92) ->  | F92: =+'TEC2'!U92 -> 0 | G92: =+'TEC2'!V92 -> 0 | H92: =+'TEC2'!W92 -> 0 | I92: =+'TEC2'!X92 -> 0 | J92: =+'TEC3'!U92 -> 0 | K92: =+'TEC3'!V92 -> 0 | L92: =+'TEC3'!W92 -> 0 | M92: =+'TEC3'!X92 -> 0 | N92: =+'TEC4'!U92 -> 0 | O92: =+'TEC4'!V92 -> 0 | P92: =+'TEC4'!W92 -> 0 | Q92: =+'TEC4'!X92 -> 0 | R92: =+'TEC5'!U92 -> 0 | S92: =+'TEC5'!V92 -> 0 | T92: =+'TEC5'!W92 -> 0 | U92: =+'TEC5'!X92 -> 0 | V92: =+'TEC6'!U92 -> 0 | W92: =+'TEC6'!V92 -> 0 | X92: =+'TEC6'!W92 -> 0 | Y92: =+'TEC6'!X92 -> 0
B93: =+IF('TEC1'!U93=0,"",'TEC1'!U93) ->  | C93: =+IF('TEC1'!V93=0,"",'TEC1'!V93) ->  | D93: =+IF('TEC1'!W93=0,"",'TEC1'!W93) ->  | E93: =+IF('TEC1'!X93=0,"",'TEC1'!X93) ->  | F93: =+'TEC2'!U93 -> 0 | G93: =+'TEC2'!V93 -> 0 | H93: =+'TEC2'!W93 -> 0 | I93: =+'TEC2'!X93 -> 0 | J93: =+'TEC3'!U93 -> 0 | K93: =+'TEC3'!V93 -> 0 | L93: =+'TEC3'!W93 -> 0 | M93: =+'TEC3'!X93 -> 0 | N93: =+'TEC4'!U93 -> 0 | O93: =+'TEC4'!V93 -> 0 | P93: =+'TEC4'!W93 -> 0 | Q93: =+'TEC4'!X93 -> 0 | R93: =+'TEC5'!U93 -> 0 | S93: =+'TEC5'!V93 -> 0 | T93: =+'TEC5'!W93 -> 0 | U93: =+'TEC5'!X93 -> 0 | V93: =+'TEC6'!U93 -> 0 | W93: =+'TEC6'!V93 -> 0 | X93: =+'TEC6'!W93 -> 0 | Y93: =+'TEC6'!X93 -> 0
B94: =+IF('TEC1'!U94=0,"",'TEC1'!U94) ->  | C94: =+IF('TEC1'!V94=0,"",'TEC1'!V94) ->  | D94: =+IF('TEC1'!W94=0,"",'TEC1'!W94) ->  | E94: =+IF('TEC1'!X94=0,"",'TEC1'!X94) ->  | F94: =+'TEC2'!U94 -> 0 | G94: =+'TEC2'!V94 -> 0 | H94: =+'TEC2'!W94 -> 0 | I94: =+'TEC2'!X94 -> 0 | J94: =+'TEC3'!U94 -> 0 | K94: =+'TEC3'!V94 -> 0 | L94: =+'TEC3'!W94 -> 0 | M94: =+'TEC3'!X94 -> 0 | N94: =+'TEC4'!U94 -> 0 | O94: =+'TEC4'!V94 -> 0 | P94: =+'TEC4'!W94 -> 0 | Q94: =+'TEC4'!X94 -> 0 | R94: =+'TEC5'!U94 -> 0 | S94: =+'TEC5'!V94 -> 0 | T94: =+'TEC5'!W94 -> 0 | U94: =+'TEC5'!X94 -> 0 | V94: =+'TEC6'!U94 -> 0 | W94: =+'TEC6'!V94 -> 0 | X94: =+'TEC6'!W94 -> 0 | Y94: =+'TEC6'!X94 -> 0
B95: =+IF('TEC1'!U95=0,"",'TEC1'!U95) ->  | C95: =+IF('TEC1'!V95=0,"",'TEC1'!V95) ->  | D95: =+IF('TEC1'!W95=0,"",'TEC1'!W95) ->  | E95: =+IF('TEC1'!X95=0,"",'TEC1'!X95) ->  | F95: =+'TEC2'!U95 -> 0 | G95: =+'TEC2'!V95 -> 0 | H95: =+'TEC2'!W95 -> 0 | I95: =+'TEC2'!X95 -> 0 | J95: =+'TEC3'!U95 -> 0 | K95: =+'TEC3'!V95 -> 0 | L95: =+'TEC3'!W95 -> 0 | M95: =+'TEC3'!X95 -> 0 | N95: =+'TEC4'!U95 -> 0 | O95: =+'TEC4'!V95 -> 0 | P95: =+'TEC4'!W95 -> 0 | Q95: =+'TEC4'!X95 -> 0 | R95: =+'TEC5'!U95 -> 0 | S95: =+'TEC5'!V95 -> 0 | T95: =+'TEC5'!W95 -> 0 | U95: =+'TEC5'!X95 -> 0 | V95: =+'TEC6'!U95 -> 0 | W95: =+'TEC6'!V95 -> 0 | X95: =+'TEC6'!W95 -> 0 | Y95: =+'TEC6'!X95 -> 0
B96: =+IF('TEC1'!U96=0,"",'TEC1'!U96) ->  | C96: =+IF('TEC1'!V96=0,"",'TEC1'!V96) ->  | D96: =+IF('TEC1'!W96=0,"",'TEC1'!W96) ->  | E96: =+IF('TEC1'!X96=0,"",'TEC1'!X96) ->  | F96: =+'TEC2'!U96 -> 0 | G96: =+'TEC2'!V96 -> 0 | H96: =+'TEC2'!W96 -> 0 | I96: =+'TEC2'!X96 -> 0 | J96: =+'TEC3'!U96 -> 0 | K96: =+'TEC3'!V96 -> 0 | L96: =+'TEC3'!W96 -> 0 | M96: =+'TEC3'!X96 -> 0 | N96: =+'TEC4'!U96 -> 0 | O96: =+'TEC4'!V96 -> 0 | P96: =+'TEC4'!W96 -> 0 | Q96: =+'TEC4'!X96 -> 0 | R96: =+'TEC5'!U96 -> 0 | S96: =+'TEC5'!V96 -> 0 | T96: =+'TEC5'!W96 -> 0 | U96: =+'TEC5'!X96 -> 0 | V96: =+'TEC6'!U96 -> 0 | W96: =+'TEC6'!V96 -> 0 | X96: =+'TEC6'!W96 -> 0 | Y96: =+'TEC6'!X96 -> 0
B97: =+IF('TEC1'!U97=0,"",'TEC1'!U97) ->  | C97: =+IF('TEC1'!V97=0,"",'TEC1'!V97) ->  | D97: =+IF('TEC1'!W97=0,"",'TEC1'!W97) ->  | E97: =+IF('TEC1'!X97=0,"",'TEC1'!X97) ->  | F97: =+'TEC2'!U97 -> 0 | G97: =+'TEC2'!V97 -> 0 | H97: =+'TEC2'!W97 -> 0 | I97: =+'TEC2'!X97 -> 0 | J97: =+'TEC3'!U97 -> 0 | K97: =+'TEC3'!V97 -> 0 | L97: =+'TEC3'!W97 -> 0 | M97: =+'TEC3'!X97 -> 0 | N97: =+'TEC4'!U97 -> 0 | O97: =+'TEC4'!V97 -> 0 | P97: =+'TEC4'!W97 -> 0 | Q97: =+'TEC4'!X97 -> 0 | R97: =+'TEC5'!U97 -> 0 | S97: =+'TEC5'!V97 -> 0 | T97: =+'TEC5'!W97 -> 0 | U97: =+'TEC5'!X97 -> 0 | V97: =+'TEC6'!U97 -> 0 | W97: =+'TEC6'!V97 -> 0 | X97: =+'TEC6'!W97 -> 0 | Y97: =+'TEC6'!X97 -> 0
B98: =+IF('TEC1'!U98=0,"",'TEC1'!U98) ->  | C98: =+IF('TEC1'!V98=0,"",'TEC1'!V98) ->  | D98: =+IF('TEC1'!W98=0,"",'TEC1'!W98) ->  | E98: =+IF('TEC1'!X98=0,"",'TEC1'!X98) ->  | F98: =+'TEC2'!U98 -> 0 | G98: =+'TEC2'!V98 -> 0 | H98: =+'TEC2'!W98 -> 0 | I98: =+'TEC2'!X98 -> 0 | J98: =+'TEC3'!U98 -> 0 | K98: =+'TEC3'!V98 -> 0 | L98: =+'TEC3'!W98 -> 0 | M98: =+'TEC3'!X98 -> 0 | N98: =+'TEC4'!U98 -> 0 | O98: =+'TEC4'!V98 -> 0 | P98: =+'TEC4'!W98 -> 0 | Q98: =+'TEC4'!X98 -> 0 | R98: =+'TEC5'!U98 -> 0 | S98: =+'TEC5'!V98 -> 0 | T98: =+'TEC5'!W98 -> 0 | U98: =+'TEC5'!X98 -> 0 | V98: =+'TEC6'!U98 -> 0 | W98: =+'TEC6'!V98 -> 0 | X98: =+'TEC6'!W98 -> 0 | Y98: =+'TEC6'!X98 -> 0
B99: =+IF('TEC1'!U99=0,"",'TEC1'!U99) ->  | C99: =+IF('TEC1'!V99=0,"",'TEC1'!V99) ->  | D99: =+IF('TEC1'!W99=0,"",'TEC1'!W99) ->  | E99: =+IF('TEC1'!X99=0,"",'TEC1'!X99) ->  | F99: =+'TEC2'!U99 -> 0 | G99: =+'TEC2'!V99 -> 0 | H99: =+'TEC2'!W99 -> 0 | I99: =+'TEC2'!X99 -> 0 | J99: =+'TEC3'!U99 -> 0 | K99: =+'TEC3'!V99 -> 0 | L99: =+'TEC3'!W99 -> 0 | M99: =+'TEC3'!X99 -> 0 | N99: =+'TEC4'!U99 -> 0 | O99: =+'TEC4'!V99 -> 0 | P99: =+'TEC4'!W99 -> 0 | Q99: =+'TEC4'!X99 -> 0 | R99: =+'TEC5'!U99 -> 0 | S99: =+'TEC5'!V99 -> 0 | T99: =+'TEC5'!W99 -> 0 | U99: =+'TEC5'!X99 -> 0 | V99: =+'TEC6'!U99 -> 0 | W99: =+'TEC6'!V99 -> 0 | X99: =+'TEC6'!W99 -> 0 | Y99: =+'TEC6'!X99 -> 0
B100: =+IF('TEC1'!U100=0,"",'TEC1'!U100) ->  | C100: =+IF('TEC1'!V100=0,"",'TEC1'!V100) ->  | D100: =+IF('TEC1'!W100=0,"",'TEC1'!W100) ->  | E100: =+IF('TEC1'!X100=0,"",'TEC1'!X100) ->  | F100: =+'TEC2'!U100 -> 0 | G100: =+'TEC2'!V100 -> 0 | H100: =+'TEC2'!W100 -> 0 | I100: =+'TEC2'!X100 -> 0 | J100: =+'TEC3'!U100 -> 0 | K100: =+'TEC3'!V100 -> 0 | L100: =+'TEC3'!W100 -> 0 | M100: =+'TEC3'!X100 -> 0 | N100: =+'TEC4'!U100 -> 0 | O100: =+'TEC4'!V100 -> 0 | P100: =+'TEC4'!W100 -> 0 | Q100: =+'TEC4'!X100 -> 0 | R100: =+'TEC5'!U100 -> 0 | S100: =+'TEC5'!V100 -> 0 | T100: =+'TEC5'!W100 -> 0 | U100: =+'TEC5'!X100 -> 0 | V100: =+'TEC6'!U100 -> 0 | W100: =+'TEC6'!V100 -> 0 | X100: =+'TEC6'!W100 -> 0 | Y100: =+'TEC6'!X100 -> 0

Sheet Boxplots comparisons
W2: =+IF($B$7>1,"AKA Nigel","") ->  | Y2: =+IF($B$7>1,"AKA Nigel","") -> 
B5: Centre for Education Statistics and Evaluation
B31: Class Name | F31: Class Name | J31: Class Name | N31: Class Name | R31: Class Name | V31: Class Name
B32: =+IF('TEC1'!T5="","",'TEC1'!T5) ->  | F32: =+IF('TEC2'!$T$5="","",'TEC2'!$T$5) -> Ms Johnson | J32: =+IF('TEC3'!T5="","",'TEC3'!T5) -> Mr Baldwin | N32: =+IF('TEC4'!T5="","",'TEC4'!T5) -> Ms Galley | R32: =+'TEC5'!T5 -> Ms Sendall | V32: =+'TEC6'!T5 -> Mr Chifley | Z32: ALL CLASSES - TOTAL
B33: Values from TEC1 | F33: Values from TEC2 | J33: Values from TEC3 | N33: Values from TEC4 | R33: Values from TEC5 | V33: Values from TEC6
B34: Mean | D34: =+IFERROR('TEC1'!H15,0) -> 0 | F34: Mean | H34: =+IFERROR('TEC2'!$H$15,0) -> 0 | J34: Mean | L34: =+IFERROR('TEC3'!H15,0) -> 0 | N34: Mean | P34: =+IFERROR('TEC4'!$H$15,0) -> 0 | R34: Mean | T34: =+IFERROR('TEC5'!$H$15,0) -> 0 | V34: Mean | X34: =+IFERROR('TEC6'!$H$15,0) -> 0 | Z34: Mean | AB34: =+IFERROR(Sheet8!AB15,0) -> 0
B35: Median | D35: =+IFERROR('TEC1'!J15,0) -> 0 | F35: Median | H35: =+IFERROR('TEC2'!$J$15,0) -> 0 | J35: Median | L35: =+IFERROR('TEC3'!J15,0) -> 0 | N35: Median | P35: =+IFERROR('TEC4'!$J$15,0) -> 0 | R35: Median | T35: =+IFERROR('TEC5'!$J$15,0) -> 0 | V35: Median | X35: =+IFERROR('TEC6'!$J$15,0) -> 0 | Z35: Median | AB35: =+IFERROR(Sheet8!AD15,0) -> 0
B36: Min | D36: =+'TEC1'!L11 -> 0 | F36: Min | H36: =+'TEC2'!$L$11 -> 0 | J36: Min | L36: =+'TEC3'!L11 -> 0 | N36: Min | P36: =+'TEC4'!$L$11 -> 0 | R36: Min | T36: =+'TEC5'!$L$11 -> 0 | V36: Min | X36: =+'TEC6'!$L$11 -> 0 | Z36: Min | AB36: =+Sheet8!AF11 -> 0
B37: Max | D37: =+'TEC1'!N11 -> 0 | F37: Max | H37: =+'TEC2'!$N$11 -> 0 | J37: Max | L37: =+'TEC3'!N11 -> 0 | N37: Max | P37: =+'TEC4'!$N$11 -> 0 | R37: Max | T37: =+'TEC5'!$N$11 -> 0 | V37: Max | X37: =+'TEC6'!$N$11 -> 0 | Z37: Max | AB37: =+Sheet8!AH11 -> 0
B38: Lower Quartile | D38: =+'TEC1'!H20 -> 0 | F38: Lower Quartile | H38: =+'TEC2'!$H$20 -> 0 | J38: Lower Quartile | L38: =+'TEC3'!H20 -> 0 | N38: Lower Quartile | P38: =+'TEC4'!$H$20 -> 0 | R38: Lower Quartile | T38: =+'TEC5'!$H$20 -> 0 | V38: Lower Quartile | X38: =+'TEC6'!$H$20 -> 0 | Z38: Lower Quartile | AB38: =+Sheet8!AB20 -> 0
B39: Upper Quartile | D39: =+'TEC1'!L20 -> 0 | F39: Upper Quartile | H39: =+'TEC2'!$L$20 -> 0 | J39: Upper Quartile | L39: =+'TEC3'!L20 -> 0 | N39: Upper Quartile | P39: =+'TEC4'!$L$20 -> 0 | R39: Upper Quartile | T39: =+'TEC5'!$L$20 -> 0 | V39: Upper Quartile | X39: =+'TEC6'!$L$20 -> 0 | Z39: Upper Quartile | AB39: =+Sheet8!AF20 -> 0
B40: Total No: | D40: =+'TEC1'!H11 -> 0 | F40: Total No: | H40: =+'TEC2'!H11 -> 0 | J40: Total No: | L40: =+'TEC3'!H11 -> 0 | N40: Total No: | P40: =+'TEC4'!H11 -> 0 | R40: Total No: | T40: =+'TEC5'!H11 -> 0 | V40: Total No: | X40: =+'TEC6'!H11 -> 0 | Z40: Total No: | AB40: =+Sheet8!AB11 -> 0
B41: Standard Deviation | D41: =+IFERROR('TEC1'!J34,0) -> 0 | F41: Standard Deviation | H41: =+IFERROR('TEC2'!J34,0) -> 0 | J41: Standard Deviation | L41: =+IFERROR('TEC3'!J34,0) -> 0 | N41: Standard Deviation | P41: =+IFERROR('TEC4'!J34,0) -> 0 | R41: Standard Deviation | T41: =+IFERROR('TEC5'!J34,0) -> 0 | V41: Standard Deviation | X41: =+IFERROR('TEC6'!J34,0) -> 0 | Z41: Standard Deviation | AB41: =IFERROR(Sheet8!AD34,0) -> 0

Sheet Total Boxplot (hidden)
B5: Centre for Education Statistics and Evaluation
CJ6: =+IF(B9>1,"AKA Nigel","") -> AKA Nigel
B9: 2 | C9: 4 | D9: 6 | E9: 8 | G9: Basics | CW9: Mode 1 | CX9: =MODE(IF(B9:G100<>0,B9:G100)
B10: 10 | C10: 12 | D10: 14 | E10: 80 | H10: Count | J10: Sum | L10: Min | N10: Max | X10: Numerator | Y10: Denominator | CR10: q1-min | CS10: =+'TEC6 (2)'!BB10 ->  | CW10: Mode 2
H11: =+'TEC6 (2)'!AB7 -> 0 | J11: =+'TEC6 (2)'!AD7 ->  | L11: =+'TEC6 (2)'!AF7 ->  | N11: =+'TEC6 (2)'!AH7 ->  | Z11: =IFERROR(X11/Y11,0) -> 0 | CR11: q1 | CS11: =+'TEC6 (2)'!BB11 ->  | CW11: Mode 3
CR12: median-q1 | CS12: =+'TEC6 (2)'!BB12 -> 
G13: Measures of Central Tendency | CR13: median | CS13: =+'TEC6 (2)'!BB13 -> 0
H14: Mean | J14: Median | L14: Mode 1 | CR14: Q3-median | CS14: =+'TEC6 (2)'!BB14 -> 
H15: =+'TEC6 (2)'!AB11 ->  | J15: =+'TEC6 (2)'!AD11 ->  | L15: =+'TEC6 (2)'!$AF$11 ->  | AI15: Standard deviation | AK15: =_xlfn.STDEV.S(B9:E82) -> 25.76819745 | CR15: Max-q3 | CS15: =+'TEC6 (2)'!BB15 -> 
CR16: Mean | CS16: =+'TEC6 (2)'!BB16 -> 
G18: Quartiles - Interquartile area/range | AI18: Square Root of no: values | AK18: =SQRT(H11) -> 0
H19: Lower Quartile | J19: Middle Quartile | L19: Upper Quartile
H20: =+'TEC6 (2)'!$AB$16 ->  | J20: =+'TEC6 (2)'!$AD$16 ->  | L20: =+'TEC6 (2)'!$AF$18 ->  | AI20: Standard Error (SE) | AK20: =+IF(AK18=0,0,(AK15/AK18)) -> 0
H22: Interquartile Area | J22: =+H20 ->  | K22: to | L22: =+L20 ->  | AI22: T-distribution probability figure | AK22: 0.95 | AL22: =+IF(H11=0,0,VLOOKUP(H11,Sheet2!C2:D65,2,TRUE)) -> 0
H27: mean | J27: =+IF(H15="","",H15) -> 
AI29: @95% t-dist
AY31: Percentage calculator
AX33: Percentile % | AY33: 0.9 | BA33: =IF(AY33="","",PERCENTILE($B$9:$E$82,AY33)) -> 33.8
AI37: Mean | AJ37: =+H15 -> 
AI38: Standard Error Range | AJ38: =+AJ37-AK20 ->  | AM38: =+AJ37+AK20 -> 
AQ56: Mode #1 | AR56: =_xlfn.MODE.MULT($B$9:$E$82) -> 
AQ57: Mode #2
AQ58: Mode #3
AQ59: Mode #4
